Workbook

Sheet Warning
B2: Pour accéder aux données, veuillez activer les macros et le contenu de ce fichier. Om toegang te hebben tot de gegevens, gelieve de macros en de inhoud van dit bestand in te schakelen. To get access to the data, please activate the macros and the content of this file.

Sheet Config (hidden)
B1: META-INDEX | C1: META-VALEUR
B2: 1 | C2: =VLOOKUP(INDEX(B10:B31,B2),Config!B10:G31,6,FALSE) -> CS
B3: 9 | C3: =VLOOKUP(B3,Config!A247:B255,2,FALSE) -> 2022
B4: 2 | C4: =HLOOKUP(B4,C262:F263,2,FALSE) -> Nederlands
C5: =VLOOKUP(C2,A10:H31,8,FALSE) -> S1311
B6: =IF(OR(CHOSEN_SUBSECTOR="S1311",CHOSEN_SUBSECTOR="S1312"),1,IF(CHOSEN_SUBSECTOR="S1313",2,IF(AND(CHOSEN_SUBSECTOR="S1314",CHOSEN_YEAR<2016),3,IF(AND(CHOSEN_SUBSECTOR="S1314",OR(CHOSEN_YEAR=2016,CHOSEN_YEAR=2017)),4,IF(AND(CHOSEN_SUBSECTOR="S1314",CHOSEN_YEAR>=2018),5,FALSE))))) -> 1 | C6: (Tableau)
B8: =IF($C$4=$C$8,Config!C8,IF($C$4=$D$8,Config!D8,IF($C$4=$F$8,Config!F8,Config!E8))) -> Nederlands | C8: Français | D8: Nederlands | E8: English | F8: Deutsch
B9: =IF($C$4=$C$8,Config!C9,IF($C$4=$D$8,Config!D9,IF($C$4=$F$8,Config!F9,Config!E9))) -> BIJZONDERE OMSCHRIJVINGEN | C9: INTITULÉS SPÉCIAUX | D9: BIJZONDERE OMSCHRIJVINGEN | E9: SPECIAL DESCRIPTIONS | J9: Pouvoir fédéral | K9: Federale overheid
A10: CS | B10: =IF($C$4=$C$8,Config!C10,IF($C$4=$D$8,Config!D10,IF($C$4=$F$8,Config!F10,Config!E10))) -> FEDERALE OVERHEID | C10: POUVOIR FÉDÉRAL | D10: FEDERALE OVERHEID | E10: Central State | F10: Zentraalstaat | G10: =A10 -> CS | H10: S1311 | J10: Sécurité sociale | K10: Sociale zekerheid
A11: SS | B11: =IF($C$4=$C$8,Config!C11,IF($C$4=$D$8,Config!D11,IF($C$4=$F$8,Config!F11,Config!E11))) -> SOCIALE ZEKERHEID | C11: SÉCURITÉ SOCIALE | D11: SOCIALE ZEKERHEID | E11: Social security | F11: Soziale Sicherheit | G11: =A11 -> SS | H11: S1314 | J11: Communauté flamande | K11: Vlaamse Gemeenschap
A12: FlC | B12: =IF($C$4=$C$8,Config!C12,IF($C$4=$D$8,Config!D12,IF($C$4=$F$8,Config!F12,Config!E12))) -> VLAAMSE GEMEENSCHAP | C12: COMMUNAUTÉ FLAMANDE | D12: VLAAMSE GEMEENSCHAP | E12: Flemish Community | F12: Flämische Gemeinschaft | G12: FlC | H12: S1312 | J12: Communauté française | K12: Franse Gemeenschap
A13: FrC | B13: =IF($C$4=$C$8,Config!C13,IF($C$4=$D$8,Config!D13,IF($C$4=$F$8,Config!F13,Config!E13))) -> FRANSE GEMEENSCHAP | C13: COMMUNAUTÉ FRANÇAISE | D13: FRANSE GEMEENSCHAP | E13: French Community | F13: Französische Gemeinschaft | G13: FrC | H13: S1312 | J13: Communauté germanophone | K13: Duitstalige Gemeenschap
A14: GC | B14: =IF($C$4=$C$8,Config!C14,IF($C$4=$D$8,Config!D14,IF($C$4=$F$8,Config!F14,Config!E14))) -> DUITSTALIGE GEMEENSCHAP | C14: COMMUNAUTÉ GERMANOPHONE | D14: DUITSTALIGE GEMEENSCHAP | E14: German-speaking Community | F14: Deutschsprachige Gemeinschaft | G14: GC | H14: S1312 | J14: Région wallonne | K14: Waals Gewest
A15: WR | B15: =IF($C$4=$C$8,Config!C15,IF($C$4=$D$8,Config!D15,IF($C$4=$F$8,Config!F15,Config!E15))) -> WAALS GEWEST | C15: RÉGION WALLONNE | D15: WAALS GEWEST | E15: Walloon Region | F15: Wallonische Region | G15: WR | H15: S1312 | J15: Région de Bruxelles-Capitale | K15: Brussels Hoofdstedelijk Gewest
A16: BCR | B16: =IF($C$4=$C$8,Config!C16,IF($C$4=$D$8,Config!D16,IF($C$4=$F$8,Config!F16,Config!E16))) -> BRUSSELS HOOFDSTEDELIJK GEWEST | C16: RÉGION DE BRUXELLES-CAPITALE | D16: BRUSSELS HOOFDSTEDELIJK GEWEST | E16: Brussels Capitale Region | F16: Region Brüssel-Hauptstadt | G16: BCR | H16: S1312 | J16: Commission communautaire française | K16: Franse Gemeenschapscommissie
A17: FrCC | B17: =IF($C$4=$C$8,Config!C17,IF($C$4=$D$8,Config!D17,IF($C$4=$F$8,Config!F17,Config!E17))) -> FRANSE GEMEENSCHAPSCOMMISSIE | C17: COMMISSION COMMUNAUTAIRE FRANÇAISE | D17: FRANSE GEMEENSCHAPSCOMMISSIE | E17: French Community Commission | F17: Französische Gemeinschaftskommission | G17: FrCC | H17: S1312 | J17: Commission communautaire flamande | K17: Vlaamse Gemeenschapscommissie
A18: FlCC | B18: =IF($C$4=$C$8,Config!C18,IF($C$4=$D$8,Config!D18,IF($C$4=$F$8,Config!F18,Config!E18))) -> VLAAMSE GEMEENSCHAPSCOMMISSIE | C18: COMMISSION COMMUNAUTAIRE FLAMANDE | D18: VLAAMSE GEMEENSCHAPSCOMMISSIE | E18: Flemish Community Commission | F18: Flämische Gemeinschaftskommission | G18: FlCC | H18: S1312 | J18: Commission communautaire commune | K18: Gemeenschappelijke Gemeenschapscommissie
A19: CCC | B19: =IF($C$4=$C$8,Config!C19,IF($C$4=$D$8,Config!D19,IF($C$4=$F$8,Config!F19,Config!E19))) -> GEMEENSCHAPPELIJKE GEMEENSCHAPSCOMMISSIE | C19: COMMISSION COMMUNAUTAIRE COMMUNE | D19: GEMEENSCHAPPELIJKE GEMEENSCHAPSCOMMISSIE | E19: Common Community Commission | F19: Gemeinsame Gemeinschaftskommission | G19: CCC | H19: S1312 | J19: Communes flamandes | K19: Vlaamse gemeenten
A20: C-Fl | B20: =IF($C$4=$C$8,Config!C20,IF($C$4=$D$8,Config!D20,IF($C$4=$F$8,Config!F20,Config!E20))) -> VLAAMSE GEMEENTEN | C20: COMMUNES FLAMANDES | D20: VLAAMSE GEMEENTEN | E20: Communes flamandes | F20: Communes flamandes | G20: C-Fl | H20: S1313 | J20: Communes wallonnes | K20: Waalse gemeenten
A21: C-W | B21: =IF($C$4=$C$8,Config!C21,IF($C$4=$D$8,Config!D21,IF($C$4=$F$8,Config!F21,Config!E21))) -> WAALSE GEMEENTEN | C21: COMMUNES WALLONNES | D21: WAALSE GEMEENTEN | E21: Communes wallonnes | F21: Communes wallonnes | G21: C-W | H21: S1313 | J21: Communes bruxelloises | K21: Brusselse gemeenten
A22: C-B | B22: =IF($C$4=$C$8,Config!C22,IF($C$4=$D$8,Config!D22,IF($C$4=$F$8,Config!F22,Config!E22))) -> BRUSSELSE GEMEENTEN | C22: COMMUNES BRUXELLOISES | D22: BRUSSELSE GEMEENTEN | E22: Communes bruxelloises | F22: Communes bruxelloises | G22: C-B | H22: S1313 | J22: Communes germanophones | K22: Duitstalige gemeenten
A23: C-G | B23: =IF($C$4=$C$8,Config!C23,IF($C$4=$D$8,Config!D23,IF($C$4=$F$8,Config!F23,Config!E23))) -> DUITSTALIGE GEMEENTEN | C23: COMMUNES GERMANOPHONES | D23: DUITSTALIGE GEMEENTEN | E23: Communes germanophones | F23: Communes germanophones | G23: C-G | H23: S1313 | J23: Provinces flamandes | K23: Vlaamse provincies
A24: P-Fl | B24: =IF($C$4=$C$8,Config!C24,IF($C$4=$D$8,Config!D24,IF($C$4=$F$8,Config!F24,Config!E24))) -> VLAAMSE PROVINCIES | C24: PROVINCES FLAMANDES | D24: VLAAMSE PROVINCIES | E24: Provinces flamandes | F24: Provinces flamandes | G24: P-Fl | H24: S1313 | J24: Provinces wallonnes | K24: Waalse provincies
A25: P-W | B25: =IF($C$4=$C$8,Config!C25,IF($C$4=$D$8,Config!D25,IF($C$4=$F$8,Config!F25,Config!E25))) -> WAALSE PROVINCIES | C25: PROVINCES WALLONNES | D25: WAALSE PROVINCIES | E25: Provinces wallonnes | F25: Provinces wallonnes | G25: P-W | H25: S1313 | J25: CPAS flamands | K25: Vlaamse OCMW's
A26: PSWC-Fl | B26: =IF($C$4=$C$8,Config!C26,IF($C$4=$D$8,Config!D26,IF($C$4=$F$8,Config!F26,Config!E26))) -> VLAAMSE OCMW'S | C26: CPAS FLAMANDS | D26: VLAAMSE OCMW'S | E26: CPAS flamands | F26: CPAS flamands | G26: PSWC-Fl | H26: S1313 | J26: CPAS wallons | K26: Waalse OCMW's
A27: PSWC-W | B27: =IF($C$4=$C$8,Config!C27,IF($C$4=$D$8,Config!D27,IF($C$4=$F$8,Config!F27,Config!E27))) -> WAALSE OCMW'S | C27: CPAS WALLONS | D27: WAALSE OCMW'S | E27: CPAS wallons | F27: CPAS wallons | G27: PSWC-W | H27: S1313 | J27: CPAS bruxellois | K27: Brusselse OCMW's
A28: PSWC-B | B28: =IF($C$4=$C$8,Config!C28,IF($C$4=$D$8,Config!D28,IF($C$4=$F$8,Config!F28,Config!E28))) -> BRUSSELSE OCMW'S | C28: CPAS BRUXELLOIS | D28: BRUSSELSE OCMW'S | E28: CPAS bruxellois | F28: CPAS bruxellois | G28: PSWC-B | H28: S1313 | J28: CPAS germanophones | K28: Duitstalige OCMW's
A29: PSWC-G | B29: =IF($C$4=$C$8,Config!C29,IF($C$4=$D$8,Config!D29,IF($C$4=$F$8,Config!F29,Config!E29))) -> DUITSTALIGE OCMW'S | C29: CPAS GERMANOPHONES | D29: DUITSTALIGE OCMW'S | E29: CPAS germanophones | F29: CPAS germanophones | G29: PSWC-G | H29: S1313 | J29: Zones de police | K29: Politiezones
A30: PZ | B30: =IF($C$4=$C$8,Config!C30,IF($C$4=$D$8,Config!D30,IF($C$4=$F$8,Config!F30,Config!E30))) -> POLITIEZONES | C30: ZONES DE POLICE | D30: POLITIEZONES | E30: Police zones | F30: Zones de police | G30: PZ | H30: S1313 | J30: Zones de secours | K30: Hulpverleningszones
A31: RZ | B31: =IF($C$4=$C$8,Config!C31,IF($C$4=$D$8,Config!D31,IF($C$4=$F$8,Config!F31,Config!#REF!))) -> HULPVERLENINGSZONES | C31: ZONES DE SECOURS | D31: HULPVERLENINGSZONES | E31: Rescue zones | F31: Zones de secours | G31: RZ | H31: S1313
A32: WO | B32: =IF($C$4=$C$8,Config!C32,IF($C$4=$D$8,Config!D32,IF($C$4=$F$8,Config!#REF!,Config!#REF!))) -> Werknemers | C32: Salariés | D32: Werknemers | G32: WO
A33: PE | G33: PE
A34: OM | G34: OM
A35: FL | G35: FL
A36: HC | G36: HC
A37: CA | G37: CA
A38: INS | G38: INS
A39: EXP | G39: EXP
A40: REV | G40: REV
A41: BAL | G41: BAL
A42: P | G42: P
A43: C | G43: C
A44: PSWC | G44: PSWC
A45: RZ | G45: RZ
A46: PZ | G46: PZ
B48: =IF($C$4=$C$8,Config!C48,IF($C$4=$D$8,Config!D48,IF($C$4=$F$8,Config!F48,Config!E48))) -> OMSCHRIJVINGEN | C48: INTITULÉS | D48: OMSCHRIJVINGEN | E48: DESCRIPTIONS
A49: FR | B49: FRANÇAIS | G49: =A49 -> FR
A50: NL | B50: NEDERLANDS | G50: NL
A51: EN | B51: ENGLISH | G51: EN
A52: DE | B52: DEUTSCH | G52: DE
B54: =IF($C$4=$C$8,Config!C54,IF($C$4=$D$8,Config!D54,IF($C$4=$F$8,Config!F54,Config!E54))) -> OMSCHRIJVINGEN | C54: INTITULÉS | D54: OMSCHRIJVINGEN | E54: DESCRIPTIONS
A55: D-001 | B55: =IF($C$4=$C$8,Config!C55,IF($C$4=$D$8,Config!D55,IF($C$4=$F$8,Config!F55,Config!E55))) -> Parameters | C55: Paramètres | D55: Parameters | E55: Parameters | F55: Parameter | G55: =A55 -> D-001
A56: D-002 | B56: =IF($C$4=$C$8,Config!C56,IF($C$4=$D$8,Config!D56,IF($C$4=$F$8,Config!F56,Config!E56))) -> Centrale overheid | C56: Administration centrale | D56: Centrale overheid | E56: Central administration | F56: Zentrale Behörde | G56: =A56 -> D-002
A57: D-003 | B57: =IF($C$4=$C$8,Config!C57,IF($C$4=$D$8,Config!D57,IF($C$4=$F$8,Config!F57,Config!E57))) -> Omschrijving | C57: Libellé | D57: Omschrijving | E57: Description | F57: Umschreibung | G57: D-003
A58: D-004 | B58: =IF($C$4=$C$8,Config!C58,IF($C$4=$D$8,Config!D58,IF($C$4=$F$8,Config!F58,Config!E58))) -> Januari | C58: Janvier | D58: Januari | E58: January | F58: Januar | G58: D-004
A59: D-005 | B59: =IF($C$4=$C$8,Config!C59,IF($C$4=$D$8,Config!D59,IF($C$4=$F$8,Config!F59,Config!E59))) -> Februari | C59: Février | D59: Februari | E59: February | F59: Februar | G59: D-005
A60: D-006 | B60: =IF($C$4=$C$8,Config!C60,IF($C$4=$D$8,Config!D60,IF($C$4=$F$8,Config!F60,Config!E60))) -> Maart | C60: Mars | D60: Maart | E60: March | F60: März | G60: D-006
A61: D-007 | B61: =IF($C$4=$C$8,Config!C61,IF($C$4=$D$8,Config!D61,IF($C$4=$F$8,Config!F61,Config!E61))) -> April | C61: Avril | D61: April | E61: April | F61: April | G61: D-007
A62: D-008 | B62: =IF($C$4=$C$8,Config!C62,IF($C$4=$D$8,Config!D62,IF($C$4=$F$8,Config!F62,Config!E62))) -> Mei | C62: Mai | D62: Mei | E62: May | F62: Mai | G62: D-008
A63: D-009 | B63: =IF($C$4=$C$8,Config!C63,IF($C$4=$D$8,Config!D63,IF($C$4=$F$8,Config!F63,Config!E63))) -> Juni | C63: Juin | D63: Juni | E63: June | F63: Juni | G63: D-009
A64: D-010 | B64: =IF($C$4=$C$8,Config!C64,IF($C$4=$D$8,Config!D64,IF($C$4=$F$8,Config!F64,Config!E64))) -> Juli | C64: Juillet | D64: Juli | E64: July | F64: Juli | G64: D-010
A65: D-011 | B65: =IF($C$4=$C$8,Config!C65,IF($C$4=$D$8,Config!D65,IF($C$4=$F$8,Config!F65,Config!E65))) -> Augustus | C65: Août | D65: Augustus | E65: August | F65: August | G65: D-011
A66: D-012 | B66: =IF($C$4=$C$8,Config!C66,IF($C$4=$D$8,Config!D66,IF($C$4=$F$8,Config!F66,Config!E66))) -> September | C66: Septembre | D66: September | E66: September | F66: September | G66: D-012
A67: D-013 | B67: =IF($C$4=$C$8,Config!C67,IF($C$4=$D$8,Config!D67,IF($C$4=$F$8,Config!F67,Config!E67))) -> Oktober | C67: Octobre | D67: Oktober | E67: October | F67: Oktober | G67: D-013
A68: D-014 | B68: =IF($C$4=$C$8,Config!C68,IF($C$4=$D$8,Config!D68,IF($C$4=$F$8,Config!F68,Config!E68))) -> November | C68: Novembre | D68: November | E68: November | F68: November | G68: D-014
A69: D-015 | B69: =IF($C$4=$C$8,Config!C69,IF($C$4=$D$8,Config!D69,IF($C$4=$F$8,Config!F69,Config!E69))) -> December | C69: Décembre | D69: December | E69: December | F69: December | G69: D-015
A70: D-016 | B70: =IF($C$4=$C$8,Config!C70,IF($C$4=$D$8,Config!D70,IF($C$4=$F$8,Config!F70,Config!E70))) -> Entiteit: | C70: Entité : | D70: Entiteit: | E70: Authority: | F70: Behörde | G70: D-016
A71: D-017 | B71: =IF($C$4=$C$8,Config!C71,IF($C$4=$D$8,Config!D71,IF($C$4=$F$8,Config!F71,Config!E71))) -> Entiteiten: | C71: Entités : | D71: Entiteiten: | E71: Authorities: | G71: D-017
A72: D-018 | B72: =IF($C$4=$C$8,Config!C72,IF($C$4=$D$8,Config!D72,IF($C$4=$F$8,Config!F72,Config!E72))) -> Munteenheid: | C72: Unité monétaire : | D72: Munteenheid: | E72: Currency unit: | F72: Währung | G72: D-018
A73: D-019 | B73: =IF($C$4=$C$8,Config!C73,IF($C$4=$D$8,Config!D73,IF($C$4=$F$8,Config!F73,Config!E73))) -> duizend EUR | C73: milliers EUR | D73: duizend EUR | E73: thousands EUR | F73: tausend EUR | G73: D-019
A74: D-020 | B74: =IF($C$4=$C$8,Config!C74,IF($C$4=$D$8,Config!D74,IF($C$4=$F$8,Config!F74,Config!E74))) -> Uitgaven | C74: Dépenses | D74: Uitgaven | E74: Expenses | F74: Ausgaben | G74: D-020
A75: D-021 | B75: =IF($C$4=$C$8,Config!C75,IF($C$4=$D$8,Config!D75,IF($C$4=$F$8,Config!F75,Config!E75))) -> Diversen | C75: Divers | D75: Diversen | E75: Diverse | G75: D-021
A76: D-022 | B76: =IF($C$4=$C$8,Config!C76,IF($C$4=$D$8,Config!D76,IF($C$4=$F$8,Config!F76,Config!E76))) -> Lonen en sociale lasten | C76: Salaires et charges sociales | D76: Lonen en sociale lasten | E76: Wages and social cost | F76: Gehälter und sociale Kost | G76: D-022
A77: D-023 | B77: =IF($C$4=$C$8,Config!C77,IF($C$4=$D$8,Config!D77,IF($C$4=$F$8,Config!F77,Config!E77))) -> Lopende uitgaven voor goederen en diensten | C77: Dépenses courantes pour biens et services | D77: Lopende uitgaven voor goederen en diensten | E77: Common expenses for goods and services | F77: Laufende Ausgaben für | G77: D-023
A78: D-024 | B78: =IF($C$4=$C$8,Config!C78,IF($C$4=$D$8,Config!D78,IF($C$4=$F$8,Config!F78,Config!E78))) -> Interestlasten | C78: Charges d'intérêt | D78: Interestlasten | E78: Interest debt | F78: Zinsen auf Anleihen(leningen)/Schuld | G78: D-024
A79: D-025 | B79: =IF($C$4=$C$8,Config!C79,IF($C$4=$D$8,Config!D79,IF($C$4=$F$8,Config!F79,Config!E79))) -> Overdrachten aan andere sectoren (gezinnen, bedrijven,…) | C79: Transferts à d'autres secteurs (ménages, entreprises,…) | D79: Overdrachten aan andere sectoren (gezinnen, bedrijven,…) | E79: Transfers to other sectors | G79: D-025
A80: D-026 | B80: =IF($C$4=$C$8,Config!C80,IF($C$4=$D$8,Config!D80,IF($C$4=$F$8,Config!F80,Config!E80))) -> Overdrachten aan de te consolideren instellingen | C80: Transferts vers les organismes à consolider | D80: Overdrachten aan de te consolideren instellingen | E80: Transfers to institutions to consolidate | G80: D-026
A81: D-027 | B81: =IF($C$4=$C$8,Config!C81,IF($C$4=$D$8,Config!D81,IF($C$4=$F$8,Config!F81,Config!E81))) -> Overdrachten aan de sociale zekerheid | C81: Transferts à la sécurité sociale | D81: Overdrachten aan de sociale zekerheid | E81: Transfers to social security | G81: D-027
A82: D-028 | B82: =IF($C$4=$C$8,Config!C82,IF($C$4=$D$8,Config!D82,IF($C$4=$F$8,Config!F82,Config!E82))) -> Overdrachten aan lokale overheden | C82: Transferts aux pouvoirs locaux | D82: Overdrachten aan lokale overheden | E82: Transfers to local authorities | G82: D-028
A83: D-029 | B83: =IF($C$4=$C$8,Config!C83,IF($C$4=$D$8,Config!D83,IF($C$4=$F$8,Config!F83,Config!E83))) -> Overdrachten aan het gesubsidieerd autonoom onderwijs | C83: Transferts à l'enseignement autonome subsidié | D83: Overdrachten aan het gesubsidieerd autonoom onderwijs | E83: Transfers to the subsidised autonomous education | G83: D-029
A84: D-030 | B84: =IF($C$4=$C$8,Config!C84,IF($C$4=$D$8,Config!D84,IF($C$4=$F$8,Config!F84,Config!E84))) -> Overdrachten aan andere institutionele groepen | C84: Transferts vers d'autres groupes institutionnels | D84: Overdrachten aan andere institutionele groepen | E84: Transfers to other institutional groups | G84: D-030
A85: D-031 | B85: =IF($C$4=$C$8,Config!C85,IF($C$4=$D$8,Config!D85,IF($C$4=$F$8,Config!F85,Config!E85))) -> Investeringen | C85: Investissements | D85: Investeringen | E85: Investments | G85: D-031
A86: D-032 | B86: =IF($C$4=$C$8,Config!C86,IF($C$4=$D$8,Config!D86,IF($C$4=$F$8,Config!F86,Config!E86))) -> Totaal buiten financiële en interne verrichtingen | C86: Total hors opérations financières et opérations internes | D86: Totaal buiten financiële en interne verrichtingen | E86: Total except financial en intern operations | G86: D-032
A87: D-033 | B87: =IF($C$4=$C$8,Config!C87,IF($C$4=$D$8,Config!D87,IF($C$4=$F$8,Config!F87,Config!E87))) -> Kredietverleningen, deelnemingen en andere financiële producten | C87: Octroi de crédits, participations et autres produits financiers | D87: Kredietverleningen, deelnemingen en andere financiële producten | G87: D-033
A88: D-034 | B88: =IF($C$4=$C$8,Config!C88,IF($C$4=$D$8,Config!D88,IF($C$4=$F$8,Config!F88,Config!E88))) -> Financiële verrichtingen betreffende de schuld | C88: Opérations financières relatives à la dette | D88: Financiële verrichtingen betreffende de schuld | E88: Financial operations concerning the debt | G88: D-034
A89: D-035 | B89: =IF($C$4=$C$8,Config!C89,IF($C$4=$D$8,Config!D89,IF($C$4=$F$8,Config!F89,Config!E89))) -> Interne verrichtingen | C89: Opérations internes | D89: Interne verrichtingen | E89: Intern operations | G89: D-035
A90: D-036 | B90: =IF($C$4=$C$8,Config!C90,IF($C$4=$D$8,Config!D90,IF($C$4=$F$8,Config!F90,Config!E90))) -> Algemeen totaal van de uitgaven | C90: Total général des dépenses | D90: Algemeen totaal van de uitgaven | E90: General total of the expenses | F90: Gesamttotal | G90: D-036
A91: D-037 | B91: =IF($C$4=$C$8,Config!C91,IF($C$4=$D$8,Config!D91,IF($C$4=$F$8,Config!F91,Config!E91))) -> Ontvangsten | C91: Recettes | D91: Ontvangsten | E91: Revenues | G91: D-037
A92: D-038 | B92: =IF($C$4=$C$8,Config!C92,IF($C$4=$D$8,Config!D92,IF($C$4=$F$8,Config!F92,Config!E92))) -> Lopende ontvangsten van goederen en diensten | C92: Recettes courantes pour biens et services | D92: Lopende ontvangsten van goederen en diensten | E92: Common revenues for goods and services | G92: D-038
A93: D-039 | B93: =IF($C$4=$C$8,Config!C93,IF($C$4=$D$8,Config!D93,IF($C$4=$F$8,Config!F93,Config!E93))) -> Inkomsten uit eigendom | C93: Revenus de la propriété | D93: Inkomsten uit eigendom | E93: Revenues from property | G93: D-039
A94: D-040 | B94: =IF($C$4=$C$8,Config!C94,IF($C$4=$D$8,Config!D94,IF($C$4=$F$8,Config!F94,Config!E94))) -> Fiscale ontvangsten | C94: Recettes fiscales | D94: Fiscale ontvangsten | E94: Fiscal revenues | G94: D-040
A95: D-041 | B95: =IF($C$4=$C$8,Config!C95,IF($C$4=$D$8,Config!D95,IF($C$4=$F$8,Config!F95,Config!E95))) -> Overdrachten van andere sectoren (gezinnen, bedrijven,…) | C95: Transferts en provenance d'autres secteurs (ménages, entreprises,…) | D95: Overdrachten van andere sectoren (gezinnen, bedrijven,…) | E95: Transfers from other sectors | G95: D-041
A96: D-042 | B96: =IF($C$4=$C$8,Config!C96,IF($C$4=$D$8,Config!D96,IF($C$4=$F$8,Config!F96,Config!E96))) -> Overdrachten van de te consolideren instellingen | C96: Transferts en provenance des organismes à consolider | D96: Overdrachten van de te consolideren instellingen | E96: Transfers from the institutions to consolidate | G96: D-042
A97: D-043 | B97: =IF($C$4=$C$8,Config!C97,IF($C$4=$D$8,Config!D97,IF($C$4=$F$8,Config!F97,Config!E97))) -> Overdrachten van de sociale zekerheid | C97: Transferts en provenance de la sécurité sociale | D97: Overdrachten van de sociale zekerheid | E97: Transfers from the social security | G97: D-043
A98: D-044 | B98: =IF($C$4=$C$8,Config!C98,IF($C$4=$D$8,Config!D98,IF($C$4=$F$8,Config!F98,Config!E98))) -> Overdrachten van lokale overheden | C98: Transferts en provenance des pouvoirs locaux | D98: Overdrachten van lokale overheden | E98: Transfers from local authorities | G98: D-044
A99: D-045 | B99: =IF($C$4=$C$8,Config!C99,IF($C$4=$D$8,Config!D99,IF($C$4=$F$8,Config!F99,Config!E99))) -> Overdrachten van andere institutionele groepen | C99: Transferts en provenance d'autres groupes institutionnels | D99: Overdrachten van andere institutionele groepen | E99: Transfers from other institutional groups | G99: D-045
A100: D-046 | B100: =IF($C$4=$C$8,Config!C100,IF($C$4=$D$8,Config!D100,IF($C$4=$F$8,Config!F100,Config!E100))) -> Desinvesteringen | C100: Désinvestissements | D100: Desinvesteringen | E100: Disinvestments | G100: D-046
A101: D-047 | B101: =IF($C$4=$C$8,Config!C101,IF($C$4=$D$8,Config!D101,IF($C$4=$F$8,Config!F101,Config!E101))) -> Kredietaflossingen, vereffeningen van deelnemingen en andere financiële producten | C101: Remboursements de crédits, liquidations de participations et autres produits financiers | D101: Kredietaflossingen, vereffeningen van deelnemingen en andere financiële producten | E101: Reimbursement of loans, liquidations of shares and other financial products | G101: D-047
A102: D-048 | B102: =IF($C$4=$C$8,Config!C102,IF($C$4=$D$8,Config!D102,IF($C$4=$F$8,Config!F102,Config!E102))) -> Algemeen totaal van de ontvangsten | C102: Total général des recettes | D102: Algemeen totaal van de ontvangsten | E102: General total of the revenues | G102: D-048
A103: D-049 | B103: =IF($C$4=$C$8,Config!C103,IF($C$4=$D$8,Config!D103,IF($C$4=$F$8,Config!F103,Config!E103))) -> Saldo buiten financiële en interne verrichtingen | C103: Solde hors opérations financières et opérations internes | D103: Saldo buiten financiële en interne verrichtingen | E103: Balance exceppt financial en intern operations | G103: D-049
A104: D-050 | B104: =IF($C$4=$C$8,Config!C104,IF($C$4=$D$8,Config!D104,IF($C$4=$F$8,Config!F104,Config!E104))) -> Saldo | C104: Solde | D104: Saldo | E104: General balance | G104: D-050
A105: D-051 | B105: =IF($C$4=$C$8,Config!C105,IF($C$4=$D$8,Config!D105,IF($C$4=$F$8,Config!F105,Config!E105))) -> Totaal | C105: Total | D105: Totaal | E105: Total | G105: D-051
A106: D-052 | B106: =IF($C$4=$C$8,Config!C106,IF($C$4=$D$8,Config!D106,IF($C$4=$F$8,Config!F106,Config!E106))) -> Instellingen van de consolidatieperimeter | C106: Organismes du périmètre de consolidation | D106: Instellingen van de consolidatieperimeter | E106: Institutions of the consolidation perimeter | G106: D-052
A107: D-053 | B107: =IF($C$4=$C$8,Config!C107,IF($C$4=$D$8,Config!D107,IF($C$4=$F$8,Config!F107,Config!E107))) -> Overdrachten binnen de institutionele groep | C107: Transferts à l'intérieur du groupe institutionnel | D107: Overdrachten binnen de institutionele groep | E107: Transfers inside the institutional group | G107: D-053
A108: D-054 | B108: =IF($C$4=$C$8,Config!C108,IF($C$4=$D$8,Config!D108,IF($C$4=$F$8,Config!F108,Config!E108))) -> Jaar: | C108: Année : | D108: Jaar: | E108: Year: | F108: Jahr: | G108: D-054
A109: D-055 | B109: =IF($C$4=$C$8,Config!C109,IF($C$4=$D$8,Config!D109,IF($C$4=$F$8,Config!#REF!,Config!#REF!))) -> Werknemers | C109: Salariés | D109: Werknemers | G109: D-055
A110: D-056 | B110: =IF($C$4=$C$8,Config!C110,IF($C$4=$D$8,Config!D110,IF($C$4=$F$8,Config!#REF!,Config!#REF!))) -> Prestaties | C110: Prestations | D110: Prestaties | G110: D-056
A111: D-057 | B111: =IF($C$4=$C$8,Config!C111,IF($C$4=$D$8,Config!D111,IF($C$4=$F$8,Config!#REF!,Config!#REF!))) -> RIZIV-Uitkeringen | C111: INAMI-Indemnités | D111: RIZIV-Uitkeringen | G111: D-057
A112: D-058 | B112: =IF($C$4=$C$8,Config!C112,IF($C$4=$D$8,Config!D112,IF($C$4=$F$8,Config!#REF!,Config!#REF!))) -> FPD | C112: SFP | D112: FPD | G112: D-058
A113: D-059 | B113: =IF($C$4=$C$8,Config!C113,IF($C$4=$D$8,Config!D113,IF($C$4=$F$8,Config!#REF!,Config!#REF!))) -> RKW | C113: ONAFTS | D113: RKW | G113: D-059
A114: D-060 | B114: =IF($C$4=$C$8,Config!C114,IF($C$4=$D$8,Config!D114,IF($C$4=$F$8,Config!#REF!,Config!#REF!))) -> FEDRIS-Arbeidsongevallen | C114: Fedris-Accidents du travail | D114: FEDRIS-Arbeidsongevallen | G114: D-060
A115: D-061 | B115: =IF($C$4=$C$8,Config!C115,IF($C$4=$D$8,Config!D115,IF($C$4=$F$8,Config!#REF!,Config!#REF!))) -> FEDRIS-Beroepsziekten | C115: FMP-Maladies professionnelles | D115: FEDRIS-Beroepsziekten | G115: D-061
A116: D-062 | B116: =IF($C$4=$C$8,Config!C116,IF($C$4=$D$8,Config!D116,IF($C$4=$F$8,Config!#REF!,Config!#REF!))) -> RVA | C116: ONEm | D116: RVA | G116: D-062
A117: D-063 | B117: =IF($C$4=$C$8,Config!C117,IF($C$4=$D$8,Config!D117,IF($C$4=$F$8,Config!#REF!,Config!#REF!))) -> Mijnwerkers | C117: Mineurs | D117: Mijnwerkers | G117: D-063
A118: D-064 | B118: =IF($C$4=$C$8,Config!C118,IF($C$4=$D$8,Config!D118,IF($C$4=$F$8,Config!#REF!,Config!#REF!))) -> HVKZ | C118: CSPM | D118: HVKZ | G118: D-064
A119: D-065 | B119: =IF($C$4=$C$8,Config!C119,IF($C$4=$D$8,Config!D119,IF($C$4=$F$8,Config!#REF!,Config!#REF!))) -> Pool der Zeelieden | C119: Pool des Marins | D119: Pool der Zeelieden | G119: D-065
A120: D-066 | B120: =IF($C$4=$C$8,Config!C120,IF($C$4=$D$8,Config!D120,IF($C$4=$F$8,Config!#REF!,Config!#REF!))) -> Betalingskosten | C120: Frais de paiement | D120: Betalingskosten | G120: =A120 -> D-066
A121: D-067 | B121: =IF($C$4=$C$8,Config!C121,IF($C$4=$D$8,Config!D121,IF($C$4=$F$8,Config!#REF!,Config!#REF!))) -> Beheerskosten | C121: Frais d'administration | D121: Beheerskosten | G121: D-067
A122: D-068 | B122: =IF($C$4=$C$8,Config!C122,IF($C$4=$D$8,Config!D122,IF($C$4=$F$8,Config!#REF!,Config!#REF!))) -> Externe overdrachten | C122: Transferts externes | D122: Externe overdrachten | G122: D-068
A123: D-069 | B123: =IF($C$4=$C$8,Config!C123,IF($C$4=$D$8,Config!D123,IF($C$4=$F$8,Config!#REF!,Config!#REF!))) -> RIZIV-Geneeskundige verzorging | C123: INAMI-Soins de santé | D123: RIZIV-Geneeskundige verzorging | G123: D-069
A124: D-070 | B124: =IF($C$4=$C$8,Config!C124,IF($C$4=$D$8,Config!D124,IF($C$4=$F$8,Config!#REF!,Config!#REF!))) -> Andere | C124: Autres | D124: Andere | G124: D-070
A125: D-071 | B125: =IF($C$4=$C$8,Config!C125,IF($C$4=$D$8,Config!D125,IF($C$4=$F$8,Config!#REF!,Config!#REF!))) -> Eigen uitgaven | C125: Dépenses propres | D125: Eigen uitgaven | G125: D-071
A126: D-072 | B126: =IF($C$4=$C$8,Config!C126,IF($C$4=$D$8,Config!D126,IF($C$4=$F$8,Config!#REF!,Config!#REF!))) -> Van een tak naar het RSZ-Globaal beheer | C126: D'une branche vers l'ONSS-Gestion globale | D126: Van een tak naar het RSZ-Globaal beheer | G126: D-072
A127: D-073 | B127: =IF($C$4=$C$8,Config!C127,IF($C$4=$D$8,Config!D127,IF($C$4=$F$8,Config!#REF!,Config!#REF!))) -> Van het RSZ-Globaal beheer naar een tak | C127: De l'ONSS-Gestion globale vers une branche | D127: Van het RSZ-Globaal beheer naar een tak | G127: D-073
A128: D-074 | B128: =IF($C$4=$C$8,Config!C128,IF($C$4=$D$8,Config!D128,IF($C$4=$F$8,Config!#REF!,Config!#REF!))) -> Interne overdrachten | C128: Transferts internes | D128: Interne overdrachten | G128: D-074
A129: D-075 | B129: =IF($C$4=$C$8,Config!C129,IF($C$4=$D$8,Config!D129,IF($C$4=$F$8,Config!#REF!,Config!#REF!))) -> Bijdragen | C129: Cotisations | D129: Bijdragen | G129: D-075
A130: D-076 | B130: =IF($C$4=$C$8,Config!C130,IF($C$4=$D$8,Config!D130,IF($C$4=$F$8,Config!#REF!,Config!#REF!))) -> Staatstoelagen | C130: Subventions de l'État | D130: Staatstoelagen | G130: D-076
A131: D-077 | B131: =IF($C$4=$C$8,Config!C131,IF($C$4=$D$8,Config!D131,IF($C$4=$F$8,Config!#REF!,Config!#REF!))) -> Alternatieve financiering | C131: Financement alternatif | D131: Alternatieve financiering | G131: D-077
A132: D-078 | B132: =IF($C$4=$C$8,Config!C132,IF($C$4=$D$8,Config!D132,IF($C$4=$F$8,Config!#REF!,Config!#REF!))) -> Toegewezen ontvangsten | C132: Recettes affectées | D132: Toegewezen ontvangsten | G132: D-078
A133: D-079 | B133: =IF($C$4=$C$8,Config!C133,IF($C$4=$D$8,Config!D133,IF($C$4=$F$8,Config!#REF!,Config!#REF!))) -> RSVZ | C133: INASTI | D133: RSVZ | G133: D-079
A134: D-080 | B134: =IF($C$4=$C$8,Config!C134,IF($C$4=$D$8,Config!D134,IF($C$4=$F$8,Config!#REF!,Config!#REF!))) -> Opbrengsten beleggingen | C134: Revenus de placements | D134: Opbrengsten beleggingen | G134: D-080
A135: D-081 | B135: =IF($C$4=$C$8,Config!C135,IF($C$4=$D$8,Config!D135,IF($C$4=$F$8,Config!#REF!,Config!#REF!))) -> Eigen ontvangsten | C135: Recettes propres | D135: Eigen ontvangsten | G135: D-081
A136: D-082 | B136: =IF($C$4=$C$8,Config!C136,IF($C$4=$D$8,Config!D136,IF($C$4=$F$8,Config!#REF!,Config!#REF!))) -> Zelfstandigen | C136: Indépendants | D136: Zelfstandigen | G136: D-082
A137: D-083 | B137: =IF($C$4=$C$8,Config!C137,IF($C$4=$D$8,Config!D137,IF($C$4=$F$8,Config!#REF!,Config!#REF!))) -> RSVZ-Pensioenen | C137: INASTI-Pensions | D137: RSVZ-Pensioenen | G137: D-083
A138: D-084 | B138: =IF($C$4=$C$8,Config!C138,IF($C$4=$D$8,Config!D138,IF($C$4=$F$8,Config!#REF!,Config!#REF!))) -> RSVZ-Gezinsbijslag | C138: INASTI-Prestations familiales | D138: RSVZ-Gezinsbijslag | G138: D-084
A139: D-085 | B139: =IF($C$4=$C$8,Config!C139,IF($C$4=$D$8,Config!D139,IF($C$4=$F$8,Config!#REF!,Config!#REF!))) -> RSVZ-Overbruggingsrecht | C139: INASTI-Droit passerelle | D139: RSVZ-Overbruggingsrecht | G139: D-085
A140: D-086 | B140: =IF($C$4=$C$8,Config!C140,IF($C$4=$D$8,Config!D140,IF($C$4=$F$8,Config!#REF!,Config!#REF!))) -> RSVZ-Palliatieve verzorging | C140: INASTI-Soins palliatifs | D140: RSVZ-Palliatieve verzorging | G140: D-086
A141: D-087 | B141: =IF($C$4=$C$8,Config!C141,IF($C$4=$D$8,Config!D141,IF($C$4=$F$8,Config!#REF!,Config!#REF!))) -> FAMIFED | C141: FAMIFED | D141: FAMIFED | G141: D-087
A142: D-088 | B142: =IF($C$4=$C$8,Config!C142,IF($C$4=$D$8,Config!D142,IF($C$4=$F$8,Config!#REF!,Config!#REF!))) -> Sociale fraude | C142: Fraude sociale | D142: Sociale fraude | G142: D-088
A143: D-089 | B143: =IF($C$4=$C$8,Config!C143,IF($C$4=$D$8,Config!D143,IF($C$4=$F$8,Config!#REF!,Config!#REF!))) -> Van een tak naar het RSVZ-Globaal beheer | C143: D'une branche vers l'INASTI-Gestion globale | D143: Van een tak naar het RSVZ-Globaal beheer | G143: D-089
A144: D-090 | B144: =IF($C$4=$C$8,Config!C144,IF($C$4=$D$8,Config!D144,IF($C$4=$F$8,Config!#REF!,Config!#REF!))) -> Van het RSVZ-Globaal beheer naar een tak | C144: De l'INASTI-Gestion globale vers une branche | D144: Van het RSVZ-Globaal beheer naar een tak | G144: D-090
A145: D-091 | B145: =IF($C$4=$C$8,Config!C145,IF($C$4=$D$8,Config!D145,IF($C$4=$F$8,Config!#REF!,Config!#REF!))) -> RIZIV - Geneeskundige verzorging | C145: INAMI - Soins de santé | D145: RIZIV - Geneeskundige verzorging | G145: D-091
A146: D-092 | B146: =IF($C$4=$C$8,Config!C146,IF($C$4=$D$8,Config!D146,IF($C$4=$F$8,Config!#REF!,Config!#REF!))) -> Ten laste van de VI | C146: À charge des OA | D146: Ten laste van de VI | G146: D-092
A147: D-093 | B147: =IF($C$4=$C$8,Config!C147,IF($C$4=$D$8,Config!D147,IF($C$4=$F$8,Config!#REF!,Config!#REF!))) -> Ten laste van het RIZIV | C147: À charge de l'INAMI | D147: Ten laste van het RIZIV | G147: D-093
A148: D-094 | B148: =IF($C$4=$C$8,Config!C148,IF($C$4=$D$8,Config!D148,IF($C$4=$F$8,Config!#REF!,Config!#REF!))) -> RSZ - Globaal beheer | C148: ONSS - Gestion globale | D148: RSZ - Globaal beheer | G148: D-094
A149: D-095 | B149: =IF($C$4=$C$8,Config!C149,IF($C$4=$D$8,Config!D149,IF($C$4=$F$8,Config!#REF!,Config!#REF!))) -> RSVZ - Globaal beheer | C149: INASTI - Gestion globale | D149: RSVZ - Globaal beheer | G149: D-095
A150: D-096 | B150: =IF($C$4=$C$8,Config!C150,IF($C$4=$D$8,Config!D150,IF($C$4=$F$8,Config!#REF!,Config!#REF!))) -> Overdrachten globaal beheer | C150: Transferts gestions globales | D150: Overdrachten globaal beheer | G150: D-096
A151: D-097 | B151: =IF($C$4=$C$8,Config!C151,IF($C$4=$D$8,Config!D151,IF($C$4=$F$8,Config!#REF!,Config!#REF!))) -> RVP - Bijdragen pensioenen | C151: ONP - Cotisations pensions | D151: RVP - Bijdragen pensioenen | G151: D-097
A152: D-098 | B152: =IF($C$4=$C$8,Config!C152,IF($C$4=$D$8,Config!D152,IF($C$4=$F$8,Config!#REF!,Config!#REF!))) -> RSVZ - Gemengde loopbanen | C152: INASTI - Carrières mixtes | D152: RSVZ - Gemengde loopbanen | G152: D-098
A153: D-099 | B153: =IF($C$4=$C$8,Config!C153,IF($C$4=$D$8,Config!D153,IF($C$4=$F$8,Config!#REF!,Config!#REF!))) -> STAATSSTRUCTUUR | C153: STRUCTURE DE L'ÉTAT | D153: STAATSSTRUCTUUR | E153: Structure of the State | G153: D-099
A154: D-100 | B154: =IF($C$4=$C$8,Config!C154,IF($C$4=$D$8,Config!D154,IF($C$4=$F$8,Config!#REF!,Config!#REF!))) -> GEBRUIK VAN HET BESTAND | C154: UTILISATION DU FICHIER | D154: GEBRUIK VAN HET BESTAND | G154: D-100
A155: D-101 | B155: =IF($C$4=$C$8,Config!C155,IF($C$4=$D$8,Config!D155,IF($C$4=$F$8,Config!#REF!,Config!#REF!))) -> Subsector van de federale overheid | C155: Sous-secteur du pouvoir fédéral | D155: Subsector van de federale overheid | E155: Sous-secteur du pouvoir fédéral | F155: Teilsektoren | G155: D-101
A156: D-102 | B156: =IF($C$4=$C$8,Config!C156,IF($C$4=$D$8,Config!D156,IF($C$4=$F$8,Config!#REF!,Config!#REF!))) -> Subsector van de sociale zekerheid | C156: Sous-secteur de la sécurité sociale | D156: Subsector van de sociale zekerheid | E156: Sous-secteur de la sécurité sociale | F156: Teilsektor Sozialversicherung | G156: D-102
A157: D-103 | B157: =IF($C$4=$C$8,Config!C157,IF($C$4=$D$8,Config!D157,IF($C$4=$F$8,Config!#REF!,Config!#REF!))) -> Subsector van de deelstaten | C157: Sous-secteur des entités fédérées | D157: Subsector van de deelstaten | E157: Sous-secteur des entités fédérées | F157: Sous-secteur des entités fédérées | G157: D-103
A158: D-104 | B158: =IF($C$4=$C$8,Config!C158,IF($C$4=$D$8,Config!D158,IF($C$4=$F$8,Config!#REF!,Config!#REF!))) -> Subsector van de lokale overheden | C158: Sous-secteur des pouvoirs locaux | D158: Subsector van de lokale overheden | E158: Sous-secteur des pouvoirs locaux | F158: Sous-secteur des pouvoirs locaux | G158: D-104
A159: D-105 | B159: =IF($C$4=$C$8,Config!C159,IF($C$4=$D$8,Config!D159,IF($C$4=$F$8,Config!#REF!,Config!#REF!))) -> Initiële begroting | C159: Budget initial | D159: Initiële begroting | E159: Initial budget | G159: D-105
A160: D-106 | B160: =IF($C$4=$C$8,Config!C160,IF($C$4=$D$8,Config!D160,IF($C$4=$F$8,Config!#REF!,Config!#REF!))) -> Aangepaste begroting | C160: Budget ajusté | D160: Aangepaste begroting | E160: Adapted budget | G160: D-106
A161: D-107 | B161: =IF($C$4=$C$8,Config!C161,IF($C$4=$D$8,Config!D161,IF($C$4=$F$8,Config!#REF!,Config!#REF!))) -> Periodieke rapportering van de begrotingsuitvoering van de overheden | C161: Reporting périodique sur l'exécution budgétaire des administrations publiques | D161: Periodieke rapportering van de begrotingsuitvoering van de overheden | G161: D-107
A162: D-108 | B162: =IF($C$4=$C$8,Config!C162,IF($C$4=$D$8,Config!D162,IF($C$4=$F$8,Config!#REF!,Config!#REF!))) -> Richtlijn 2011/85/EU art. 3,2 | C162: Directive 2011/85/EU art. 3,2 | D162: Richtlijn 2011/85/EU art. 3,2 | G162: D-108
A163: D-109 | B163: =IF($C$4=$C$8,Config!C163,IF($C$4=$D$8,Config!D163,IF($C$4=$F$8,Config!#REF!,Config!#REF!))) -> Overdrachten aan hogere overheden | C163: Transferts vers l'autorité supérieure | D163: Overdrachten aan hogere overheden | G163: D-109
A164: D-110 | B164: =IF($C$4=$C$8,Config!C164,IF($C$4=$D$8,Config!D164,IF($C$4=$F$8,Config!#REF!,Config!#REF!))) -> Overdrachten aan provincies en andere overheden | C164: Transferts vers les provinces et les autres pouvoirs publics | D164: Overdrachten aan provincies en andere overheden | G164: D-110
A165: D-111 | B165: =IF($C$4=$C$8,Config!C165,IF($C$4=$D$8,Config!D165,IF($C$4=$F$8,Config!#REF!,Config!#REF!))) -> Overdrachten van hogere overheden | C165: Transferts en provenance de l'autorité supérieure | D165: Overdrachten van hogere overheden | G165: D-111
A166: D-112 | B166: =IF($C$4=$C$8,Config!C166,IF($C$4=$D$8,Config!D166,IF($C$4=$F$8,Config!#REF!,Config!#REF!))) -> Overdrachten van provincies en andere overheden | C166: Transferts en provenance des provinces et d'autres pouvoirs publics | D166: Overdrachten van provincies en andere overheden | G166: D-112
A167: D-113 | B167: =IF($C$4=$C$8,Config!C167,IF($C$4=$D$8,Config!D167,IF($C$4=$F$8,Config!#REF!,Config!#REF!))) -> S1311 | C167: S1311 | D167: S1311 | E167: S1311 | F167: S1311 | G167: D-113
A168: D-114 | B168: =IF($C$4=$C$8,Config!C168,IF($C$4=$D$8,Config!D168,IF($C$4=$F$8,Config!#REF!,Config!#REF!))) -> S1312 | C168: S1312 | D168: S1312 | E168: S1312 | F168: S1312 | G168: D-114
A169: D-115 | B169: =IF($C$4=$C$8,Config!C169,IF($C$4=$D$8,Config!D169,IF($C$4=$F$8,Config!#REF!,Config!#REF!))) -> S1313 | C169: S1313 | D169: S1313 | E169: S1313 | F169: S1313 | G169: D-115
A170: D-116 | B170: =IF($C$4=$C$8,Config!C170,IF($C$4=$D$8,Config!D170,IF($C$4=$F$8,Config!#REF!,Config!#REF!))) -> S1314 | C170: S1314 | D170: S1314 | E170: S1314 | F170: S1314 | G170: D-116
A171: D-117 | B171: =IF($C$4=$C$8,Config!C171,IF($C$4=$D$8,Config!D171,IF($C$4=$F$8,Config!F171,Config!E171))) -> Gemeenten | C171: Communes | D171: Gemeenten | E171: Communes | F171: Gemeinden | G171: D-117
A172: D-118 | B172: =IF($C$4=$C$8,Config!C172,IF($C$4=$D$8,Config!D172,IF($C$4=$F$8,Config!F172,Config!E172))) -> Provincies | C172: Provinces | D172: Provincies | E172: Provinces | F172: Provinzen | G172: D-118
A173: D-119 | B173: =IF($C$4=$C$8,Config!C173,IF($C$4=$D$8,Config!D173,IF($C$4=$F$8,Config!F173,Config!E173))) -> OCMW's | C173: CPAS | D173: OCMW's | E173: PSWC (public social welfare centre) | F173: ÖSHZ | G173: D-119
A174: D-120 | B174: =IF($C$4=$C$8,Config!C174,IF($C$4=$D$8,Config!D174,IF($C$4=$F$8,Config!F174,Config!E174))) -> Toelagen van de overheden | C174: Subventions des pouvoirs publics | D174: Toelagen van de overheden | G174: D-120
A175: D-121 | B175: =IF($C$4=$C$8,Config!C175,IF($C$4=$D$8,Config!D175,IF($C$4=$F$8,Config!F175,Config!E175))) -> Federale overheid | C175: Pouvoir fédéral | D175: Federale overheid | G175: D-121
A176: D-122 | B176: =IF($C$4=$C$8,Config!C176,IF($C$4=$D$8,Config!D176,IF($C$4=$F$8,Config!F176,Config!E176))) -> Gefedereerde entiteiten | C176: Entités fédérées | D176: Gefedereerde entiteiten | G176: D-122
A177: D-123 | B177: =IF($C$4=$C$8,Config!C177,IF($C$4=$D$8,Config!D177,IF($C$4=$F$8,Config!F177,Config!E177))) -> 01-03/ | C177: 01-03/ | D177: 01-03/ | G177: D-123
A178: D-124 | B178: =IF($C$4=$C$8,Config!C178,IF($C$4=$D$8,Config!D178,IF($C$4=$F$8,Config!F178,Config!E178))) -> 04-06/ | C178: 04-06/ | D178: 04-06/ | G178: D-124
A179: D-125 | B179: =IF($C$4=$C$8,Config!C179,IF($C$4=$D$8,Config!D179,IF($C$4=$F$8,Config!F179,Config!E179))) -> 07-09/ | C179: 07-09/ | D179: 07-09/ | G179: D-125
A180: D-126 | B180: =IF($C$4=$C$8,Config!C180,IF($C$4=$D$8,Config!D180,IF($C$4=$F$8,Config!F180,Config!E180))) -> 10-12/ | C180: 10-12/ | D180: 10-12/ | G180: D-126
A181: D-127 | B181: =IF($C$4=$C$8,Config!C181,IF($C$4=$D$8,Config!D181,IF($C$4=$F$8,Config!F181,Config!E181))) -> Niet verdeeld | C181: Non-réparti | D181: Niet verdeeld | G181: D-127
A182: D-128 | B182: =IF($C$4=$C$8,Config!C182,IF($C$4=$D$8,Config!D182,IF($C$4=$F$8,Config!F182,Config!E182))) -> Van HVKZ-Bijdragen naar RSZ-Glob beheer | C182: Du CSPM-Cotisations vers l'ONSS-Gest globale | D182: Van HVKZ-Bijdragen naar RSZ-Glob beheer | G182: D-128
A183: D-129 | B183: =IF($C$4=$C$8,Config!C183,IF($C$4=$D$8,Config!D183,IF($C$4=$F$8,Config!#REF!,Config!#REF!))) -> RSZ - IBF | C183: ONSS - FBI | D183: RSZ - IBF | G183: D-129
A184: D-130 | B184: =IF($C$4=$C$8,Config!C184,IF($C$4=$D$8,Config!D184,IF($C$4=$F$8,Config!#REF!,Config!#REF!))) -> HZIV-Ziekte, Invaliditeit | C184: CAAMI-Maladie, Invalidité | D184: HZIV-Ziekte, Invaliditeit | G184: D-130
A185: D-131 | B185: =IF($C$4=$C$8,Config!C185,IF($C$4=$D$8,Config!D185,IF($C$4=$F$8,Config!#REF!,Config!#REF!))) -> RSZ-Werkloosheid | C185: ONSS-Chômage | D185: RSZ-Werkloosheid | G185: D-131
A186: D-132 | B186: =IF($C$4=$C$8,Config!C186,IF($C$4=$D$8,Config!D186,IF($C$4=$F$8,Config!#REF!,Config!#REF!))) -> Ambtenarenpensioenen | C186: Pensions des fonctionnaires | D186: Ambtenarenpensioenen | G186: D-132
A187: D-133 | B187: =IF($C$4=$C$8,Config!C187,IF($C$4=$D$8,Config!D187,IF($C$4=$F$8,Config!#REF!,Config!#REF!))) -> Openbare sector | C187: Secteur public | D187: Openbare sector | G187: D-133
A188: D-134 | B188: =IF($C$4=$C$8,Config!C188,IF($C$4=$D$8,Config!D188,IF($C$4=$F$8,Config!#REF!,Config!#REF!))) -> Vergoedingspensioenen en oorlogsrenten | C188: Pensions de réparation et de rentes de guerre | D188: Vergoedingspensioenen en oorlogsrenten | G188: D-134
A189: D-135 | B189: =IF($C$4=$C$8,Config!C189,IF($C$4=$D$8,Config!D189,IF($C$4=$F$8,Config!#REF!,Config!#REF!))) -> Arbeidsongevallenrenten | C189: Rentes d'accidents du travail | D189: Arbeidsongevallenrenten | G189: D-135
A190: D-136 | B190: =IF($C$4=$C$8,Config!C190,IF($C$4=$D$8,Config!D190,IF($C$4=$F$8,Config!#REF!,Config!#REF!))) -> Burgerijke oorlogsslachtoffers en slachtoffers van een terreurdaad | C190: Victimes civiles de guerre et victimes d'actes de terrorisme | D190: Burgerijke oorlogsslachtoffers en slachtoffers van een terreurdaad | G190: D-136
A191: D-137 | B191: =IF($C$4=$C$8,Config!C191,IF($C$4=$D$8,Config!D191,IF($C$4=$F$8,Config!#REF!,Config!#REF!))) -> NMBS | C191: SNCB | D191: NMBS | G191: D-137
A192: D-138 | B192: =IF($C$4=$C$8,Config!C192,IF($C$4=$D$8,Config!D192,IF($C$4=$F$8,Config!#REF!,Config!#REF!))) -> Parastatale rustpensioenen | C192: Pensions de retraite parastatales | D192: Parastatale rustpensioenen | G192: D-138
A193: D-139 | B193: =IF($C$4=$C$8,Config!C193,IF($C$4=$D$8,Config!D193,IF($C$4=$F$8,Config!#REF!,Config!#REF!))) -> Rechtstreekse overeenkomsten | C193: Conventions directes | D193: Rechtstreekse overeenkomsten | G193: D-139
A194: ="D-"&I194 -> D-140 | B194: =IF($C$4=$C$8,Config!C194,IF($C$4=$D$8,Config!D194,IF($C$4=$F$8,Config!#REF!,Config!#REF!))) -> Overeenkomsten met voorzorgsinstellingen | C194: Conventions avec institutions de prévoyance | D194: Overeenkomsten met voorzorgsinstellingen | G194: D-140 | I194: 140
A195: ="D-"&I195 -> D-141 | B195: =IF($C$4=$C$8,Config!C195,IF($C$4=$D$8,Config!D195,IF($C$4=$F$8,Config!#REF!,Config!#REF!))) -> Gesolidariseerd pensioenfonds van de lokale besturen | C195: Fonds de pension solidarisé des pouvoirs locaux | D195: Gesolidariseerd pensioenfonds van de lokale besturen | G195: D-141 | I195: =I194+1 -> 141
A196: D-142 | B196: =IF($C$4=$C$8,Config!C196,IF($C$4=$D$8,Config!D196,IF($C$4=$F$8,Config!#REF!,Config!#REF!))) -> Fonds voor de pensioenen van de federale politie | C196: Fonds des pensions de la police fédérale | D196: Fonds voor de pensioenen van de federale politie | G196: D-142 | I196: =I195+1 -> 142
A197: D-143 | B197: =IF($C$4=$C$8,Config!C197,IF($C$4=$D$8,Config!D197,IF($C$4=$F$8,Config!#REF!,Config!#REF!))) -> Naar de FPD | C197: Vers le SFP | D197: Naar de FPD | G197: D-143 | I197: 143
A198: D-144 | B198: =IF($C$4=$C$8,Config!C198,IF($C$4=$D$8,Config!D198,IF($C$4=$F$8,Config!#REF!,Config!#REF!))) -> Naar derden | C198: Vers des tiers | D198: Naar derden | G198: D-144 | I198: 144
A199: D-145 | B199: =IF($C$4=$C$8,Config!C199,IF($C$4=$D$8,Config!D199,IF($C$4=$F$8,Config!#REF!,Config!#REF!))) -> Pensioenaandelen-wet 14.04.1965 | C199: Quotes-parts pension-loi 14.04.1965 | D199: Pensioenaandelen-wet 14.04.1965 | G199: D-145 | I199: 145
A200: D-146 | B200: =IF($C$4=$C$8,Config!C200,IF($C$4=$D$8,Config!D200,IF($C$4=$F$8,Config!#REF!,Config!#REF!))) -> Van RSZ naar FPD | C200: De l'ONSS vers le SFP | D200: Van RSZ naar FPD | G200: D-146 | I200: 146
A201: D-147 | B201: =IF($C$4=$C$8,Config!C201,IF($C$4=$D$8,Config!D201,IF($C$4=$F$8,Config!#REF!,Config!#REF!))) -> Van FPD | C201: Du SFP | D201: Van FPD | G201: D-147 | I201: 147
A202: D-148 | B202: =IF($C$4=$C$8,Config!C202,IF($C$4=$D$8,Config!D202,IF($C$4=$F$8,Config!#REF!,Config!#REF!))) -> Van RSZ-GFB | C202: De l'ONSS-GFG | D202: Van RSZ-GFB | G202: D-148 | I202: 148
A203: D-149 | B203: =IF($C$4=$C$8,Config!C203,IF($C$4=$D$8,Config!D203,IF($C$4=$F$8,Config!#REF!,Config!#REF!))) -> Van derden | C203: De tiers | D203: Van derden | G203: D-149 | I203: 149
... 57 more rows

Sheet ReadMe (hidden)
B2: =VLOOKUP("D-107",LIST_DESCRIPTIONS,2,FALSE) -> Periodieke rapportering van de begrotingsuitvoering van de overheden
B3: =VLOOKUP("D-108",LIST_DESCRIPTIONS,2,FALSE) -> Richtlijn 2011/85/EU art. 3,2
B5: =VLOOKUP("D-099",LIST_DESCRIPTIONS,2,FALSE) -> STAATSSTRUCTUUR | D5: =VLOOKUP("D-100",LIST_DESCRIPTIONS,2,FALSE) -> GEBRUIK VAN HET BESTAND
B7: =VLOOKUP("D-101",LIST_DESCRIPTIONS,2,FALSE) -> Subsector van de federale overheid | D7: =Config!B260 -> Om het begrotingstoezicht op de Lidstaten te versterken heeft de Europese Unie richtlijn 2011/85/EU goedgekeurd. Artikel 3.2 van deze richtlijn bepaalt dat de Lidstaten verplicht zijn vanaf 2014 regelmatig gegevens te publiceren met betrekking tot de uitvoering van de begroting van de verschillende overheden. Deze begrotingsgegevens moeten bestaan uit een samenvatting van de ontvangsten, de uitgaven en het saldo. Zij moeten maandelijks gepubliceerd worden voor de federale overheid, de Gewesten, de Gemeenschappen, de Gemeenschapscommissies en de subsector van de sociale zekerheid en driemaandelijks voor de lokale overheden. De rapportering van de gegevens voor België wordt uitgevoerd via dit bestand: - Onder het tabblad "ReadMe" wordt de structuur van de Belgische Staat overgenomen, die de basis vormt van deze rapportering ; - Onder het tabblad "Data" worden de gegevens voor de uitvoering van begroting weergegeven in functie van het geselecteerde jaar en het geselecteerde overheidsniveau.
B8: =VLOOKUP("CS",LIST_AUTHORITIES,2,FALSE) -> FEDERALE OVERHEID
B10: =VLOOKUP("D-102",LIST_DESCRIPTIONS,2,FALSE) -> Subsector van de sociale zekerheid
B11: =VLOOKUP("SS",LIST_AUTHORITIES,2,FALSE) -> SOCIALE ZEKERHEID
B13: =VLOOKUP("D-103",LIST_DESCRIPTIONS,2,FALSE) -> Subsector van de deelstaten
B14: =VLOOKUP("FlC",LIST_AUTHORITIES,2,FALSE) -> VLAAMSE GEMEENSCHAP
B15: =VLOOKUP("FrC",LIST_AUTHORITIES,2,FALSE) -> FRANSE GEMEENSCHAP
B16: =VLOOKUP("GC",LIST_AUTHORITIES,2,FALSE) -> DUITSTALIGE GEMEENSCHAP
B17: =VLOOKUP("WR",LIST_AUTHORITIES,2,FALSE) -> WAALS GEWEST
B18: =VLOOKUP("BCR",LIST_AUTHORITIES,2,FALSE) -> BRUSSELS HOOFDSTEDELIJK GEWEST
B19: =VLOOKUP("FrCC",LIST_AUTHORITIES,2,FALSE) -> FRANSE GEMEENSCHAPSCOMMISSIE
B20: =VLOOKUP("FlCC",LIST_AUTHORITIES,2,FALSE) -> VLAAMSE GEMEENSCHAPSCOMMISSIE
B21: =VLOOKUP("CCC",LIST_AUTHORITIES,2,FALSE) -> GEMEENSCHAPPELIJKE GEMEENSCHAPSCOMMISSIE
B23: =VLOOKUP("D-104",LIST_DESCRIPTIONS,2,FALSE) -> Subsector van de lokale overheden
B24: =VLOOKUP("D-117",LIST_DESCRIPTIONS,2,FALSE) -> Gemeenten
B25: =VLOOKUP("C-Fl",LIST_AUTHORITIES,2,FALSE) -> VLAAMSE GEMEENTEN
B26: =VLOOKUP("C-W",LIST_AUTHORITIES,2,FALSE) -> WAALSE GEMEENTEN
B27: =VLOOKUP("C-B",LIST_AUTHORITIES,2,FALSE) -> BRUSSELSE GEMEENTEN
B28: =VLOOKUP("C-G",LIST_AUTHORITIES,2,FALSE) -> DUITSTALIGE GEMEENTEN
B29: =VLOOKUP("D-118",LIST_DESCRIPTIONS,2,FALSE) -> Provincies
B30: =VLOOKUP("P-Fl",LIST_AUTHORITIES,2,FALSE) -> VLAAMSE PROVINCIES
B31: =VLOOKUP("P-W",LIST_AUTHORITIES,2,FALSE) -> WAALSE PROVINCIES
B32: =VLOOKUP("D-119",LIST_DESCRIPTIONS,2,FALSE) -> OCMW's
B33: =VLOOKUP("PSWC-Fl",LIST_AUTHORITIES,2,FALSE) -> VLAAMSE OCMW'S
B34: =VLOOKUP("PSWC-W",LIST_AUTHORITIES,2,FALSE) -> WAALSE OCMW'S
B35: =VLOOKUP("PSWC-B",LIST_AUTHORITIES,2,FALSE) -> BRUSSELSE OCMW'S
B36: =VLOOKUP("PSWC-G",LIST_AUTHORITIES,2,FALSE) -> DUITSTALIGE OCMW'S
B37: =VLOOKUP("PZ",LIST_AUTHORITIES,2,FALSE) -> POLITIEZONES
B38: =VLOOKUP("RZ",LIST_AUTHORITIES,2,FALSE) -> HULPVERLENINGSZONES

Sheet Data (hidden)
A1: 1 | F1: Langue / taal: | H1: =Config!$B$108 -> Jaar: | J1: =IF(Config!C5=Config!$B$169,Config!$B$71,Config!$B$70) -> Entiteit:
D2: =IF(Config!C5=Config!$B$169,Config!$B$71,Config!$B$70)&VLOOKUP(Config!$C$2,Config!A10:B31,2,FALSE) -> Entiteit: FEDERALE OVERHEID
D3: =Config!$B$108 & Config!C3 -> Jaar: 2022
D4: =Config!$B$72 & Config!$B$73 -> Munteenheid: duizend EUR
E5: =COLUMN(AllData!C1) -> 3 | F5: =COLUMN(AllData!D1) -> 4 | G5: =COLUMN(AllData!E1) -> 5 | H5: =COLUMN(AllData!F1) -> 6 | I5: =COLUMN(AllData!G1) -> 7 | J5: =COLUMN(AllData!H1) -> 8 | K5: =COLUMN(AllData!I1) -> 9 | L5: =COLUMN(AllData!J1) -> 10 | M5: =COLUMN(AllData!K1) -> 11 | N5: =COLUMN(AllData!L1) -> 12 | O5: =COLUMN(AllData!M1) -> 13 | P5: =COLUMN(AllData!N1) -> 14 | Q5: =COLUMN(AllData!O1) -> 15
D7: =VLOOKUP("D-002",LIST_DESCRIPTIONS,2,FALSE) -> Centrale overheid
D8: =VLOOKUP("D-003",LIST_DESCRIPTIONS,2,FALSE) -> Omschrijving | E8: =VLOOKUP("D-004",LIST_DESCRIPTIONS,2,FALSE) -> Januari | F8: =VLOOKUP("D-005",LIST_DESCRIPTIONS,2,FALSE) -> Februari | G8: =VLOOKUP("D-006",LIST_DESCRIPTIONS,2,FALSE) -> Maart | H8: =VLOOKUP("D-007",LIST_DESCRIPTIONS,2,FALSE) -> April | I8: =VLOOKUP("D-008",LIST_DESCRIPTIONS,2,FALSE) -> Mei | J8: =VLOOKUP("D-009",LIST_DESCRIPTIONS,2,FALSE) -> Juni | K8: =VLOOKUP("D-010",LIST_DESCRIPTIONS,2,FALSE) -> Juli | L8: =VLOOKUP("D-011",LIST_DESCRIPTIONS,2,FALSE) -> Augustus | M8: =VLOOKUP("D-012",LIST_DESCRIPTIONS,2,FALSE) -> September | N8: =VLOOKUP("D-013",LIST_DESCRIPTIONS,2,FALSE) -> Oktober | O8: =VLOOKUP("D-014",LIST_DESCRIPTIONS,2,FALSE) -> November | P8: =VLOOKUP("D-015",LIST_DESCRIPTIONS,2,FALSE) -> December | Q8: =VLOOKUP("D-051",LIST_DESCRIPTIONS,2,FALSE) -> Totaal
D9: =VLOOKUP("D-020",LIST_DESCRIPTIONS,2,FALSE) -> Uitgaven
A10: D-021 | B10: =Config!$C$3&"_"&Config!$C$2&"_"&Config!$A$37&"_"&Config!$A$39&"_"&Data!A10 -> 2022_CS_CA_EXP_D-021 | D10: =VLOOKUP(A10,LIST_DESCRIPTIONS,2,FALSE) -> Diversen | E10: =VLOOKUP($B10,rng_input,E$5,FALSE) -> 0 | F10: 28.05648 | G10: 16.04919 | H10: 345.37849 | I10: 4.71731 | J10: 12.0602 | K10: 0 | L10: 44.74881 | M10: 11.13609 | N10: 13.57286 | O10: 5050.7354 | P10: 1009.94656 | Q10: 6536.40139
A11: D-022 | B11: =Config!$C$3&"_"&Config!$C$2&"_"&Config!$A$37&"_"&Config!$A$39&"_"&Data!A11 -> 2022_CS_CA_EXP_D-022 | D11: Lonen en sociale lasten | E11: 471504.2664 | F11: 489621.6472 | G11: 518033.9973 | H11: 503622.0194 | I11: 753156.1615 | J11: 515662.7643 | K11: 519205.466 | L11: 520920.2736 | M11: 544644.9862 | N11: 525960.8501 | O11: 530934.7441 | P11: 808585.543 | Q11: 6701852.719
A12: D-023 | B12: =Config!$C$3&"_"&Config!$C$2&"_"&Config!$A$37&"_"&Config!$A$39&"_"&Data!A12 -> 2022_CS_CA_EXP_D-023 | D12: Lopende uitgaven voor goederen en diensten | E12: 67606.05292 | F12: 233946.1776 | G12: 299029.1987 | H12: 516595.8231 | I12: -22859.79306 | J12: 339260.4248 | K12: 195693.9959 | L12: 230357.4796 | M12: 235687.1406 | N12: 320407.648 | O12: 275539.8535 | P12: 1025768.066 | Q12: 3717032.068
A13: D-024 | B13: =Config!$C$3&"_"&Config!$C$2&"_"&Config!$A$37&"_"&Config!$A$39&"_"&Data!A13 -> 2022_CS_CA_EXP_D-024 | D13: Interestlasten | E13: 582455.4325 | F13: 532414.621 | G13: 607001.5462 | H13: 538239.0006 | I13: 571264.8888 | J13: 567617.5897 | K13: 586951.8143 | L13: 585555.293 | M13: 567751.5545 | N13: 578363.8117 | O13: 579508.6464 | P13: 625399.9509 | Q13: 6922524.15
A14: D-025 | B14: =Config!$C$3&"_"&Config!$C$2&"_"&Config!$A$37&"_"&Config!$A$39&"_"&Data!A14 -> 2022_CS_CA_EXP_D-025 | D14: Overdrachten aan andere sectoren (gezinnen, bedrijven,…) | E14: 1544873.175 | F14: 966280.4214 | G14: 917424.1626 | H14: 999792.0777 | I14: 842908.5738 | J14: 993014.1908 | K14: 852124.8272 | L14: 811666.7686 | M14: 823619.7234 | N14: 939790.858 | O14: 990324.0643 | P14: 1458781.763 | Q14: 12140600.61
A15: D-026 | B15: =Config!$C$3&"_"&Config!$C$2&"_"&Config!$A$37&"_"&Config!$A$39&"_"&Data!A15 -> 2022_CS_CA_EXP_D-026 | D15: Overdrachten aan de te consolideren instellingen | E15: 392051.1422 | F15: 432325.449 | G15: 532185.5301 | H15: 624147.7136 | I15: 587491.9532 | J15: 720121.1911 | K15: 76614.55149 | L15: 304531.8013 | M15: 677467.6523 | N15: 275001.1571 | O15: 1074754.3 | P15: 1482394.166 | Q15: 7179086.607
A16: D-027 | B16: =Config!$C$3&"_"&Config!$C$2&"_"&Config!$A$37&"_"&Config!$A$39&"_"&Data!A16 -> 2022_CS_CA_EXP_D-027 | D16: Overdrachten aan de sociale zekerheid | E16: 3934559.75 | F16: 1913396.332 | G16: 1980866.639 | H16: 1887519.297 | I16: 1934770.718 | J16: 1773906.381 | K16: 1811832.281 | L16: 1748981.609 | M16: 1821902.569 | N16: 1586806.957 | O16: 939254.6157 | P16: 1558019.669 | Q16: 22891816.82
A17: D-028 | B17: =Config!$C$3&"_"&Config!$C$2&"_"&Config!$A$37&"_"&Config!$A$39&"_"&Data!A17 -> 2022_CS_CA_EXP_D-028 | D17: Overdrachten aan lokale overheden | E17: 363353.944 | F17: 182258.7879 | G17: 257397.7178 | H17: 229434.3328 | I17: 194812.2819 | J17: 260706.1623 | K17: 326898.6284 | L17: 234471.6851 | M17: 395216.9106 | N17: 229475.9047 | O17: 295476.0357 | P17: 315136.7874 | Q17: 3284639.179
A18: D-029 | B18: =Config!$C$3&"_"&Config!$C$2&"_"&Config!$A$37&"_"&Config!$A$39&"_"&Data!A18 -> 2022_CS_CA_EXP_D-029 | D18: Overdrachten aan het gesubsidieerd autonoom onderwijs | E18: 130 | F18: 0 | G18: 5 | H18: 0 | I18: 0 | J18: 0 | K18: 0 | L18: 0 | M18: 0 | N18: 0 | O18: 0 | P18: 0 | Q18: 135
A19: D-030 | B19: =Config!$C$3&"_"&Config!$C$2&"_"&Config!$A$37&"_"&Config!$A$39&"_"&Data!A19 -> 2022_CS_CA_EXP_D-030 | D19: Overdrachten aan andere institutionele groepen | E19: 2388191.5 | F19: 1196192.067 | G19: 1187766.953 | H19: 1190177.34 | I19: 1201623.504 | J19: 1187223.55 | K19: 1725555.176 | L19: 1256413.47 | M19: 1506749.7 | N19: 1278662.737 | O19: 1242845.693 | P19: 222622.7108 | Q19: 15584024.4
A20: D-031 | B20: =Config!$C$3&"_"&Config!$C$2&"_"&Config!$A$37&"_"&Config!$A$39&"_"&Data!A20 -> 2022_CS_CA_EXP_D-031 | D20: Investeringen | E20: =VLOOKUP($B20,rng_input,E$5,FALSE) -> 21453.97541 | F20: 15810.29177 | G20: 31540.13377 | H20: 52526.25503 | I20: 54400.94772 | J20: 179649.3944 | K20: 60636.0321 | L20: 34492.7671 | M20: 191242.3899 | N20: 51238.84941 | O20: 77610.40432 | P20: 849853.9083 | Q20: 1620455.349
A21: D-032 | B21: =Config!$C$3&"_"&Config!$C$2&"_"&Config!$A$37&"_"&Config!$A$39&"_"&Data!A21 -> 2022_CS_CA_EXP_D-032 | D21: Totaal buiten financiële en interne verrichtingen | E21: 9766179.238 | F21: 5962273.852 | G21: 6331266.928 | H21: 6542399.237 | I21: 6117573.953 | J21: 6537173.709 | K21: 6155512.772 | L21: 5727435.896 | M21: 6764293.763 | N21: 5785722.346 | O21: 6011299.092 | P21: 8347572.511 | Q21: 80048703.3
A22: D-033 | B22: =Config!$C$3&"_"&Config!$C$2&"_"&Config!$A$37&"_"&Config!$A$39&"_"&Data!A22 -> 2022_CS_CA_EXP_D-033 | D22: Kredietverleningen, deelnemingen en andere financiële producten | E22: 180941.4074 | F22: 137384.6066 | G22: 378440.343 | H22: 119818.8595 | I22: 660360.3407 | J22: 511139.6018 | K22: 71673.97777 | L22: 92453.60633 | M22: 249647.9565 | N22: 75995.36147 | O22: 84936.71871 | P22: 321717.4751 | Q22: 2884510.255
A23: D-034 | B23: =Config!$C$3&"_"&Config!$C$2&"_"&Config!$A$37&"_"&Config!$A$39&"_"&Data!A23 -> 2022_CS_CA_EXP_D-034 | D23: Financiële verrichtingen betreffende de schuld | E23: 41.89688 | F23: 16.97489 | G23: 14089438.83 | H23: 55234.25046 | I23: 80506.88586 | J23: 29178.9448 | K23: 7.33318 | L23: 1560.79518 | M23: 16537564.26 | N23: 1636.70884 | O23: 133.02041 | P23: 62.19136 | Q23: 30795382.09
A24: D-035 | B24: =Config!$C$3&"_"&Config!$C$2&"_"&Config!$A$37&"_"&Config!$A$39&"_"&Data!A24 -> 2022_CS_CA_EXP_D-035 | D24: Interne verrichtingen | E24: 52.41484 | F24: 99.16694 | G24: 13.77766 | H24: 13.53405 | I24: 56.77177 | J24: 34.7635 | K24: 26.05379 | L24: 38.12181 | M24: 138.70638 | N24: 53.10662 | O24: 120.92755 | P24: 156.16429 | Q24: 803.5092
A25: D-036 | B25: =Config!$C$3&"_"&Config!$C$2&"_"&Config!$A$37&"_"&Config!$A$39&"_"&Data!A25 -> 2022_CS_CA_EXP_D-036 | D25: Algemeen totaal van de uitgaven | E25: 9947214.957 | F25: 6099774.6 | G25: 20799159.88 | H25: 6717465.881 | I25: 6858497.951 | J25: 7077527.019 | K25: 6227220.137 | L25: 5821488.419 | M25: 23551644.69 | N25: 5863407.523 | O25: 6096489.759 | P25: 8669508.342 | Q25: 113729399.2
D26: =VLOOKUP("D-037",LIST_DESCRIPTIONS,2,FALSE) -> Ontvangsten
A27: D-021 | B27: =Config!$C$3&"_"&Config!$C$2&"_"&Config!$A$37&"_"&Config!$A$40&"_"&Data!A27 -> 2022_CS_CA_REV_D-021 | D27: =VLOOKUP(A27,LIST_DESCRIPTIONS,2,FALSE) -> Diversen | E27: =VLOOKUP($B27,rng_input,E$5,FALSE) -> 7843.02418 | F27: 15607.89617 | G27: 21091.92143 | H27: 20348.57409 | I27: 11135.13651 | J27: 12148.81676 | K27: 10542.9266 | L27: 653218.3831 | M27: 16870.83144 | N27: 25939.63517 | O27: 6761.31777 | P27: 14055.10412 | Q27: 815563.5673
A28: D-038 | B28: =Config!$C$3&"_"&Config!$C$2&"_"&Config!$A$37&"_"&Config!$A$40&"_"&Data!A28 -> 2022_CS_CA_REV_D-038 | D28: Lopende ontvangsten van goederen en diensten | E28: 35141.0779 | F28: 40487.12137 | G28: 43989.69069 | H28: 42616.57529 | I28: 64374.79986 | J28: 54937.28527 | K28: 39084.74675 | L28: 34691.54676 | M28: 45091.74093 | N28: 40303.56642 | O28: 43747.35203 | P28: 960837.919 | Q28: 1445303.422
A29: D-039 | B29: =Config!$C$3&"_"&Config!$C$2&"_"&Config!$A$37&"_"&Config!$A$40&"_"&Data!A29 -> 2022_CS_CA_REV_D-039 | D29: Inkomsten uit eigendom | E29: 20391.66 | F29: 7310.98139 | G29: 160696.9336 | H29: 167364.0397 | I29: 440020.8506 | J29: 32494.74632 | K29: 14226.56415 | L29: 6724.22658 | M29: -1629.772 | N29: -9416.48826 | O29: 5998.02657 | P29: 120060.1182 | Q29: 964241.8869
A30: D-040 | B30: =Config!$C$3&"_"&Config!$C$2&"_"&Config!$A$37&"_"&Config!$A$40&"_"&Data!A30 -> 2022_CS_CA_REV_D-040 | D30: Fiscale ontvangsten | E30: 8225723.193 | F30: 1382291.65 | G30: 1897061.384 | H30: 11410285.84 | I30: 2571701.58 | J30: 6664640.537 | K30: 9466220.036 | L30: 371980.4502 | M30: 2065409.081 | N30: 6318708.82 | O30: 2582924.646 | P30: 4723997.341 | Q30: 57680944.56
A31: D-041 | B31: =Config!$C$3&"_"&Config!$C$2&"_"&Config!$A$37&"_"&Config!$A$40&"_"&Data!A31 -> 2022_CS_CA_REV_D-041 | D31: Overdrachten van andere sectoren (gezinnen, bedrijven,…) | E31: 51034.32521 | F31: 79113.18661 | G31: 73312.99675 | H31: 272298.0926 | I31: 74971.14723 | J31: 62540.78249 | K31: 78826.08383 | L31: 46912.28789 | M31: 65759.78151 | N31: 52522.3099 | O31: 69072.64685 | P31: 86760.99898 | Q31: 1013124.64
A32: D-042 | B32: =Config!$C$3&"_"&Config!$C$2&"_"&Config!$A$37&"_"&Config!$A$40&"_"&Data!A32 -> 2022_CS_CA_REV_D-042 | D32: Overdrachten van de te consolideren instellingen | E32: 10377.91623 | F32: 778.21152 | G32: 7981.24102 | H32: 1221.19299 | I32: 5.4477 | J32: 37554.755 | K32: 95.24569 | L32: 16.90332 | M32: 10.82101 | N32: 2.53602 | O32: 109.70117 | P32: 36977.29236 | Q32: 95131.26403
A33: D-043 | B33: =Config!$C$3&"_"&Config!$C$2&"_"&Config!$A$37&"_"&Config!$A$40&"_"&Data!A33 -> 2022_CS_CA_REV_D-043 | D33: Overdrachten van de sociale zekerheid | E33: 144976.4285 | F33: 150.87587 | G33: 0 | H33: 0 | I33: 124.6146 | J33: 0 | K33: 24305.73477 | L33: 133.0853 | M33: 0 | N33: 0 | O33: 137.51037 | P33: 0 | Q33: 169828.2494
A34: D-044 | B34: =Config!$C$3&"_"&Config!$C$2&"_"&Config!$A$37&"_"&Config!$A$40&"_"&Data!A34 -> 2022_CS_CA_REV_D-044 | D34: Overdrachten van lokale overheden | E34: 5741.29632 | F34: 0 | G34: 0 | H34: 2.9088 | I34: 36.97663 | J34: 436.96842 | K34: 0 | L34: 33.56398 | M34: 0 | N34: 736.89 | O34: 0 | P34: 0 | Q34: 6988.60415
A35: D-045 | B35: =Config!$C$3&"_"&Config!$C$2&"_"&Config!$A$37&"_"&Config!$A$40&"_"&Data!A35 -> 2022_CS_CA_REV_D-045 | D35: Overdrachten van andere institutionele groepen | E35: 0 | F35: 0 | G35: 0 | H35: 0 | I35: 0 | J35: 0 | K35: 0 | L35: 0 | M35: 440.96819 | N35: 250 | O35: 0 | P35: 250 | Q35: 940.96819
A36: D-046 | B36: =Config!$C$3&"_"&Config!$C$2&"_"&Config!$A$37&"_"&Config!$A$40&"_"&Data!A36 -> 2022_CS_CA_REV_D-046 | D36: Desinvesteringen | E36: 6826.2161 | F36: 5494.31449 | G36: 32476.22292 | H36: 4142.82183 | I36: 1038.40702 | J36: 3833.33083 | K36: 1118.30799 | L36: 6392.0668 | M36: 201365.7275 | N36: 19502.86664 | O36: 518.26521 | P36: 28839.34139 | Q36: 311547.8887
A37: D-032 | B37: =Config!$C$3&"_"&Config!$C$2&"_"&Config!$A$37&"_"&Config!$A$40&"_"&Data!A37 -> 2022_CS_CA_REV_D-032 | D37: Totaal buiten financiële en interne verrichtingen | E37: =VLOOKUP($B37,rng_input,E$5,FALSE) -> 8508055.137 | F37: 1531234.237 | G37: 2236610.39 | H37: 11918280.04 | I37: 3163408.96 | J37: 6868587.222 | K37: 9634419.646 | L37: 1120102.514 | M37: 2393319.179 | N37: 6448550.136 | O37: 2709269.466 | P37: 5971778.115 | Q37: 62503615.05
A38: D-047 | B38: =Config!$C$3&"_"&Config!$C$2&"_"&Config!$A$37&"_"&Config!$A$40&"_"&Data!A38 -> 2022_CS_CA_REV_D-047 | D38: Kredietaflossingen, vereffeningen van deelnemingen en andere financiële producten | E38: 26632.58032 | F38: 305.04786 | G38: 1349021.048 | H38: 30130.77379 | I38: 44254.58355 | J38: 179529.8404 | K38: 68837.69676 | L38: 411.60516 | M38: 1945234.475 | N38: 5446.79767 | O38: 31864.09928 | P38: 760545.4712 | Q38: 4442214.019
A39: D-034 | B39: =Config!$C$3&"_"&Config!$C$2&"_"&Config!$A$37&"_"&Config!$A$40&"_"&Data!A39 -> 2022_CS_CA_REV_D-034 | D39: Financiële verrichtingen betreffende de schuld | E39: 5000000.007 | F39: 5000000.014 | G39: 3122250.007 | H39: 5051631.94 | I39: 4967695.01 | J39: 5387994.112 | K39: 4110517 | L39: 2420250 | M39: 5021115.027 | N39: 2887003.01 | O39: 500019.436 | P39: 799567.54 | Q39: 44268043.1
A40: D-035 | B40: =Config!$C$3&"_"&Config!$C$2&"_"&Config!$A$37&"_"&Config!$A$40&"_"&Data!A40 -> 2022_CS_CA_REV_D-035 | D40: Interne verrichtingen | E40: 2292.74352 | F40: 2933.34733 | G40: 2177.61881 | H40: 1466.83175 | I40: 1187.2293 | J40: 928.21648 | K40: 823.1724 | L40: 1226.99575 | M40: 2324.14584 | N40: 1148.19373 | O40: 1169.683 | P40: -5691.28464 | Q40: 11986.89327
A41: D-048 | B41: =Config!$C$3&"_"&Config!$C$2&"_"&Config!$A$37&"_"&Config!$A$40&"_"&Data!A41 -> 2022_CS_CA_REV_D-048 | D41: Algemeen totaal van de ontvangsten | E41: 13536980.47 | F41: 6534472.646 | G41: 6710059.064 | H41: 17001509.59 | I41: 8176545.783 | J41: 12437039.39 | K41: 13814597.52 | L41: 3541991.115 | M41: 9361992.827 | N41: 9342148.137 | O41: 3242322.685 | P41: 7526199.842 | Q41: 111225859.1
A42: D-049 | B42: =Config!$C$3&"_"&Config!$C$2&"_"&Config!$A$37&"_"&Config!$A$41&"_"&Data!A42 -> 2022_CS_CA_BAL_D-049 | D42: Saldo buiten financiële en interne verrichtingen | E42: -1258124.101 | F42: -4431039.615 | G42: -4094656.538 | H42: 5375880.808 | I42: -2954164.993 | J42: 331413.5132 | K42: 3478906.874 | L42: -4607333.382 | M42: -4370974.584 | N42: 662827.7892 | O42: -3302029.626 | P42: -2375794.396 | Q42: -17545088.25
A43: D-050 | B43: =Config!$C$3&"_"&Config!$C$2&"_"&Config!$A$37&"_"&Config!$A$41&"_"&Data!A43 -> 2022_CS_CA_BAL_D-050 | D43: Saldo | E43: 3589765.511 | F43: 434698.046 | G43: -14089100.81 | H43: 10284043.71 | I43: 1318047.832 | J43: 5359512.372 | K43: 7587377.379 | L43: -2279497.304 | M43: -14189651.86 | N43: 3478740.614 | O43: -2854167.074 | P43: -1143308.5 | Q43: -2503540.091
D46: =VLOOKUP("D-052",LIST_DESCRIPTIONS,2,FALSE) -> Instellingen van de consolidatieperimeter
D47: =VLOOKUP("D-003",LIST_DESCRIPTIONS,2,FALSE) -> Omschrijving | E47: =VLOOKUP("D-004",LIST_DESCRIPTIONS,2,FALSE) -> Januari | F47: =VLOOKUP("D-005",LIST_DESCRIPTIONS,2,FALSE) -> Februari | G47: =VLOOKUP("D-006",LIST_DESCRIPTIONS,2,FALSE) -> Maart | H47: =VLOOKUP("D-007",LIST_DESCRIPTIONS,2,FALSE) -> April | I47: =VLOOKUP("D-008",LIST_DESCRIPTIONS,2,FALSE) -> Mei | J47: =VLOOKUP("D-009",LIST_DESCRIPTIONS,2,FALSE) -> Juni | K47: =VLOOKUP("D-010",LIST_DESCRIPTIONS,2,FALSE) -> Juli | L47: =VLOOKUP("D-011",LIST_DESCRIPTIONS,2,FALSE) -> Augustus | M47: =VLOOKUP("D-012",LIST_DESCRIPTIONS,2,FALSE) -> September | N47: =VLOOKUP("D-013",LIST_DESCRIPTIONS,2,FALSE) -> Oktober | O47: =VLOOKUP("D-014",LIST_DESCRIPTIONS,2,FALSE) -> November | P47: =VLOOKUP("D-015",LIST_DESCRIPTIONS,2,FALSE) -> December | Q47: =VLOOKUP("D-051",LIST_DESCRIPTIONS,2,FALSE) -> Totaal
D48: =VLOOKUP("D-020",LIST_DESCRIPTIONS,2,FALSE) -> Uitgaven
A49: D-021 | B49: =Config!$C$3&"_"&Config!$C$2&"_"&Config!$A$38&"_"&Config!$A$39&"_"&Data!A49 -> 2022_CS_INS_EXP_D-021 | D49: =VLOOKUP(A49,LIST_DESCRIPTIONS,2,FALSE) -> Diversen | E49: =VLOOKUP($B49,rng_input,E$5,FALSE) -> 494.869 | F49: 1068.068 | G49: 2974.87 | H49: 32957.58437 | I49: 670.537 | J49: 39.14 | K49: 80.23132 | L49: 12.74731 | M49: 73.096 | N49: 10.665 | O49: 0 | P49: 108.279 | Q49: 38490.087
A50: D-022 | B50: =Config!$C$3&"_"&Config!$C$2&"_"&Config!$A$38&"_"&Config!$A$39&"_"&Data!A50 -> 2022_CS_INS_EXP_D-022 | D50: Lonen en sociale lasten | E50: 128764.873 | F50: 139538.1506 | G50: 153370.9117 | H50: 157836.2343 | I50: 160891.2299 | J50: 147964.677 | K50: 150586.7902 | L50: 142562.8848 | M50: 152631.6708 | N50: 213403.2903 | O50: 154440.2482 | P50: 277458.9347 | Q50: 1979449.896
A51: D-023 | B51: =Config!$C$3&"_"&Config!$C$2&"_"&Config!$A$38&"_"&Config!$A$39&"_"&Data!A51 -> 2022_CS_INS_EXP_D-023 | D51: Lopende uitgaven voor goederen en diensten | E51: 109556.5964 | F51: 102919.9198 | G51: 163327.1345 | H51: 151839.4323 | I51: 152707.5982 | J51: 175040.3307 | K51: 130483.9139 | L51: 154830.4873 | M51: 152160.8919 | N51: 663061.8629 | O51: 181983.3091 | P51: 320096.7999 | Q51: 2458008.277
A52: D-024 | B52: =Config!$C$3&"_"&Config!$C$2&"_"&Config!$A$38&"_"&Config!$A$39&"_"&Data!A52 -> 2022_CS_INS_EXP_D-024 | D52: Interestlasten | E52: 7193.8945 | F52: 6482.09216 | G52: 7065.29928 | H52: 8237.36604 | I52: 7107.85234 | J52: 7714.07858 | K52: 7543.94721 | L52: 7094.5442 | M52: 7592.58277 | N52: 6871.56116 | O52: 5531.30608 | P52: 5664.44678 | Q52: 84098.9711
A53: D-025 | B53: =Config!$C$3&"_"&Config!$C$2&"_"&Config!$A$38&"_"&Config!$A$39&"_"&Data!A53 -> 2022_CS_INS_EXP_D-025 | D53: Overdrachten aan andere sectoren (gezinnen, bedrijven,…) | E53: 34622.4238 | F53: 158875.4248 | G53: 268569.508 | H53: 68479.44883 | I53: 553048.8062 | J53: 342540.4971 | K53: 64868.64863 | L53: 55311.49893 | M53: 47840.67493 | N53: 256624.7398 | O53: 1341788.954 | P53: 457591.7139 | Q53: 3650162.339
A54: D-053 | B54: =Config!$C$3&"_"&Config!$C$2&"_"&Config!$A$38&"_"&Config!$A$39&"_"&Data!A54 -> 2022_CS_INS_EXP_D-053 | D54: Overdrachten binnen de institutionele groep | E54: 22442.68683 | F54: 21959.82354 | G54: 6684.581973 | H54: 19871.63399 | I54: 1298.086543 | J54: 38961.07801 | K54: 1368.926153 | L54: 19428.52645 | M54: 1500.564433 | N54: 20245.65614 | O54: 1810.338633 | P54: 6877.995213 | Q54: 162449.8979
A55: D-027 | B55: =Config!$C$3&"_"&Config!$C$2&"_"&Config!$A$38&"_"&Config!$A$39&"_"&Data!A55 -> 2022_CS_INS_EXP_D-027 | D55: Overdrachten aan de sociale zekerheid | E55: 0 | F55: 0 | G55: 0 | H55: 0 | I55: 0 | J55: 0 | K55: 0 | L55: 0 | M55: 0 | N55: 0 | O55: 0 | P55: 558.752 | Q55: 558.752
A56: D-028 | B56: =Config!$C$3&"_"&Config!$C$2&"_"&Config!$A$38&"_"&Config!$A$39&"_"&Data!A56 -> 2022_CS_INS_EXP_D-028 | D56: Overdrachten aan lokale overheden | E56: 15955.248 | F56: 3924.591 | G56: 20926.025 | H56: 4956.35621 | I56: 6768.89679 | J56: 22872.453 | K56: 10996.129 | L56: 20624.573 | M56: 8075.283 | N56: 6875.131 | O56: 4640.03 | P56: 23087.083 | Q56: 149701.799
A57: D-029 | B57: =Config!$C$3&"_"&Config!$C$2&"_"&Config!$A$38&"_"&Config!$A$39&"_"&Data!A57 -> 2022_CS_INS_EXP_D-029 | D57: Overdrachten aan het gesubsidieerd autonoom onderwijs | E57: 0 | F57: 0 | G57: 0 | H57: 0 | I57: 0 | J57: 0 | K57: 0 | L57: 0 | M57: 0 | N57: 0 | O57: 0 | P57: 0 | Q57: 0
A58: D-030 | B58: =Config!$C$3&"_"&Config!$C$2&"_"&Config!$A$38&"_"&Config!$A$39&"_"&Data!A58 -> 2022_CS_INS_EXP_D-030 | D58: Overdrachten aan andere institutionele groepen | E58: 4573.333333 | F58: 4654.006333 | G58: 5781.870333 | H58: 6199.799003 | I58: 5033.482663 | J58: 7897.402333 | K58: 7480.804333 | L58: 6338.219383 | M58: 6011.303333 | N58: 5072.331773 | O58: 6588.543583 | P58: 6163.217593 | Q58: 71794.314
A59: D-031 | B59: =Config!$C$3&"_"&Config!$C$2&"_"&Config!$A$38&"_"&Config!$A$39&"_"&Data!A59 -> 2022_CS_INS_EXP_D-031 | D59: Investeringen | E59: =VLOOKUP($B59,rng_input,E$5,FALSE) -> 34555.22688 | F59: 49279.64696 | G59: 59459.31595 | H59: 57902.54181 | I59: 65584.43526 | J59: 86686.4428 | K59: 44082.72711 | L59: 51671.03514 | M59: 97290.11724 | N59: 182606.1079 | O59: 93097.50052 | P59: -27568.74048 | Q59: 794646.357
A60: D-032 | B60: =Config!$C$3&"_"&Config!$C$2&"_"&Config!$A$38&"_"&Config!$A$39&"_"&Data!A60 -> 2022_CS_INS_EXP_D-032 | D60: Totaal buiten financiële en interne verrichtingen | E60: 358159.1518 | F60: 488701.7232 | G60: 688159.5167 | H60: 508280.3968 | I60: 953110.9248 | J60: 829716.0995 | K60: 417492.1179 | L60: 457874.5166 | M60: 473176.1844 | N60: 1354771.346 | O60: 1789880.23 | P60: 1070038.482 | Q60: 9389360.689
A61: D-033 | B61: =Config!$C$3&"_"&Config!$C$2&"_"&Config!$A$38&"_"&Config!$A$39&"_"&Data!A61 -> 2022_CS_INS_EXP_D-033 | D61: Kredietverleningen, deelnemingen en andere financiële producten | E61: 7065.99244 | F61: 5615.85586 | G61: 5553.1887 | H61: 4739.772 | I61: 16346.26238 | J61: 19448.24062 | K61: 8920.113 | L61: 12519.437 | M61: 17873.743 | N61: 6090.437 | O61: 12405.441 | P61: 1508386.783 | Q61: 1624965.266
A62: D-034 | B62: =Config!$C$3&"_"&Config!$C$2&"_"&Config!$A$38&"_"&Config!$A$39&"_"&Data!A62 -> 2022_CS_INS_EXP_D-034 | D62: Financiële verrichtingen betreffende de schuld | E62: 0 | F62: 31.88403 | G62: 63.90179 | H62: 0 | I62: 32.01789 | J62: 32.06259 | K62: 32.10739 | L62: 34.16507 | M62: 34.21548 | N62: 67.16482 | O62: 0 | P62: 446.874 | Q62: 774.39306
A63: D-035 | B63: =Config!$C$3&"_"&Config!$C$2&"_"&Config!$A$38&"_"&Config!$A$39&"_"&Data!A63 -> 2022_CS_INS_EXP_D-035 | D63: Interne verrichtingen | E63: 7059 | F63: 7059 | G63: 7059 | H63: 7059 | I63: 7059 | J63: 7059 | K63: 7059 | L63: 7059 | M63: 7059 | N63: 7059 | O63: 7059.047 | P63: 7059.047 | Q63: 84708.094
A64: D-036 | B64: =Config!$C$3&"_"&Config!$C$2&"_"&Config!$A$38&"_"&Config!$A$39&"_"&Data!A64 -> 2022_CS_INS_EXP_D-036 | D64: Algemeen totaal van de uitgaven | E64: 372284.1442 | F64: 501408.4631 | G64: 700835.6072 | H64: 520079.1688 | I64: 976548.2051 | J64: 856255.4027 | K64: 433503.3383 | L64: 477487.1186 | M64: 498143.1429 | N64: 1367987.948 | O64: 1809344.718 | P64: 2585931.186 | Q64: 11099808.44
D65: =VLOOKUP("D-037",LIST_DESCRIPTIONS,2,FALSE) -> Ontvangsten
A66: D-021 | B66: =Config!$C$3&"_"&Config!$C$2&"_"&Config!$A$38&"_"&Config!$A$40&"_"&Data!A66 -> 2022_CS_INS_REV_D-021 | D66: =VLOOKUP(A66,LIST_DESCRIPTIONS,2,FALSE) -> Diversen | E66: =VLOOKUP($B66,rng_input,E$5,FALSE) -> 10.98615 | F66: 658.59966 | G66: 1997.16947 | H66: -845.65007 | I66: 66.23024 | J66: 171.49387 | K66: 646.85455 | L66: 216.66009 | M66: -161.72823 | N66: 2896.00609 | O66: 33.78041 | P66: -36348.22092 | Q66: -30657.81869
A67: D-038 | B67: =Config!$C$3&"_"&Config!$C$2&"_"&Config!$A$38&"_"&Config!$A$40&"_"&Data!A67 -> 2022_CS_INS_REV_D-038 | D67: Lopende ontvangsten van goederen en diensten | E67: 108433.1776 | F67: 142520.1681 | G67: 266723.6629 | H67: 129611.9212 | I67: 115328.924 | J67: 179356.769 | K67: 120684.566 | L67: 172015.7641 | M67: 99757.13571 | N67: 137478.858 | O67: 146547.0403 | P67: 333807.8023 | Q67: 1952265.789
A68: D-039 | B68: =Config!$C$3&"_"&Config!$C$2&"_"&Config!$A$38&"_"&Config!$A$40&"_"&Data!A68 -> 2022_CS_INS_REV_D-039 | D68: Inkomsten uit eigendom | E68: 8046.71815 | F68: 7662.55423 | G68: 12516.91959 | H68: 6760.95079 | I68: 429546.3226 | J68: 48695.22968 | K68: 14486.2169 | L68: 9108.11019 | M68: 6508.37386 | N68: 58021.00241 | O68: 8352.52598 | P68: 14035.23753 | Q68: 623740.1619
A69: D-040 | B69: =Config!$C$3&"_"&Config!$C$2&"_"&Config!$A$38&"_"&Config!$A$40&"_"&Data!A69 -> 2022_CS_INS_REV_D-040 | D69: Fiscale ontvangsten | E69: 96397.25632 | F69: 77418.83939 | G69: 33956.25032 | H69: 29039.58032 | I69: 32167.90689 | J69: 48611.39009 | K69: 32799.46055 | L69: 35969.04993 | M69: 38804.33122 | N69: 53039.00979 | O69: 37154.7073 | P69: 37391.5201 | Q69: 515357.7822
A70: D-041 | B70: =Config!$C$3&"_"&Config!$C$2&"_"&Config!$A$38&"_"&Config!$A$40&"_"&Data!A70 -> 2022_CS_INS_REV_D-041 | D70: Overdrachten van andere sectoren (gezinnen, bedrijven,…) | E70: 7688.20821 | F70: 1441.2966 | G70: 7029.03636 | H70: 4012.89962 | I70: 3316.8413 | J70: 19387.68698 | K70: 5996.63739 | L70: 7225.23782 | M70: 19966.42713 | N70: 9377.65105 | O70: 4960.94825 | P70: 6726.31079 | Q70: 97129.1815
A71: D-053 | B71: =Config!$C$3&"_"&Config!$C$2&"_"&Config!$A$38&"_"&Config!$A$40&"_"&Data!A71 -> 2022_CS_INS_REV_D-053 | D71: Overdrachten binnen de institutionele groep | E71: 263793.0678 | F71: 459240.0966 | G71: 623437.7519 | H71: 672930.4235 | I71: 590173.8741 | J71: 207358.1437 | K71: 303664.382 | L71: 468844.522 | M71: 321829.2262 | N71: 1765187.022 | O71: 440642.0599 | P71: 865379.9951 | Q71: 6982480.564
A72: D-043 | B72: =Config!$C$3&"_"&Config!$C$2&"_"&Config!$A$38&"_"&Config!$A$40&"_"&Data!A72 -> 2022_CS_INS_REV_D-043 | D72: Overdrachten van de sociale zekerheid | E72: 0 | F72: 0 | G72: 0 | H72: 0 | I72: 0 | J72: 0 | K72: 0 | L72: 0 | M72: 0 | N72: 0 | O72: 0 | P72: 3269.86 | Q72: 3269.86
A73: D-044 | B73: =Config!$C$3&"_"&Config!$C$2&"_"&Config!$A$38&"_"&Config!$A$40&"_"&Data!A73 -> 2022_CS_INS_REV_D-044 | D73: Overdrachten van lokale overheden | E73: 0 | F73: 4.49 | G73: 31.38633 | H73: 5.03217 | I73: 0.32283 | J73: 42.54737 | K73: 4.863 | L73: 227.845 | M73: 0 | N73: 2.5 | O73: 105.179 | P73: 56.837 | Q73: 481.0027
A74: D-045 | B74: =Config!$C$3&"_"&Config!$C$2&"_"&Config!$A$38&"_"&Config!$A$40&"_"&Data!A74 -> 2022_CS_INS_REV_D-045 | D74: Overdrachten van andere institutionele groepen | E74: 381.54527 | F74: 259.48701 | G74: 1423.12152 | H74: 1913.11607 | I74: 1732.11442 | J74: 917.63565 | K74: 4613.52633 | L74: 692.49509 | M74: 522.96217 | N74: 1405.81125 | O74: 1958.01933 | P74: 622.90911 | Q74: 16442.74322
A75: D-046 | B75: =Config!$C$3&"_"&Config!$C$2&"_"&Config!$A$38&"_"&Config!$A$40&"_"&Data!A75 -> 2022_CS_INS_REV_D-046 | D75: Desinvesteringen | E75: 6.765 | F75: 44.8424 | G75: 1939.85234 | H75: 296 | I75: 0.15926 | J75: 73.56034 | K75: 11.12 | L75: 186.4368 | M75: 21.48041 | N75: 0.41 | O75: 18.52946 | P75: 20.02 | Q75: 2619.17601
A76: D-032 | B76: =Config!$C$3&"_"&Config!$C$2&"_"&Config!$A$38&"_"&Config!$A$40&"_"&Data!A76 -> 2022_CS_INS_REV_D-032 | D76: Totaal buiten financiële en interne verrichtingen | E76: =VLOOKUP($B76,rng_input,E$5,FALSE) -> 484757.7245 | F76: 689250.374 | G76: 949055.1508 | H76: 843724.2735 | I76: 1172332.696 | J76: 504614.4567 | K76: 482907.6267 | L76: 694486.1211 | M76: 487248.2084 | N76: 2027408.27 | O76: 639772.7899 | P76: 1224962.271 | Q76: 10163128.44
A77: D-047 | B77: =Config!$C$3&"_"&Config!$C$2&"_"&Config!$A$38&"_"&Config!$A$40&"_"&Data!A77 -> 2022_CS_INS_REV_D-047 | D77: Kredietaflossingen, vereffeningen van deelnemingen en andere financiële producten | E77: 7983.17808 | F77: 9646.43501 | G77: 8371.37065 | H77: 4340.04992 | I77: 9606.38852 | J77: 27298.24781 | K77: 6549.591 | L77: 9123.62566 | M77: 11290.295 | N77: 6909.75 | O77: 7795.486 | P77: 161218.747 | Q77: 270133.1647
A78: D-034 | B78: =Config!$C$3&"_"&Config!$C$2&"_"&Config!$A$38&"_"&Config!$A$40&"_"&Data!A78 -> 2022_CS_INS_REV_D-034 | D78: Financiële verrichtingen betreffende de schuld | E78: 0 | F78: 0 | G78: 0 | H78: 0 | I78: 0 | J78: 0 | K78: 0 | L78: 0 | M78: 0 | N78: 10000 | O78: 0 | P78: 0 | Q78: 0
A79: D-035 | B79: =Config!$C$3&"_"&Config!$C$2&"_"&Config!$A$38&"_"&Config!$A$40&"_"&Data!A79 -> 2022_CS_INS_REV_D-035 | D79: Interne verrichtingen | E79: 7059 | F79: 7059 | G79: 7059 | H79: 7059 | I79: 7059 | J79: 7059 | K79: 7059 | L79: 7059 | M79: 7059 | N79: 7059.047083 | O79: 7059.047083 | P79: 7059.047083 | Q79: 84708.14125
A80: D-048 | B80: =Config!$C$3&"_"&Config!$C$2&"_"&Config!$A$38&"_"&Config!$A$40&"_"&Data!A80 -> 2022_CS_INS_REV_D-048 | D80: Algemeen totaal van de ontvangsten | E80: 499799.9026 | F80: 705955.809 | G80: 964485.5214 | H80: 855123.3234 | I80: 1188998.084 | J80: 538971.7046 | K80: 496516.2177 | L80: 710668.7468 | M80: 505597.5034 | N80: 2051377.067 | O80: 654627.323 | P80: 1393240.065 | Q80: 10517969.75
A81: D-049 | B81: =Config!$C$3&"_"&Config!$C$2&"_"&Config!$A$38&"_"&Config!$A$41&"_"&Data!A81 -> 2022_CS_INS_BAL_D-049 | D81: Saldo buiten financiële en interne verrichtingen | E81: 126598.5727 | F81: 200548.6508 | G81: 260895.6341 | H81: 335443.8767 | I81: 219221.7708 | J81: -325101.6428 | K81: 65415.50875 | L81: 236611.6045 | M81: 14072.02404 | N81: 672636.9243 | O81: -1150107.44 | P81: 154923.7894 | Q81: 773767.7531
A82: D-050 | B82: =Config!$C$3&"_"&Config!$C$2&"_"&Config!$A$38&"_"&Config!$A$41&"_"&Data!A82 -> 2022_CS_INS_BAL_D-050 | D82: Saldo | E82: 127515.7584 | F82: 204547.3459 | G82: 263649.9142 | H82: 335044.1546 | I82: 212449.879 | J82: -317283.6982 | K82: 63012.87936 | L82: 233181.6281 | M82: 7454.360556 | N82: 683389.1196 | O82: -1154717.395 | P82: -1192691.121 | Q82: -581838.6941
D202: =VLOOKUP(CHOSEN_AUTHORITY,LIST_AUTHORITIES,2,FALSE) -> FEDERALE OVERHEID
D203: =VLOOKUP("D-003",LIST_DESCRIPTIONS,2,FALSE) -> Omschrijving | E203: =VLOOKUP("D-123",LIST_DESCRIPTIONS,2,FALSE)&Config!$C$3 -> 01-03/2022 | F203: =VLOOKUP("D-124",LIST_DESCRIPTIONS,2,FALSE)&Config!$C$3 -> 04-06/2022 | G203: =VLOOKUP("D-125",LIST_DESCRIPTIONS,2,FALSE)&Config!$C$3 -> 07-09/2022 | H203: =VLOOKUP("D-126",LIST_DESCRIPTIONS,2,FALSE)&Config!$C$3 -> 10-12/2022 | I203: =VLOOKUP("D-051",LIST_DESCRIPTIONS,2,FALSE) -> Totaal
D204: =VLOOKUP("D-020",LIST_DESCRIPTIONS,2,FALSE) -> Uitgaven
A205: D-021 | B205: =Config!$C$3&"_"&Config!$C$2&"_"&Config!$A$39&"_"&A205 -> 2022_CS_EXP_D-021 | D205: =VLOOKUP(A205,LIST_DESCRIPTIONS,2,FALSE) -> Diversen | E205: =VLOOKUP($B205,rng_input,E$5,FALSE) -> 
A206: D-022 | B206: =Config!$C$3&"_"&Config!$C$2&"_"&Config!$A$39&"_"&A206 -> 2022_CS_EXP_D-022 | D206: Lonen en sociale lasten
A207: D-023 | B207: =Config!$C$3&"_"&Config!$C$2&"_"&Config!$A$39&"_"&A207 -> 2022_CS_EXP_D-023 | D207: Lopende uitgaven voor goederen en diensten
A208: D-024 | B208: =Config!$C$3&"_"&Config!$C$2&"_"&Config!$A$39&"_"&A208 -> 2022_CS_EXP_D-024 | D208: Interestlasten
A209: D-025 | B209: =Config!$C$3&"_"&Config!$C$2&"_"&Config!$A$39&"_"&A209 -> 2022_CS_EXP_D-025 | D209: Overdrachten aan andere sectoren (gezinnen, bedrijven,…)
A210: D-109 | B210: =Config!$C$3&"_"&Config!$C$2&"_"&Config!$A$39&"_"&A210 -> 2022_CS_EXP_D-109 | D210: Overdrachten aan hogere overheden
A211: D-110 | B211: =Config!$C$3&"_"&Config!$C$2&"_"&Config!$A$39&"_"&A211 -> 2022_CS_EXP_D-110 | D211: Overdrachten aan provincies en andere overheden
A212: D-031 | B212: =Config!$C$3&"_"&Config!$C$2&"_"&Config!$A$39&"_"&A212 -> 2022_CS_EXP_D-031 | D212: Investeringen
A213: D-032 | B213: =Config!$C$3&"_"&Config!$C$2&"_"&Config!$A$39&"_"&A213 -> 2022_CS_EXP_D-032 | D213: Totaal buiten financiële en interne verrichtingen
A214: D-033 | B214: =Config!$C$3&"_"&Config!$C$2&"_"&Config!$A$39&"_"&A214 -> 2022_CS_EXP_D-033 | D214: Kredietverleningen, deelnemingen en andere financiële producten
A215: D-034 | B215: =Config!$C$3&"_"&Config!$C$2&"_"&Config!$A$39&"_"&A215 -> 2022_CS_EXP_D-034 | D215: Financiële verrichtingen betreffende de schuld
A216: D-035 | B216: =Config!$C$3&"_"&Config!$C$2&"_"&Config!$A$39&"_"&A216 -> 2022_CS_EXP_D-035 | D216: Interne verrichtingen
A217: D-036 | B217: =Config!$C$3&"_"&Config!$C$2&"_"&Config!$A$39&"_"&A217 -> 2022_CS_EXP_D-036 | D217: Algemeen totaal van de uitgaven
D218: =VLOOKUP("D-037",LIST_DESCRIPTIONS,2,FALSE) -> Ontvangsten
A219: D-021 | B219: =Config!$C$3&"_"&Config!$C$2&"_"&Config!$A$40&"_"&A219 -> 2022_CS_REV_D-021 | D219: =VLOOKUP(A219,LIST_DESCRIPTIONS,2,FALSE) -> Diversen | E219: =VLOOKUP($B219,rng_input,E$5,FALSE) -> 
A220: D-038 | B220: =Config!$C$3&"_"&Config!$C$2&"_"&Config!$A$40&"_"&A220 -> 2022_CS_REV_D-038 | D220: Lopende ontvangsten van goederen en diensten
A221: D-039 | B221: =Config!$C$3&"_"&Config!$C$2&"_"&Config!$A$40&"_"&A221 -> 2022_CS_REV_D-039 | D221: Inkomsten uit eigendom
A222: D-040 | B222: =Config!$C$3&"_"&Config!$C$2&"_"&Config!$A$40&"_"&A222 -> 2022_CS_REV_D-040 | D222: Fiscale ontvangsten
A223: D-041 | B223: =Config!$C$3&"_"&Config!$C$2&"_"&Config!$A$40&"_"&A223 -> 2022_CS_REV_D-041 | D223: Overdrachten van andere sectoren (gezinnen, bedrijven,…)
A224: D-111 | B224: =Config!$C$3&"_"&Config!$C$2&"_"&Config!$A$40&"_"&A224 -> 2022_CS_REV_D-111 | D224: Overdrachten van hogere overheden
A225: D-112 | B225: =Config!$C$3&"_"&Config!$C$2&"_"&Config!$A$40&"_"&A225 -> 2022_CS_REV_D-112 | D225: Overdrachten van provincies en andere overheden
A226: D-046 | B226: =Config!$C$3&"_"&Config!$C$2&"_"&Config!$A$40&"_"&A226 -> 2022_CS_REV_D-046 | D226: Desinvesteringen
A227: D-032 | B227: =Config!$C$3&"_"&Config!$C$2&"_"&Config!$A$40&"_"&A227 -> 2022_CS_REV_D-032 | D227: Totaal buiten financiële en interne verrichtingen
A228: D-047 | B228: =Config!$C$3&"_"&Config!$C$2&"_"&Config!$A$40&"_"&A228 -> 2022_CS_REV_D-047 | D228: Kredietaflossingen, vereffeningen van deelnemingen en andere financiële producten
A229: D-034 | B229: =Config!$C$3&"_"&Config!$C$2&"_"&Config!$A$40&"_"&A229 -> 2022_CS_REV_D-034 | D229: Financiële verrichtingen betreffende de schuld
A230: D-035 | B230: =Config!$C$3&"_"&Config!$C$2&"_"&Config!$A$40&"_"&A230 -> 2022_CS_REV_D-035 | D230: Interne verrichtingen
A231: D-048 | B231: =Config!$C$3&"_"&Config!$C$2&"_"&Config!$A$40&"_"&A231 -> 2022_CS_REV_D-048 | D231: Algemeen totaal van de ontvangsten
A232: D-049 | B232: =Config!$C$3&"_"&Config!$C$2&"_"&Config!$A$41&"_"&A232 -> 2022_CS_BAL_D-049 | D232: Saldo buiten financiële en interne verrichtingen
A233: D-050 | B233: =Config!$C$3&"_"&Config!$C$2&"_"&Config!$A$41&"_"&A233 -> 2022_CS_BAL_D-050 | D233: Saldo
D402: =VLOOKUP("D-055",LIST_DESCRIPTIONS,2,FALSE) -> Werknemers
D403: =VLOOKUP("D-003",LIST_DESCRIPTIONS,2,FALSE) -> Omschrijving | E403: =VLOOKUP("D-004",LIST_DESCRIPTIONS,2,FALSE) -> Januari | F403: =VLOOKUP("D-005",LIST_DESCRIPTIONS,2,FALSE) -> Februari | G403: =VLOOKUP("D-006",LIST_DESCRIPTIONS,2,FALSE) -> Maart | H403: =VLOOKUP("D-007",LIST_DESCRIPTIONS,2,FALSE) -> April | I403: =VLOOKUP("D-008",LIST_DESCRIPTIONS,2,FALSE) -> Mei | J403: =VLOOKUP("D-009",LIST_DESCRIPTIONS,2,FALSE) -> Juni | K403: =VLOOKUP("D-010",LIST_DESCRIPTIONS,2,FALSE) -> Juli | L403: =VLOOKUP("D-011",LIST_DESCRIPTIONS,2,FALSE) -> Augustus | M403: =VLOOKUP("D-012",LIST_DESCRIPTIONS,2,FALSE) -> September | N403: =VLOOKUP("D-013",LIST_DESCRIPTIONS,2,FALSE) -> Oktober | O403: =VLOOKUP("D-014",LIST_DESCRIPTIONS,2,FALSE) -> November | P403: =VLOOKUP("D-015",LIST_DESCRIPTIONS,2,FALSE) -> December | Q403: =VLOOKUP("D-051",LIST_DESCRIPTIONS,2,FALSE) -> Totaal
D404: =VLOOKUP("D-020",LIST_DESCRIPTIONS,2,FALSE) -> Uitgaven
A405: D-056 | B405: =Config!$C$3&"_"&Config!$C$2&"_"&Config!$A$32&"_"&Config!$A$39&"_"&A405 -> 2022_CS_WO_EXP_D-056 | D405: =VLOOKUP(A405,LIST_DESCRIPTIONS,2,FALSE) -> Prestaties | E405: =VLOOKUP($B405,rng_input,E$5,FALSE) -> 
A406: D-057 | B406: =Config!$C$3&"_"&Config!$C$2&"_"&Config!$A$32&"_"&Config!$A$39&"_"&A406 -> 2022_CS_WO_EXP_D-057 | D406: RIZIV-Uitkeringen
A407: D-058 | B407: =Config!$C$3&"_"&Config!$C$2&"_"&Config!$A$32&"_"&Config!$A$39&"_"&A407 -> 2022_CS_WO_EXP_D-058 | D407: FPD
A408: D-059 | B408: =Config!$C$3&"_"&Config!$C$2&"_"&Config!$A$32&"_"&Config!$A$39&"_"&A408 -> 2022_CS_WO_EXP_D-059 | D408: RKW
A409: D-060 | B409: =Config!$C$3&"_"&Config!$C$2&"_"&Config!$A$32&"_"&Config!$A$39&"_"&A409 -> 2022_CS_WO_EXP_D-060 | D409: FEDRIS-Arbeidsongevallen
A410: D-061 | B410: =Config!$C$3&"_"&Config!$C$2&"_"&Config!$A$32&"_"&Config!$A$39&"_"&A410 -> 2022_CS_WO_EXP_D-061 | D410: FEDRIS-Beroepsziekten
A411: D-062 | B411: =Config!$C$3&"_"&Config!$C$2&"_"&Config!$A$32&"_"&Config!$A$39&"_"&A411 -> 2022_CS_WO_EXP_D-062 | D411: RVA
A412: D-063 | B412: =Config!$C$3&"_"&Config!$C$2&"_"&Config!$A$32&"_"&Config!$A$39&"_"&A412 -> 2022_CS_WO_EXP_D-063 | D412: Mijnwerkers
A413: D-064 | B413: =Config!$C$3&"_"&Config!$C$2&"_"&Config!$A$32&"_"&Config!$A$39&"_"&A413 -> 2022_CS_WO_EXP_D-064 | D413: HVKZ
A414: D-065 | B414: =Config!$C$3&"_"&Config!$C$2&"_"&Config!$A$32&"_"&Config!$A$39&"_"&A414 -> 2022_CS_WO_EXP_D-065 | D414: Pool der Zeelieden
A415: D-066 | B415: =Config!$C$3&"_"&Config!$C$2&"_"&Config!$A$32&"_"&Config!$A$39&"_"&A415 -> 2022_CS_WO_EXP_D-066 | D415: Betalingskosten | E415: =VLOOKUP($B415,rng_input,E$5,FALSE) -> 
A416: D-067 | B416: =Config!$C$3&"_"&Config!$C$2&"_"&Config!$A$32&"_"&Config!$A$39&"_"&A416 -> 2022_CS_WO_EXP_D-067 | D416: Beheerskosten
A417: D-068 | B417: =Config!$C$3&"_"&Config!$C$2&"_"&Config!$A$32&"_"&Config!$A$39&"_"&A417 -> 2022_CS_WO_EXP_D-068 | D417: Externe overdrachten
A418: D-069 | B418: =Config!$C$3&"_"&Config!$C$2&"_"&Config!$A$32&"_"&Config!$A$39&"_"&A418 -> 2022_CS_WO_EXP_D-069 | D418: RIZIV-Geneeskundige verzorging
A419: D-070 | B419: =Config!$C$3&"_"&Config!$C$2&"_"&Config!$A$32&"_"&Config!$A$39&"_"&A419 -> 2022_CS_WO_EXP_D-070 | D419: Andere
A420: D-024 | B420: =Config!$C$3&"_"&Config!$C$2&"_"&Config!$A$32&"_"&Config!$A$39&"_"&A420 -> 2022_CS_WO_EXP_D-024 | D420: Interestlasten
A421: D-021 | B421: =Config!$C$3&"_"&Config!$C$2&"_"&Config!$A$32&"_"&Config!$A$39&"_"&A421 -> 2022_CS_WO_EXP_D-021 | D421: Diversen
A422: D-071 | B422: =Config!$C$3&"_"&Config!$C$2&"_"&Config!$A$32&"_"&Config!$A$39&"_"&A422 -> 2022_CS_WO_EXP_D-071 | D422: Eigen uitgaven
A423: D-072 | B423: =Config!$C$3&"_"&Config!$C$2&"_"&Config!$A$32&"_"&Config!$A$39&"_"&A423 -> 2022_CS_WO_EXP_D-072 | D423: Van een tak naar het RSZ-Globaal beheer
A424: D-073 | B424: =Config!$C$3&"_"&Config!$C$2&"_"&Config!$A$32&"_"&Config!$A$39&"_"&A424 -> 2022_CS_WO_EXP_D-073 | D424: Van het RSZ-Globaal beheer naar een tak
A425: D-074 | B425: =Config!$C$3&"_"&Config!$C$2&"_"&Config!$A$32&"_"&Config!$A$39&"_"&A425 -> 2022_CS_WO_EXP_D-074 | D425: Interne overdrachten
A426: D-036 | B426: =Config!$C$3&"_"&Config!$C$2&"_"&Config!$A$32&"_"&Config!$A$39&"_"&A426 -> 2022_CS_WO_EXP_D-036 | D426: Algemeen totaal van de uitgaven
D427: =VLOOKUP("D-037",LIST_DESCRIPTIONS,2,FALSE) -> Ontvangsten
A428: D-075 | B428: =Config!$C$3&"_"&Config!$C$2&"_"&Config!$A$32&"_"&Config!$A$40&"_"&A428 -> 2022_CS_WO_REV_D-075 | D428: =VLOOKUP(A428,LIST_DESCRIPTIONS,2,FALSE) -> Bijdragen | E428: =VLOOKUP($B428,rng_input,E$5,FALSE) -> 
A429: D-076 | B429: =Config!$C$3&"_"&Config!$C$2&"_"&Config!$A$32&"_"&Config!$A$40&"_"&A429 -> 2022_CS_WO_REV_D-076 | D429: Staatstoelagen
A430: D-077 | B430: =Config!$C$3&"_"&Config!$C$2&"_"&Config!$A$32&"_"&Config!$A$40&"_"&A430 -> 2022_CS_WO_REV_D-077 | D430: Alternatieve financiering
A431: D-078 | B431: =Config!$C$3&"_"&Config!$C$2&"_"&Config!$A$32&"_"&Config!$A$40&"_"&A431 -> 2022_CS_WO_REV_D-078 | D431: Toegewezen ontvangsten
A432: D-068 | B432: =Config!$C$3&"_"&Config!$C$2&"_"&Config!$A$32&"_"&Config!$A$40&"_"&A432 -> 2022_CS_WO_REV_D-068 | D432: Externe overdrachten
A433: D-079 | B433: =Config!$C$3&"_"&Config!$C$2&"_"&Config!$A$32&"_"&Config!$A$40&"_"&A433 -> 2022_CS_WO_REV_D-079 | D433: RSVZ
A434: D-070 | B434: =Config!$C$3&"_"&Config!$C$2&"_"&Config!$A$32&"_"&Config!$A$40&"_"&A434 -> 2022_CS_WO_REV_D-070 | D434: Andere
A435: D-080 | B435: =Config!$C$3&"_"&Config!$C$2&"_"&Config!$A$32&"_"&Config!$A$40&"_"&A435 -> 2022_CS_WO_REV_D-080 | D435: Opbrengsten beleggingen
A436: D-021 | B436: =Config!$C$3&"_"&Config!$C$2&"_"&Config!$A$32&"_"&Config!$A$40&"_"&A436 -> 2022_CS_WO_REV_D-021 | D436: Diversen
A437: D-081 | B437: =Config!$C$3&"_"&Config!$C$2&"_"&Config!$A$32&"_"&Config!$A$40&"_"&A437 -> 2022_CS_WO_REV_D-081 | D437: Eigen ontvangsten
A438: D-073 | B438: =Config!$C$3&"_"&Config!$C$2&"_"&Config!$A$32&"_"&Config!$A$40&"_"&A438 -> 2022_CS_WO_REV_D-073 | D438: Van het RSZ-Globaal beheer naar een tak
A439: D-072 | B439: =Config!$C$3&"_"&Config!$C$2&"_"&Config!$A$32&"_"&Config!$A$40&"_"&A439 -> 2022_CS_WO_REV_D-072 | D439: Van een tak naar het RSZ-Globaal beheer
A440: D-074 | B440: =Config!$C$3&"_"&Config!$C$2&"_"&Config!$A$32&"_"&Config!$A$40&"_"&A440 -> 2022_CS_WO_REV_D-074 | D440: Interne overdrachten
A441: D-048 | B441: =Config!$C$3&"_"&Config!$C$2&"_"&Config!$A$32&"_"&Config!$A$40&"_"&A441 -> 2022_CS_WO_REV_D-048 | D441: Algemeen totaal van de ontvangsten
A442: D-050 | B442: =Config!$C$3&"_"&Config!$C$2&"_"&Config!$A$32&"_"&Config!$A$41&"_"&A442 -> 2022_CS_WO_BAL_D-050 | D442: Saldo
D445: =VLOOKUP("D-082",LIST_DESCRIPTIONS,2,FALSE) -> Zelfstandigen
D446: =VLOOKUP("D-003",LIST_DESCRIPTIONS,2,FALSE) -> Omschrijving | E446: =VLOOKUP("D-004",LIST_DESCRIPTIONS,2,FALSE) -> Januari | F446: =VLOOKUP("D-005",LIST_DESCRIPTIONS,2,FALSE) -> Februari | G446: =VLOOKUP("D-006",LIST_DESCRIPTIONS,2,FALSE) -> Maart | H446: =VLOOKUP("D-007",LIST_DESCRIPTIONS,2,FALSE) -> April | I446: =VLOOKUP("D-008",LIST_DESCRIPTIONS,2,FALSE) -> Mei | J446: =VLOOKUP("D-009",LIST_DESCRIPTIONS,2,FALSE) -> Juni | K446: =VLOOKUP("D-010",LIST_DESCRIPTIONS,2,FALSE) -> Juli | L446: =VLOOKUP("D-011",LIST_DESCRIPTIONS,2,FALSE) -> Augustus | M446: =VLOOKUP("D-012",LIST_DESCRIPTIONS,2,FALSE) -> September | N446: =VLOOKUP("D-013",LIST_DESCRIPTIONS,2,FALSE) -> Oktober | O446: =VLOOKUP("D-014",LIST_DESCRIPTIONS,2,FALSE) -> November | P446: =VLOOKUP("D-015",LIST_DESCRIPTIONS,2,FALSE) -> December | Q446: =VLOOKUP("D-051",LIST_DESCRIPTIONS,2,FALSE) -> Totaal
D447: =VLOOKUP("D-020",LIST_DESCRIPTIONS,2,FALSE) -> Uitgaven
A448: D-056 | B448: =Config!$C$3&"_"&Config!$C$2&"_"&Config!$A$35&"_"&Config!$A$39&"_"&A448 -> 2022_CS_FL_EXP_D-056 | D448: =VLOOKUP(A448,LIST_DESCRIPTIONS,2,FALSE) -> Prestaties | E448: =VLOOKUP($B448,rng_input,E$5,FALSE) -> 
A449: D-057 | B449: =Config!$C$3&"_"&Config!$C$2&"_"&Config!$A$35&"_"&Config!$A$39&"_"&A449 -> 2022_CS_FL_EXP_D-057 | D449: RIZIV-Uitkeringen
A450: D-083 | B450: =Config!$C$3&"_"&Config!$C$2&"_"&Config!$A$35&"_"&Config!$A$39&"_"&A450 -> 2022_CS_FL_EXP_D-083 | D450: RSVZ-Pensioenen
A451: D-084 | B451: =Config!$C$3&"_"&Config!$C$2&"_"&Config!$A$35&"_"&Config!$A$39&"_"&A451 -> 2022_CS_FL_EXP_D-084 | D451: RSVZ-Gezinsbijslag
A452: D-085 | B452: =Config!$C$3&"_"&Config!$C$2&"_"&Config!$A$35&"_"&Config!$A$39&"_"&A452 -> 2022_CS_FL_EXP_D-085 | D452: RSVZ-Overbruggingsrecht
A453: D-086 | B453: =Config!$C$3&"_"&Config!$C$2&"_"&Config!$A$35&"_"&Config!$A$39&"_"&A453 -> 2022_CS_FL_EXP_D-086 | D453: RSVZ-Palliatieve verzorging
A454: D-066 | B454: =Config!$C$3&"_"&Config!$C$2&"_"&Config!$A$35&"_"&Config!$A$39&"_"&A454 -> 2022_CS_FL_EXP_D-066 | D454: Betalingskosten
A455: D-067 | B455: =Config!$C$3&"_"&Config!$C$2&"_"&Config!$A$35&"_"&Config!$A$39&"_"&A455 -> 2022_CS_FL_EXP_D-067 | D455: Beheerskosten
A456: D-068 | B456: =Config!$C$3&"_"&Config!$C$2&"_"&Config!$A$35&"_"&Config!$A$39&"_"&A456 -> 2022_CS_FL_EXP_D-068 | D456: Externe overdrachten
A457: D-069 | B457: =Config!$C$3&"_"&Config!$C$2&"_"&Config!$A$35&"_"&Config!$A$39&"_"&A457 -> 2022_CS_FL_EXP_D-069 | D457: RIZIV-Geneeskundige verzorging
A458: D-087 | B458: =Config!$C$3&"_"&Config!$C$2&"_"&Config!$A$35&"_"&Config!$A$39&"_"&A458 -> 2022_CS_FL_EXP_D-087 | D458: FAMIFED | E458: =VLOOKUP($B458,rng_input,E$5,FALSE) -> 
A459: D-070 | B459: =Config!$C$3&"_"&Config!$C$2&"_"&Config!$A$35&"_"&Config!$A$39&"_"&A459 -> 2022_CS_FL_EXP_D-070 | D459: Andere
A460: D-024 | B460: =Config!$C$3&"_"&Config!$C$2&"_"&Config!$A$35&"_"&Config!$A$39&"_"&A460 -> 2022_CS_FL_EXP_D-024 | D460: Interestlasten
A461: D-021 | B461: =Config!$C$3&"_"&Config!$C$2&"_"&Config!$A$35&"_"&Config!$A$39&"_"&A461 -> 2022_CS_FL_EXP_D-021 | D461: Diversen
A462: D-088 | B462: =Config!$C$3&"_"&Config!$C$2&"_"&Config!$A$35&"_"&Config!$A$39&"_"&A462 -> 2022_CS_FL_EXP_D-088 | D462: Sociale fraude
A463: D-071 | B463: =Config!$C$3&"_"&Config!$C$2&"_"&Config!$A$35&"_"&Config!$A$39&"_"&A463 -> 2022_CS_FL_EXP_D-071 | D463: Eigen uitgaven
A464: D-089 | B464: =Config!$C$3&"_"&Config!$C$2&"_"&Config!$A$35&"_"&Config!$A$39&"_"&A464 -> 2022_CS_FL_EXP_D-089 | D464: Van een tak naar het RSVZ-Globaal beheer
A465: D-090 | B465: =Config!$C$3&"_"&Config!$C$2&"_"&Config!$A$35&"_"&Config!$A$39&"_"&A465 -> 2022_CS_FL_EXP_D-090 | D465: Van het RSVZ-Globaal beheer naar een tak
A466: D-074 | B466: =Config!$C$3&"_"&Config!$C$2&"_"&Config!$A$35&"_"&Config!$A$39&"_"&A466 -> 2022_CS_FL_EXP_D-074 | D466: Interne overdrachten
A467: D-036 | B467: =Config!$C$3&"_"&Config!$C$2&"_"&Config!$A$35&"_"&Config!$A$39&"_"&A467 -> 2022_CS_FL_EXP_D-036 | D467: Algemeen totaal van de uitgaven
D468: =VLOOKUP("D-037",LIST_DESCRIPTIONS,2,FALSE) -> Ontvangsten
A469: D-075 | B469: =Config!$C$3&"_"&Config!$C$2&"_"&Config!$A$35&"_"&Config!$A$40&"_"&A469 -> 2022_CS_FL_REV_D-075 | D469: =VLOOKUP(A469,LIST_DESCRIPTIONS,2,FALSE) -> Bijdragen | E469: =VLOOKUP($B469,rng_input,E$5,FALSE) -> 
A470: D-076 | B470: =Config!$C$3&"_"&Config!$C$2&"_"&Config!$A$35&"_"&Config!$A$40&"_"&A470 -> 2022_CS_FL_REV_D-076 | D470: Staatstoelagen
A471: D-077 | B471: =Config!$C$3&"_"&Config!$C$2&"_"&Config!$A$35&"_"&Config!$A$40&"_"&A471 -> 2022_CS_FL_REV_D-077 | D471: Alternatieve financiering
A472: D-078 | B472: =Config!$C$3&"_"&Config!$C$2&"_"&Config!$A$35&"_"&Config!$A$40&"_"&A472 -> 2022_CS_FL_REV_D-078 | D472: Toegewezen ontvangsten
A473: D-068 | B473: =Config!$C$3&"_"&Config!$C$2&"_"&Config!$A$35&"_"&Config!$A$40&"_"&A473 -> 2022_CS_FL_REV_D-068 | D473: Externe overdrachten
A474: D-080 | B474: =Config!$C$3&"_"&Config!$C$2&"_"&Config!$A$35&"_"&Config!$A$40&"_"&A474 -> 2022_CS_FL_REV_D-080 | D474: Opbrengsten beleggingen
A475: D-021 | B475: =Config!$C$3&"_"&Config!$C$2&"_"&Config!$A$35&"_"&Config!$A$40&"_"&A475 -> 2022_CS_FL_REV_D-021 | D475: Diversen
A476: D-081 | B476: =Config!$C$3&"_"&Config!$C$2&"_"&Config!$A$35&"_"&Config!$A$40&"_"&A476 -> 2022_CS_FL_REV_D-081 | D476: Eigen ontvangsten
A477: D-090 | B477: =Config!$C$3&"_"&Config!$C$2&"_"&Config!$A$35&"_"&Config!$A$40&"_"&A477 -> 2022_CS_FL_REV_D-090 | D477: Van het RSVZ-Globaal beheer naar een tak
A478: D-089 | B478: =Config!$C$3&"_"&Config!$C$2&"_"&Config!$A$35&"_"&Config!$A$40&"_"&A478 -> 2022_CS_FL_REV_D-089 | D478: Van een tak naar het RSVZ-Globaal beheer
A479: D-074 | B479: =Config!$C$3&"_"&Config!$C$2&"_"&Config!$A$35&"_"&Config!$A$40&"_"&A479 -> 2022_CS_FL_REV_D-074 | D479: Interne overdrachten
A480: D-048 | B480: =Config!$C$3&"_"&Config!$C$2&"_"&Config!$A$35&"_"&Config!$A$40&"_"&A480 -> 2022_CS_FL_REV_D-048 | D480: Algemeen totaal van de ontvangsten
A481: D-050 | B481: =Config!$C$3&"_"&Config!$C$2&"_"&Config!$A$35&"_"&Config!$A$41&"_"&A481 -> 2022_CS_FL_BAL_D-050 | D481: Saldo
D484: =VLOOKUP("D-091",LIST_DESCRIPTIONS,2,FALSE) -> RIZIV - Geneeskundige verzorging
D485: =VLOOKUP("D-003",LIST_DESCRIPTIONS,2,FALSE) -> Omschrijving | E485: =VLOOKUP("D-004",LIST_DESCRIPTIONS,2,FALSE) -> Januari | F485: =VLOOKUP("D-005",LIST_DESCRIPTIONS,2,FALSE) -> Februari | G485: =VLOOKUP("D-006",LIST_DESCRIPTIONS,2,FALSE) -> Maart | H485: =VLOOKUP("D-007",LIST_DESCRIPTIONS,2,FALSE) -> April | I485: =VLOOKUP("D-008",LIST_DESCRIPTIONS,2,FALSE) -> Mei | J485: =VLOOKUP("D-009",LIST_DESCRIPTIONS,2,FALSE) -> Juni | K485: =VLOOKUP("D-010",LIST_DESCRIPTIONS,2,FALSE) -> Juli | L485: =VLOOKUP("D-011",LIST_DESCRIPTIONS,2,FALSE) -> Augustus | M485: =VLOOKUP("D-012",LIST_DESCRIPTIONS,2,FALSE) -> September | N485: =VLOOKUP("D-013",LIST_DESCRIPTIONS,2,FALSE) -> Oktober | O485: =VLOOKUP("D-014",LIST_DESCRIPTIONS,2,FALSE) -> November | P485: =VLOOKUP("D-015",LIST_DESCRIPTIONS,2,FALSE) -> December | Q485: =VLOOKUP("D-051",LIST_DESCRIPTIONS,2,FALSE) -> Totaal
D486: =VLOOKUP("D-020",LIST_DESCRIPTIONS,2,FALSE) -> Uitgaven
A487: D-056 | B487: =Config!$C$3&"_"&Config!$C$2&"_"&Config!$A$36&"_"&Config!$A$39&"_"&A487 -> 2022_CS_HC_EXP_D-056 | D487: =VLOOKUP(A487,LIST_DESCRIPTIONS,2,FALSE) -> Prestaties | E487: =VLOOKUP($B487,rng_input,E$5,FALSE) -> 
A488: D-092 | B488: =Config!$C$3&"_"&Config!$C$2&"_"&Config!$A$36&"_"&Config!$A$39&"_"&A488 -> 2022_CS_HC_EXP_D-092 | D488: Ten laste van de VI
A489: D-093 | B489: =Config!$C$3&"_"&Config!$C$2&"_"&Config!$A$36&"_"&Config!$A$39&"_"&A489 -> 2022_CS_HC_EXP_D-093 | D489: Ten laste van het RIZIV
A490: D-066 | B490: =Config!$C$3&"_"&Config!$C$2&"_"&Config!$A$36&"_"&Config!$A$39&"_"&A490 -> 2022_CS_HC_EXP_D-066 | D490: Betalingskosten
A491: D-067 | B491: =Config!$C$3&"_"&Config!$C$2&"_"&Config!$A$36&"_"&Config!$A$39&"_"&A491 -> 2022_CS_HC_EXP_D-067 | D491: Beheerskosten
A492: D-068 | B492: =Config!$C$3&"_"&Config!$C$2&"_"&Config!$A$36&"_"&Config!$A$39&"_"&A492 -> 2022_CS_HC_EXP_D-068 | D492: Externe overdrachten
A493: D-024 | B493: =Config!$C$3&"_"&Config!$C$2&"_"&Config!$A$36&"_"&Config!$A$39&"_"&A493 -> 2022_CS_HC_EXP_D-024 | D493: Interestlasten
A494: D-021 | B494: =Config!$C$3&"_"&Config!$C$2&"_"&Config!$A$36&"_"&Config!$A$39&"_"&A494 -> 2022_CS_HC_EXP_D-021 | D494: Diversen
... 329 more rows

Sheet AllData (hidden)
A1: CODE | B1: INTITULÉ | C1: 1 | D1: 2 | E1: 3 | F1: 4 | G1: 5 | H1: 6 | I1: 7 | J1: 8 | K1: 9 | L1: 10 | M1: 11 | N1: 12 | O1: 13 | P1: =COUNTIF(P2:P1048576,TRUE) -> 0
A2: 2014_BCR_CA_BAL_D-049 | B2: Solde hors opérations financières et opérations internes | C2: 14525.12178 | D2: 83175.96612 | E2: -146380.582 | F2: -41447.11558 | G2: -90050.17422 | H2: -27537.82993 | I2: 81990.23028 | J2: 43728.78587 | K2: 77122.12356 | L2: -5997.6283 | M2: 179112.1202 | N2: -129663.2181 | O2: 38577.79961 | P2: =IF(COUNTBLANK(Q2)=0,IF(RIGHT(A2,12)=Q2,TRUE,FALSE),"") -> 
A3: 2014_BCR_CA_BAL_D-050 | B3: Solde | C3: -10218.64368 | D3: 83275.36843 | E3: -171090.2942 | F3: -116376.2932 | G3: -90908.15199 | H3: -43386.59764 | I3: 178618.6396 | J3: 43809.18768 | K3: 52439.87599 | L3: -32188.55993 | M3: 179175.3166 | N3: -194696.6866 | O3: -121546.8388
A4: 2014_BCR_CA_EXP_D-021 | B4: Divers | C4: 14555.34073 | D4: 128.49313 | E4: 3.684 | F4: 578.20166 | G4: 16196.75107 | H4: 59.99418 | I4: 436.06393 | J4: 14555.8594 | K4: 309.57541 | L4: 48.84672 | M4: 0.41786 | N4: 7178.68756 | O4: 54051.91565
A5: 2014_BCR_CA_EXP_D-022 | B5: Salaires et charges sociales | C5: 17340.01562 | D5: 16041.91235 | E5: 9613.37372 | F5: 10116.3499 | G5: 16084.46072 | H5: 8573.13227 | I5: 24655.83484 | J5: 8719.68199 | K5: 9476.6888 | L5: 9923.08793 | M5: 12426.67817 | N5: 11627.79709 | O5: 154599.0134
A6: 2014_BCR_CA_EXP_D-023 | B6: Dépenses courantes pour biens et services | C6: 10275.46692 | D6: 11700.80403 | E6: 10890.38291 | F6: 8862.04958 | G6: 9270.13182 | H6: 9100.63506 | I6: 10227.96819 | J6: 7375.87739 | K6: 8953.45527 | L6: 11120.65788 | M6: 10439.32327 | N6: 22424.26326 | O6: 130641.0156
A7: 2014_BCR_CA_EXP_D-024 | B7: Charges d'intérêt | C7: 8237.05414 | D7: 1173.54968 | E7: 23243.33054 | F7: 17237.54489 | G7: 7816.81312 | H7: 12974.52979 | I7: 14664.20207 | J7: 2234.75807 | K7: 10383.60087 | L7: 17576.79567 | M7: 4543.96667 | N7: 13067.18672 | O7: 133153.3322
A8: 2014_BCR_CA_EXP_D-025 | B8: Transferts à d'autres secteurs (ménages, entreprises,…) | C8: 10239.78624 | D8: 33747.99985 | E8: 14716.10771 | F8: 35352.17901 | G8: 47686.85087 | H8: 36336.97405 | I8: 42038.46506 | J8: 11845.7275 | K8: 15743.12191 | L8: 81409.79702 | M8: 15242.83284 | N8: 100506.8376 | O8: 444866.6796
A9: 2014_BCR_CA_EXP_D-026 | B9: Transferts vers les organismes à consolider | C9: 165686.7028 | D9: 64372.5374 | E9: 178533.3902 | F9: 208230.0365 | G9: 54733.90333 | H9: 142944.7538 | I9: 86702.53668 | J9: 30854.94256 | K9: 62109.73366 | L9: 88909.52264 | M9: 42308.98223 | N9: 243252.1496 | O9: 1368639.191
A10: 2014_BCR_CA_EXP_D-027 | B10: Transferts à la sécurité sociale | C10: 0 | D10: 0 | E10: 0 | F10: 0 | G10: 0 | H10: 0 | I10: 0 | J10: 0 | K10: 0 | L10: 0 | M10: 0 | N10: 0 | O10: 0
A11: 2014_BCR_CA_EXP_D-028 | B11: Transferts aux pouvoirs locaux | C11: 8394.19734 | D11: 5871.40168 | E11: 76317.31126 | F11: 13691.25271 | G11: 106652.2843 | H11: 13731.70176 | I11: 26257.93455 | J11: 80868.46555 | K11: 13757.01242 | L11: 9877.81099 | M11: 6102.92532 | N11: 178762.735 | O11: 540285.0329
A12: 2014_BCR_CA_EXP_D-029 | B12: Transferts à l'enseignement autonome subsidié | C12: 6.54408 | D12: 3 | E12: 5.5 | F12: 1.78599 | G12: 29.64369 | H12: 3 | I12: 17.6951 | J12: 0 | K12: 87.23498 | L12: 3.29925 | M12: 10.8 | N12: 63.03908 | O12: 231.54217
A13: 2014_BCR_CA_EXP_D-030 | B13: Transferts vers d'autres groupes institutionnels | C13: 54616.77932 | D13: 27284.68564 | E13: 27328.11266 | F13: 32369.16666 | G13: 27375.18796 | H13: 59630.63332 | I13: 85.2321 | J13: 27356.66666 | K13: 32351.992 | L13: 27272.38927 | M13: 32330.66663 | N13: 4119.21259 | O13: 352120.7248
A14: 2014_BCR_CA_EXP_D-031 | B14: Investissements | C14: 5906.81021 | D14: 12012.55617 | E14: 8221.57268 | F14: 9702.08181 | G14: 7214.19115 | H14: 6997.08925 | I14: 6831.95848 | J14: 11761.42534 | K14: 9431.00734 | L14: 8923.98405 | M14: 10644.94857 | N14: 17041.52202 | O14: 114689.1471
A15: 2014_BCR_CA_EXP_D-032 | B15: Total hors opérations financières et opérations internes | C15: 295258.6974 | D15: 172336.9399 | E15: 348872.7657 | F15: 336140.6487 | G15: 293060.218 | H15: 290352.4435 | I15: 211917.891 | J15: 195573.4045 | K15: 162603.4227 | L15: 255066.1914 | M15: 134051.5416 | N15: 598043.4305 | O15: 3293277.595
A16: 2014_BCR_CA_EXP_D-033 | B16: Octroi de crédits, participations et autres produits financiers | C16: 0 | D16: 0 | E16: 0 | F16: 0.1 | G16: 1000 | H16: 411.13845 | I16: 0 | J16: 0 | K16: 0 | L16: 36253.90699 | M16: 0 | N16: 1680.73143 | O16: 39345.87687
A17: 2014_BCR_CA_EXP_D-034 | B17: Opérations financières relatives à la dette | C17: 25000 | D17: 0 | E17: 25000 | F17: 146500 | G17: 0 | H17: 15500 | I17: 60000 | J17: 0 | K17: 24789.35248 | L17: 0 | M17: 0 | N17: 0 | O17: 296789.3525
A18: 2014_BCR_CA_EXP_D-035 | B18: Opérations internes | C18: 0 | D18: 0 | E18: 0 | F18: 0 | G18: 0 | H18: 0 | I18: 0 | J18: 0 | K18: 0 | L18: 0 | M18: 0 | N18: 419.2 | O18: 419.2
A19: 2014_BCR_CA_EXP_D-036 | B19: Total général des dépenses | C19: 320258.6974 | D19: 172336.9399 | E19: 373872.7657 | F19: 482640.7487 | G19: 294060.218 | H19: 306263.582 | I19: 271917.891 | J19: 195573.4045 | K19: 187392.7751 | L19: 291320.0984 | M19: 134051.5416 | N19: 600143.362 | O19: 3629832.024
A20: 2014_BCR_CA_REV_D-021 | B20: Divers | C20: 423.87245 | D20: 745.54966 | E20: 134.26267 | F20: 173.38391 | G20: 206.46176 | H20: 328.83521 | I20: 120.37039 | J20: 390.96856 | K20: 121.45171 | L20: 943.31028 | M20: 3762.54714 | N20: 1091.20614 | O20: 8442.21988
A21: 2014_BCR_CA_REV_D-032 | B21: Total hors opérations financières et opérations internes | C21: 309783.8192 | D21: 255512.906 | E21: 202492.1837 | F21: 294693.5331 | G21: 203010.0438 | H21: 262814.6136 | I21: 293908.1213 | J21: 239302.1903 | K21: 239725.5462 | L21: 249068.5631 | M21: 313163.6618 | N21: 468380.2124 | O21: 3331855.395
A22: 2014_BCR_CA_REV_D-034 | B22: Opérations financières relatives à la dette | C22: 0 | D22: 0 | E22: 0 | F22: 71500 | G22: 0 | H22: 0 | I22: 156500 | J22: 0 | K22: 0 | L22: 10000 | M22: 0 | N22: -65000 | O22: 173000
A23: 2014_BCR_CA_REV_D-035 | B23: Opérations internes | C23: 0 | D23: 0 | E23: 0 | F23: 0 | G23: 0 | H23: 0 | I23: 0 | J23: 0 | K23: 0 | L23: 0 | M23: 0 | N23: 0 | O23: 0
A24: 2014_BCR_CA_REV_D-038 | B24: Recettes courantes pour biens et services | C24: 250.75049 | D24: 136.95295 | E24: 597.53115 | F24: 144.14044 | G24: 103.57382 | H24: 90.72062 | I24: 639.94308 | J24: 79.80636 | K24: 207.62339 | L24: 514.45297 | M24: 765.43378 | N24: 202.21624 | O24: 3733.14529
A25: 2014_BCR_CA_REV_D-039 | B25: Revenus de la propriété | C25: 1300.56638 | D25: 3.7842 | E25: 1711.04032 | F25: 3930.92198 | G25: 6.14695 | H25: 763.58868 | I25: 1947.65274 | J25: 192.07007 | K25: 1903.23771 | L25: 114.90399 | M25: 472.96093 | N25: 1801.51793 | O25: 14148.39188
A26: 2014_BCR_CA_REV_D-040 | B26: Recettes fiscales | C26: 175562.692 | D26: 142537.1896 | E26: 99340.18192 | F26: 153204.0346 | G26: 101040.9699 | H26: 144536.0296 | I26: 120082.2473 | J26: 119559.8636 | K26: 116172.544 | L26: 102961.0674 | M26: 129763.2548 | N26: 152579.5763 | O26: 1557339.651
A27: 2014_BCR_CA_REV_D-041 | B27: Transferts en provenance d'autres secteurs (ménages, entreprises,…) | C27: 386.42323 | D27: 266.45323 | E27: 277.05016 | F27: 734.48148 | G27: 837.47022 | H27: 296.58345 | I27: 277.77343 | J27: 727.91093 | K27: 376.72667 | L27: 458.28972 | M27: 608.31572 | N27: 9550.69475 | O27: 14798.17299
A28: 2014_BCR_CA_REV_D-042 | B28: Transferts en provenance des organismes à consolider | C28: 63.99669 | D28: 61.16542 | E28: 46.59944 | F28: 0.58271 | G28: 62.93213 | H28: 102.39798 | I28: 10.96737 | J28: 7.40376 | K28: 49.79577 | L28: 2.37174 | M28: 216.98235 | N28: 48.3819 | O28: 673.57726
A29: 2014_BCR_CA_REV_D-043 | B29: Transferts en provenance de la sécurité sociale | C29: 0 | D29: 0 | E29: 0 | F29: 0 | G29: 0 | H29: 0 | I29: 0 | J29: 0 | K29: 0 | L29: 0 | M29: 0 | N29: 0 | O29: 0
A30: 2014_BCR_CA_REV_D-044 | B30: Transferts en provenance des pouvoirs locaux | C30: 36880 | D30: 7100 | E30: 5470 | F30: 5600 | G30: 3890 | H30: 2300 | I30: 1535 | J30: 1550 | K30: 4100 | L30: 9780 | M30: 60780 | N30: 22329 | O30: 161314
A31: 2014_BCR_CA_REV_D-045 | B31: Transferts en provenance d'autres groupes institutionnels | C31: 94915.518 | D31: 104661.811 | E31: 94915.518 | F31: 130905.988 | G31: 96862.489 | H31: 114396.458 | I31: 169294.167 | J31: 116794.167 | K31: 116794.167 | L31: 134294.167 | M31: 116794.167 | N31: 280582.541 | O31: 1571211.158
A32: 2014_BCR_CA_REV_D-046 | B32: Désinvestissements | C32: 0 | D32: 0 | E32: 0 | F32: 0 | G32: 0 | H32: 0 | I32: 0 | J32: 0 | K32: 0 | L32: 0 | M32: 0 | N32: 195.07808 | O32: 195.07808
A33: 2014_BCR_CA_REV_D-047 | B33: Remboursements de crédits, liquidations de participations et autres produits financiers | C33: 256.23454 | D33: 99.40231 | E33: 290.28782 | F33: 70.92242 | G33: 142.02223 | H33: 62.37074 | I33: 128.40936 | J33: 80.40181 | K33: 107.10491 | L33: 62.97536 | M33: 63.1964 | N33: 2066.46301 | O33: 3429.79091
A34: 2014_BCR_CA_REV_D-048 | B34: Total général des recettes | C34: 310040.0538 | D34: 255612.3084 | E34: 202782.4715 | F34: 366264.4555 | G34: 203152.066 | H34: 262876.9843 | I34: 450536.5306 | J34: 239382.5921 | K34: 239832.6511 | L34: 259131.5385 | M34: 313226.8582 | N34: 405446.6754 | O34: 3508285.185 | P34: =IF(COUNTBLANK(Q34)=0,IF(RIGHT(A34,12)=Q34,TRUE,FALSE),"") -> 
A35: 2014_BCR_INS_BAL_D-049 | B35: Solde hors opérations financières et opérations internes | C35: 64496.98711 | D35: 27064.06304 | E35: 150806.798 | F35: 18842.17959 | G35: 76661.28093 | H35: -67654.64293 | I35: 14724.65455 | J35: -17390.80841 | K35: -19761.84026 | L35: 17219.79015 | M35: -94670.66228 | N35: -15239.68166 | O35: 155098.1178
A36: 2014_BCR_INS_BAL_D-050 | B36: Solde | C36: 64817.7392 | D36: 29097.77591 | E36: 157202.5062 | F36: 23453.50689 | G36: 82152.61875 | H36: -61939.31976 | I36: 23405.3796 | J36: -7.8102 | K36: -13913.76488 | L36: 20795.69436 | M36: -87600.97038 | N36: -42340.0205 | O36: 195123.3352
A37: 2014_BCR_INS_EXP_D-021 | B37: Divers | C37: 165.67972 | D37: 288.02386 | E37: 270.98662 | F37: 165.97122 | G37: 164.37064 | H37: 329.32633 | I37: 232.95348 | J37: 145.82966 | K37: 192.33903 | L37: 343.44698 | M37: 155.4017 | N37: 4900.09498 | O37: 7354.42422
A38: 2014_BCR_INS_EXP_D-022 | B38: Salaires et charges sociales | C38: 69592.21369 | D38: 62475.38161 | E38: 63944.38362 | F38: 61888.16031 | G38: 70412.80819 | H38: 66269.46831 | I38: 63580.01216 | J38: 60522.01293 | K38: 56567.37364 | L38: 68217.42536 | M38: 89908.00338 | N38: 126731.6191 | O38: 860108.8623
A39: 2014_BCR_INS_EXP_D-023 | B39: Dépenses courantes pour biens et services | C39: 11243.11627 | D39: 15005.27644 | E39: 21631.66336 | F39: 17411.25623 | G39: 17393.33552 | H39: 20877.31573 | I39: 24067.07492 | J39: 19184.62777 | K39: 19356.45452 | L39: 21341.00787 | M39: 22175.38603 | N39: 82976.09435 | O39: 292662.609
A40: 2014_BCR_INS_EXP_D-024 | B40: Charges d'intérêt | C40: 1185.57298 | D40: 916.68457 | E40: 4899.85115 | F40: 1134.54038 | G40: 1530.1776 | H40: 4093.09408 | I40: 1204.58476 | J40: 1077.84092 | K40: 3299.49943 | L40: 2269.46477 | M40: 1039.04618 | N40: 4194.37845 | O40: 26844.73527
A41: 2014_BCR_INS_EXP_D-025 | B41: Transferts à d'autres secteurs (ménages, entreprises,…) | C41: 20831.14571 | D41: 19260.29478 | E41: 18637.40911 | F41: 29473.45659 | G41: 22032.33082 | H41: 24950.3641 | I41: 24418.32942 | J41: 21610.80822 | K41: 21611.79427 | L41: 19953.14 | M41: 20269.18025 | N41: 49642.632 | O41: 292690.8853
A42: 2014_BCR_INS_EXP_D-027 | B42: Transferts à la sécurité sociale | C42: 0 | D42: 0 | E42: 0 | F42: 0 | G42: 0 | H42: 0 | I42: 0 | J42: 0 | K42: 0 | L42: 0 | M42: 0 | N42: 0 | O42: 0
A43: 2014_BCR_INS_EXP_D-028 | B43: Transferts aux pouvoirs locaux | C43: 454.27951 | D43: 119.56925 | E43: 6.86175 | F43: 1646.90101 | G43: 1981.74907 | H43: 9738.16414 | I43: 8679.28122 | J43: 10338.83598 | K43: 4436.73155 | L43: 8556.16945 | M43: 139.49602 | N43: 25436.76754 | O43: 71534.80649
A44: 2014_BCR_INS_EXP_D-029 | B44: Transferts à l'enseignement autonome subsidié | C44: 0 | D44: 154.71588 | E44: 157.353 | F44: 677.78128 | G44: 253.01307 | H44: 870.85289 | I44: 279.45068 | J44: 514.22671 | K44: 846.2622 | L44: 547.74635 | M44: 1192.1363 | N44: 9437.16603 | O44: 14930.70439
A45: 2014_BCR_INS_EXP_D-030 | B45: Transferts vers d'autres groupes institutionnels | C45: 2353.40544 | D45: 2030.8721 | E45: 1671.05571 | F45: 736.17303 | G45: 3628.46849 | H45: 1179.46323 | I45: 2076.7031 | J45: 670.13386 | K45: 593.25823 | L45: 603.84311 | M45: 1285.16137 | N45: 5531.42377 | O45: 22359.96144
A46: 2014_BCR_INS_EXP_D-031 | B46: Investissements | C46: 5381.39075 | D46: 9793.33043 | E46: 12151.07538 | F46: 11877.55524 | G46: 14115.7482 | H46: 17760.73812 | I46: 14433.77601 | J46: 10875.38609 | K46: 36132.13475 | L46: 31681.45367 | M46: 29861.25202 | N46: 96025.86497 | O46: 290089.7056
A47: 2014_BCR_INS_EXP_D-032 | B47: Total hors opérations financières et opérations internes | C47: 112653.8858 | D47: 114784.9917 | E47: 123434.6166 | F47: 131908.8517 | G47: 132284.8018 | H47: 147118.6141 | I47: 144476.7379 | J47: 126947.8441 | K47: 142786.4983 | L47: 160135.202 | M47: 167119.2171 | N47: 406820.9598 | O47: 1910472.221
A48: 2014_BCR_INS_EXP_D-033 | B48: Octroi de crédits, participations et autres produits financiers | C48: 83421.48444 | D48: 30149.60951 | E48: 20628.84031 | F48: 16206.20771 | G48: 19746.64137 | H48: 21108.60139 | I48: 22990.21627 | J48: 16355.60469 | K48: 18034.422 | L48: 8105.67112 | M48: 6113.54194 | N48: 27557.28732 | O48: 290418.1281
A49: 2014_BCR_INS_EXP_D-034 | B49: Opérations financières relatives à la dette | C49: 223433.1833 | D49: 29092.5907 | E49: 6618.95121 | F49: 1634.96047 | G49: 1634.96047 | H49: 5576.08863 | I49: 1833.53466 | J49: 1634.95947 | K49: 3255.04351 | L49: 9533.31688 | M49: 1634.95947 | N49: 95961.36513 | O49: 381843.9139
A50: 2014_BCR_INS_EXP_D-035 | B50: Opérations internes | C50: 1954.59938 | D50: 2135.85993 | E50: 1954.97833 | F50: 1954.7468 | G50: 1954.77212 | H50: 1954.59938 | I50: 1958.22604 | J50: 1954.67517 | K50: 1954.43862 | L50: 1954.70757 | M50: 1954.75096 | N50: 1953.86493 | O50: 23640.21923
A51: 2014_BCR_INS_EXP_D-036 | B51: Total général des dépenses | C51: 421463.1529 | D51: 176163.0519 | E51: 152637.3864 | F51: 151704.7667 | G51: 155621.1757 | H51: 175757.9035 | I51: 171258.7149 | J51: 146893.0834 | K51: 166030.4024 | L51: 179728.8976 | M51: 176822.4695 | N51: 532293.4772 | O51: 2606374.482
A52: 2014_BCR_INS_EXP_D-053 | B52: Transferts à l'intérieur du groupe institutionnel | C52: 1447.08177 | D52: 4740.8428 | E52: 63.97689 | F52: 6897.05642 | G52: 772.80019 | H52: 1049.82719 | I52: 5504.57218 | J52: 2008.14198 | K52: -249.34934 | L52: 6621.50442 | M52: 1094.15385 | N52: 1944.91859 | O52: 31895.52694
A53: 2014_BCR_INS_REV_D-021 | B53: Divers | C53: 12247.6435 | D53: 14608.89387 | E53: 12324.24987 | F53: 14722.75336 | G53: 12851.10538 | H53: 12047.28162 | I53: 13516.23847 | J53: 12754.61067 | K53: 17939.67141 | L53: 12396.53407 | M53: 13695.71779 | N53: 28236.4034 | O53: 177341.1034
A54: 2014_BCR_INS_REV_D-032 | B54: Total hors opérations financières et opérations internes | C54: 177150.8729 | D54: 141849.0548 | E54: 274241.4146 | F54: 150751.0313 | G54: 208946.0827 | H54: 79463.97119 | I54: 159201.3925 | J54: 109557.0357 | K54: 123024.658 | L54: 177354.9921 | M54: 72448.55482 | N54: 391581.2781 | O54: 2065570.339
A55: 2014_BCR_INS_REV_D-034 | B55: Opérations financières relatives à la dette | C55: 200183.5952 | D55: 32905.67595 | E55: 25619.36433 | F55: 19148.28787 | G55: 22465.14015 | H55: 25205.42775 | I55: 25974.29092 | J55: 31958.46728 | K55: 22467.73313 | L55: 10886.57628 | M55: 8845.22723 | N55: 82717.50757 | O55: 508377.2936
A56: 2014_BCR_INS_REV_D-035 | B56: Opérations internes | C56: 1998.22323 | D56: 2003.03755 | E56: 1951.7017 | F56: 2215.53313 | G56: 2028.28953 | H56: 2164.63438 | I56: 2133.13337 | J56: 2058.94401 | K56: 1955.44106 | L56: 2020.72081 | M56: 2094.67722 | N56: 2554.49957 | O56: 25178.83556
A57: 2014_BCR_INS_REV_D-038 | B57: Recettes courantes pour biens et services | C57: 23089.37789 | D57: 21647.84703 | E57: 24430.94758 | F57: 24290.29636 | G57: 53951.99833 | H57: 27752.16827 | I57: 30888.14266 | J57: 20001.97791 | K57: 29228.48177 | L57: 25686.845 | M57: 26254.23285 | N57: 44790.48381 | O57: 352012.7995
A58: 2014_BCR_INS_REV_D-039 | B58: Revenus de la propriété | C58: 3617.03692 | D58: 1589.59517 | E58: 3363.58595 | F58: 3361.78485 | G58: 2965.19077 | H58: 4380.34506 | I58: 4367.40355 | J58: 1720.04086 | K58: 2336.41896 | L58: 5084.0208 | M58: 1603.57319 | N58: 16904.15378 | O58: 51293.14986
A59: 2014_BCR_INS_REV_D-040 | B59: Recettes fiscales | C59: 0 | D59: 0 | E59: 0 | F59: 0 | G59: 0 | H59: 0 | I59: 0 | J59: 0 | K59: 0 | L59: 0 | M59: 0 | N59: 0 | O59: 0
A60: 2014_BCR_INS_REV_D-041 | B60: Transferts en provenance d'autres secteurs (ménages, entreprises,…) | C60: 442.47822 | D60: 74.77578 | E60: 261.67839 | F60: 22.86655 | G60: 8.45383 | H60: 63.44773 | I60: 2562.17779 | J60: 105.88562 | K60: 80.11356 | L60: 285.665 | M60: 84.56496 | N60: 5002.60738 | O60: 8994.71481
A61: 2014_BCR_INS_REV_D-043 | B61: Transferts en provenance de la sécurité sociale | C61: 17.21659 | D61: 910.04402 | E61: 0 | F61: 0 | G61: 0 | H61: 0 | I61: 834.34734 | J61: 941.64349 | K61: 0 | L61: 518.60111 | M61: 712.63725 | N61: 0 | O61: 3934.4898
A62: 2014_BCR_INS_REV_D-044 | B62: Transferts en provenance des pouvoirs locaux | C62: 0 | D62: 0 | E62: 0 | F62: 64 | G62: 27 | H62: 42.12844 | I62: 27 | J62: 63.974 | K62: 175.6165 | L62: 28.97245 | M62: 77 | N62: 33.52472 | O62: 539.21611
A63: 2014_BCR_INS_REV_D-045 | B63: Transferts en provenance d'autres groupes institutionnels | C63: 281.08632 | D63: 2343.38763 | E63: 1052.6031 | F63: 1278.12431 | G63: 10841.309 | H63: 1837.84249 | I63: 2643.65332 | J63: 204.78618 | K63: 1709.65386 | L63: 2092.99833 | M63: 10422.59799 | N63: 4633.18149 | O63: 39341.22402
A64: 2014_BCR_INS_REV_D-046 | B64: Désinvestissements | C64: 410.398 | D64: 631.27398 | E64: 1.53068 | F64: 915.70071 | G64: 0 | H64: 0 | I64: 0 | J64: 0 | K64: 3413.50275 | L64: 1118.14002 | M64: 933.89678 | N64: 3594.38537 | O64: 11018.82829
A65: 2014_BCR_INS_REV_D-047 | B65: Remboursements de crédits, liquidations de participations et autres produits financiers | C65: 106948.2008 | D65: 28503.05951 | E65: 8027.41202 | F65: 3043.42128 | G65: 4334.2821 | H65: 6984.55044 | I65: 7355.27773 | J65: 3310.82625 | K65: 4668.80532 | L65: 10262.30269 | M65: 5833.03982 | N65: 13100.1714 | O65: 202371.3494
A66: 2014_BCR_INS_REV_D-048 | B66: Total général des recettes | C66: 486280.8921 | D66: 205260.8278 | E66: 309839.8926 | F66: 175158.2736 | G66: 237773.7945 | H66: 113818.5838 | I66: 194664.0945 | J66: 146885.2732 | K66: 152116.6375 | L66: 200524.5919 | M66: 89221.49909 | N66: 489953.4567 | O66: 2801497.817 | P66: =IF(COUNTBLANK(Q66)=0,IF(RIGHT(A66,12)=Q66,TRUE,FALSE),"") -> 
A67: 2014_BCR_INS_REV_D-053 | B67: Transferts à l'intérieur du groupe institutionnel | C67: 137045.6355 | D67: 100043.2373 | E67: 232806.819 | F67: 106095.5052 | G67: 128301.0254 | H67: 33340.75758 | I67: 104362.4294 | J67: 73764.11698 | K67: 68141.19921 | L67: 130143.2154 | M67: 18664.33401 | N67: 288386.5382 | O67: 1421094.813
A68: 2014_C-B_BAL_D-049 | B68: Solde hors opérations financières et opérations internes | C68: -237408.177 | D68: -201061.2823 | E68: -102874.8445 | F68: 355584.567 | G68: -185759.7368 | P68: =IF(COUNTBLANK(Q68)=0,IF(RIGHT(A68,10)=Q68,TRUE,FALSE),"") -> 
A69: 2014_C-B_BAL_D-050 | B69: Solde | C69: -233074.7751 | D69: -159304.2683 | E69: -122544.2258 | F69: 386307.032 | G69: -128616.2372
A70: 2014_C-B_EXP_D-021 | B70: Divers | C70: 0 | D70: 0 | E70: 0 | F70: 0 | G70: 0
A71: 2014_C-B_EXP_D-022 | B71: Salaires et charges sociales | C71: 189511.2147 | D71: 249793.517 | E71: 191329.967 | F71: 447461.704 | G71: 1078096.403
A72: 2014_C-B_EXP_D-023 | B72: Dépenses courantes pour biens et services | C72: 44471.23909 | D72: 49274.986 | E72: 46927.80158 | F72: 56579.3 | G72: 197253.3267
A73: 2014_C-B_EXP_D-024 | B73: Charges d'intérêt | C73: 4277.30652 | D73: 8482.111 | E73: 12356.72719 | F73: 15460.758 | G73: 40576.90271
A74: 2014_C-B_EXP_D-025 | B74: Transferts à d'autres secteurs (ménages, entreprises,…) | C74: 23952.13114 | D74: 29296.394 | E74: 20814.57986 | F74: 32490.761 | G74: 106553.866
A75: 2014_C-B_EXP_D-031 | B75: Investissements | C75: 28639.97182 | D75: 70252.72 | E75: 58900.43615 | F75: 86943.638 | G75: 244736.766
A76: 2014_C-B_EXP_D-032 | B76: Total hors opérations financières et opérations internes | C76: 541407.0537 | D76: 569991.272 | E76: 483766.9804 | F76: 777369.661 | G76: 2372534.967
A77: 2014_C-B_EXP_D-033 | B77: Octroi de crédits, participations et autres produits financiers | C77: 0 | D77: 3.33 | E77: 4.69604 | F77: 8627.791 | G77: 8635.81704
A78: 2014_C-B_EXP_D-034 | B78: Opérations financières relatives à la dette | C78: 13276.75585 | D78: 32465.486 | E78: 25311.58374 | F78: 56989.481 | G78: 128043.3066
A79: 2014_C-B_EXP_D-035 | B79: Opérations internes | C79: 0 | D79: 35.775 | E79: 39.92745 | F79: 17411.537 | G79: 17487.23945
A80: 2014_C-B_EXP_D-036 | B80: Total général des dépenses | C80: 554683.8096 | D80: 602495.863 | E80: 509123.1876 | F80: 860398.47 | G80: 2526701.33
A81: 2014_C-B_EXP_D-109 | B81: Transferts vers l'autorité supérieure | C81: 550.32955 | D81: 412.439 | E81: 683.06099 | F81: 1486.291 | G81: 3132.12054
A82: 2014_C-B_EXP_D-110 | B82: Transferts vers les provinces et les autres pouvoirs publics | C82: 250004.8609 | D82: 162479.105 | E82: 152754.4076 | F82: 136947.209 | G82: 702185.5826
A83: 2014_C-B_REV_D-021 | B83: Divers | C83: 50.56608 | D83: 1 | E83: 32.7642 | F83: 80.03 | G83: 164.36028
A84: 2014_C-B_REV_D-032 | B84: Total hors opérations financières et opérations internes | C84: 303998.8767 | D84: 368929.9897 | E84: 380892.1359 | F84: 1132954.228 | G84: 2186775.23
A85: 2014_C-B_REV_D-034 | B85: Opérations financières relatives à la dette | C85: 16877.04089 | D85: 53089.196 | E85: 25419.59759 | F85: 56065.175 | G85: 151451.0095
A86: 2014_C-B_REV_D-035 | B86: Opérations internes | C86: 733.11688 | D86: 21092.631 | E86: -19739.694 | F86: 57691.663 | G86: 59777.71688
A87: 2014_C-B_REV_D-038 | B87: Recettes courantes pour biens et services | C87: 26307.19047 | D87: 25021.85469 | E87: 23402.86588 | F87: 40454.37 | G87: 115186.281
A88: 2014_C-B_REV_D-039 | B88: Revenus de la propriété | C88: 283.13695 | D88: 37054.95638 | E88: 23860.78691 | F88: 2960.777 | G88: 64159.65724
A89: 2014_C-B_REV_D-040 | B89: Recettes fiscales | C89: 100549.0168 | D89: 124850.297 | E89: 91864.02717 | F89: 636757.883 | G89: 954021.224
A90: 2014_C-B_REV_D-041 | B90: Transferts en provenance d'autres secteurs (ménages, entreprises,…) | C90: 1703.96699 | D90: 2842.74108 | E90: 1959.91629 | F90: 10879.201 | G90: 17385.82536
A91: 2014_C-B_REV_D-046 | B91: Désinvestissements | C91: 36.4385 | D91: 332.76191 | E91: 470.11582 | F91: 4174.865 | G91: 5014.18123
A92: 2014_C-B_REV_D-047 | B92: Remboursements de crédits, liquidations de participations et autres produits financiers | C92: 0 | D92: 79.778 | E92: 6.92235 | F92: -5.564 | G92: 81.13635
A93: 2014_C-B_REV_D-048 | B93: Total général des recettes | C93: 321609.0344 | D93: 443191.5947 | E93: 386578.9618 | F93: 1246705.502 | G93: 2398085.093
A94: 2014_C-B_REV_D-111 | B94: Transferts en provenance de l'autorité supérieure | C94: 162105.4151 | D94: 166045.9808 | E94: 234854.701 | F94: 427790.745 | G94: 990796.8418
A95: 2014_C-B_REV_D-112 | B95: Transferts en provenance des provinces et d'autres pouvoirs publics | C95: 12963.1458 | D95: 12780.39784 | E95: 4446.95861 | F95: 9856.357 | G95: 40046.85925
A96: 2014_CCC_CA_BAL_D-049 | B96: Solde hors opérations financières et opérations internes | C96: -9402 | D96: -636 | E96: 336 | F96: -2158 | G96: 581 | H96: -572 | I96: -2352 | J96: 4394 | K96: 346 | L96: 2165 | M96: -1211 | N96: 8551 | O96: 42
A97: 2014_CCC_CA_BAL_D-050 | B97: Solde | C97: -9400 | D97: -635 | E97: 336 | F97: -2123 | G97: 582 | H97: -571 | I97: -2318 | J97: 4395 | K97: 346 | L97: 2198 | M97: -1211 | N97: 8551 | O97: 150
A98: 2014_CCC_CA_EXP_D-021 | B98: Divers | C98: 0 | D98: 0 | E98: 0 | F98: 0 | G98: 0 | H98: 0 | I98: 0 | J98: 0 | K98: 0 | L98: 0 | M98: 0 | N98: 0 | O98: 0
A99: 2014_CCC_CA_EXP_D-022 | B99: Salaires et charges sociales | C99: 1048 | D99: 11 | E99: 976 | F99: 267 | G99: 28 | H99: 1013 | I99: 614 | J99: 7 | K99: 9 | L99: 1046 | M99: 13 | N99: 140 | O99: 5172
A100: 2014_CCC_CA_EXP_D-023 | B100: Dépenses courantes pour biens et services | C100: 152 | D100: 220 | E100: 350 | F100: 438 | G100: 93 | H100: 323 | I100: 158 | J100: 93 | K100: 137 | L100: 102 | M100: 162 | N100: 698 | O100: 2926
A101: 2014_CCC_CA_EXP_D-024 | B101: Charges d'intérêt | C101: 0 | D101: 0 | E101: 0 | F101: 0 | G101: 0 | H101: 0 | I101: 0 | J101: 0 | K101: 0 | L101: 0 | M101: 0 | N101: 0 | O101: 0
A102: 2014_CCC_CA_EXP_D-025 | B102: Transferts à d'autres secteurs (ménages, entreprises,…) | C102: 7993 | D102: 5673 | E102: 3349 | F102: 6084 | G102: 4138 | H102: 4142 | I102: 5648 | J102: 839 | K102: 4299 | L102: 4404 | M102: 3050 | N102: 4217 | O102: 53836
A103: 2014_CCC_CA_EXP_D-026 | B103: Transferts vers les organismes à consolider | C103: 0 | D103: 0 | E103: 0 | F103: 0 | G103: 0 | H103: 0 | I103: 0 | J103: 0 | K103: 0 | L103: 0 | M103: 0 | N103: 0 | O103: 0
A104: 2014_CCC_CA_EXP_D-027 | B104: Transferts à la sécurité sociale | C104: 0 | D104: 0 | E104: 0 | F104: 0 | G104: 0 | H104: 0 | I104: 0 | J104: 0 | K104: 0 | L104: 0 | M104: 0 | N104: 0 | O104: 0
A105: 2014_CCC_CA_EXP_D-028 | B105: Transferts aux pouvoirs locaux | C105: 5965 | D105: 661 | E105: 574 | F105: 1060 | G105: 5898 | H105: 762 | I105: 6660 | J105: 337 | K105: 5943 | L105: 994 | M105: 636 | N105: 723 | O105: 30213
A106: 2014_CCC_CA_EXP_D-029 | B106: Transferts à l'enseignement autonome subsidié | C106: 0 | D106: 0 | E106: 0 | F106: 0 | G106: 0 | H106: 0 | I106: 0 | J106: 0 | K106: 0 | L106: 0 | M106: 0 | N106: 0 | O106: 0
A107: 2014_CCC_CA_EXP_D-030 | B107: Transferts vers d'autres groupes institutionnels | C107: 1 | D107: 0 | E107: 0 | F107: 8 | G107: 7 | H107: 0 | I107: 0 | J107: 0 | K107: 0 | L107: 0 | M107: 0 | N107: 4 | O107: 20
A108: 2014_CCC_CA_EXP_D-031 | B108: Investissements | C108: 0 | D108: 2 | E108: 3 | F108: 7 | G108: 7 | H108: 0 | I108: 40 | J108: 19 | K108: 16 | L108: 2 | M108: 30 | N108: 16 | O108: 142
A109: 2014_CCC_CA_EXP_D-032 | B109: Total hors opérations financières et opérations internes | C109: 15159 | D109: 6567 | E109: 5252 | F109: 7864 | G109: 10171 | H109: 6240 | I109: 13120 | J109: 1295 | K109: 10404 | L109: 6548 | M109: 3891 | N109: 5798 | O109: 92309
A110: 2014_CCC_CA_EXP_D-033 | B110: Octroi de crédits, participations et autres produits financiers | C110: 0 | D110: 0 | E110: 0 | F110: 0 | G110: 0 | H110: 0 | I110: 0 | J110: 0 | K110: 0 | L110: 0 | M110: 0 | N110: 0 | O110: 0
A111: 2014_CCC_CA_EXP_D-034 | B111: Opérations financières relatives à la dette | C111: 0 | D111: 0 | E111: 0 | F111: 0 | G111: 0 | H111: 0 | I111: 0 | J111: 0 | K111: 0 | L111: 0 | M111: 0 | N111: 0 | O111: 0
A112: 2014_CCC_CA_EXP_D-035 | B112: Opérations internes | C112: 0 | D112: 0 | E112: 0 | F112: 0 | G112: 0 | H112: 0 | I112: 0 | J112: 0 | K112: 0 | L112: 0 | M112: 0 | N112: 0 | O112: 0
A113: 2014_CCC_CA_EXP_D-036 | B113: Total général des dépenses | C113: 15159 | D113: 6567 | E113: 5252 | F113: 7864 | G113: 10171 | H113: 6240 | I113: 13120 | J113: 1295 | K113: 10404 | L113: 6548 | M113: 3891 | N113: 5798 | O113: 92309
A114: 2014_CCC_CA_REV_D-021 | B114: Divers | C114: 0 | D114: 2 | E114: 4 | F114: 17 | G114: 2 | H114: 36 | I114: 17 | J114: 0 | K114: 0 | L114: 14 | M114: 0 | N114: 13 | O114: 105
A115: 2014_CCC_CA_REV_D-032 | B115: Total hors opérations financières et opérations internes | C115: 5757 | D115: 5931 | E115: 5588 | F115: 5706 | G115: 10752 | H115: 5668 | I115: 10768 | J115: 5689 | K115: 10750 | L115: 8713 | M115: 2680 | N115: 14349 | O115: 92351
A116: 2014_CCC_CA_REV_D-034 | B116: Opérations financières relatives à la dette | C116: 2 | D116: 1 | E116: 0 | F116: 35 | G116: 1 | H116: 1 | I116: 34 | J116: 1 | K116: 0 | L116: 33 | M116: 0 | N116: 0 | O116: 108
A117: 2014_CCC_CA_REV_D-035 | B117: Opérations internes | C117: 0 | D117: 0 | E117: 0 | F117: 0 | G117: 0 | H117: 0 | I117: 0 | J117: 0 | K117: 0 | L117: 0 | M117: 0 | N117: 0 | O117: 0
A118: 2014_CCC_CA_REV_D-038 | B118: Recettes courantes pour biens et services | C118: 0 | D118: 0 | E118: 0 | F118: 0 | G118: 0 | H118: 0 | I118: 0 | J118: 0 | K118: 0 | L118: 0 | M118: 0 | N118: 0 | O118: 0
A119: 2014_CCC_CA_REV_D-039 | B119: Revenus de la propriété | C119: 0 | D119: 0 | E119: 0 | F119: 0 | G119: 0 | H119: 0 | I119: 0 | J119: 0 | K119: 0 | L119: 0 | M119: 0 | N119: 0 | O119: 0
A120: 2014_CCC_CA_REV_D-040 | B120: Recettes fiscales | C120: 0 | D120: 0 | E120: 0 | F120: 0 | G120: 0 | H120: 0 | I120: 0 | J120: 0 | K120: 0 | L120: 0 | M120: 0 | N120: 0 | O120: 0
A121: 2014_CCC_CA_REV_D-041 | B121: Transferts en provenance d'autres secteurs (ménages, entreprises,…) | C121: 0 | D121: 0 | E121: 0 | F121: 0 | G121: 0 | H121: 0 | I121: 0 | J121: 0 | K121: 0 | L121: 0 | M121: 0 | N121: 2 | O121: 2
A122: 2014_CCC_CA_REV_D-042 | B122: Transferts en provenance des organismes à consolider | C122: 0 | D122: 0 | E122: 0 | F122: 0 | G122: 0 | H122: 0 | I122: 0 | J122: 0 | K122: 0 | L122: 0 | M122: 0 | N122: 0 | O122: 0
A123: 2014_CCC_CA_REV_D-043 | B123: Transferts en provenance de la sécurité sociale | C123: 0 | D123: 0 | E123: 0 | F123: 0 | G123: 0 | H123: 0 | I123: 0 | J123: 0 | K123: 0 | L123: 0 | M123: 0 | N123: 0 | O123: 0
A124: 2014_CCC_CA_REV_D-044 | B124: Transferts en provenance des pouvoirs locaux | C124: 0 | D124: 0 | E124: 0 | F124: 0 | G124: 0 | H124: 0 | I124: 0 | J124: 0 | K124: 0 | L124: 0 | M124: 0 | N124: 0 | O124: 0
A125: 2014_CCC_CA_REV_D-045 | B125: Transferts en provenance d'autres groupes institutionnels | C125: 5757 | D125: 5929 | E125: 5584 | F125: 5689 | G125: 10750 | H125: 5632 | I125: 10751 | J125: 5689 | K125: 10750 | L125: 8699 | M125: 2680 | N125: 14334 | O125: 92244
A126: 2014_CCC_CA_REV_D-046 | B126: Désinvestissements | C126: 0 | D126: 0 | E126: 0 | F126: 0 | G126: 0 | H126: 0 | I126: 0 | J126: 0 | K126: 0 | L126: 0 | M126: 0 | N126: 0 | O126: 0
A127: 2014_CCC_CA_REV_D-047 | B127: Remboursements de crédits, liquidations de participations et autres produits financiers | C127: 0 | D127: 0 | E127: 0 | F127: 0 | G127: 0 | H127: 0 | I127: 0 | J127: 0 | K127: 0 | L127: 0 | M127: 0 | N127: 0 | O127: 0
A128: 2014_CCC_CA_REV_D-048 | B128: Total général des recettes | C128: 5759 | D128: 5932 | E128: 5588 | F128: 5741 | G128: 10753 | H128: 5669 | I128: 10802 | J128: 5690 | K128: 10750 | L128: 8746 | M128: 2680 | N128: 14349 | O128: 92459
A129: 2014_CCC_INS_BAL_D-049 | B129: Solde hors opérations financières et opérations internes
A130: 2014_CCC_INS_BAL_D-050 | B130: Solde
A131: 2014_CCC_INS_EXP_D-021 | B131: Divers
A132: 2014_CCC_INS_EXP_D-022 | B132: Salaires et charges sociales | P132: =IF(COUNTBLANK(Q132)=0,IF(RIGHT(A132,10)=Q132,TRUE,FALSE),"") -> 
A133: 2014_CCC_INS_EXP_D-023 | B133: Dépenses courantes pour biens et services
A134: 2014_CCC_INS_EXP_D-024 | B134: Charges d'intérêt
A135: 2014_CCC_INS_EXP_D-025 | B135: Transferts à d'autres secteurs (ménages, entreprises,…)
A136: 2014_CCC_INS_EXP_D-027 | B136: Transferts à la sécurité sociale
A137: 2014_CCC_INS_EXP_D-028 | B137: Transferts aux pouvoirs locaux
A138: 2014_CCC_INS_EXP_D-029 | B138: Transferts à l'enseignement autonome subsidié
A139: 2014_CCC_INS_EXP_D-030 | B139: Transferts vers d'autres groupes institutionnels
A140: 2014_CCC_INS_EXP_D-031 | B140: Investissements
A141: 2014_CCC_INS_EXP_D-032 | B141: Total hors opérations financières et opérations internes
A142: 2014_CCC_INS_EXP_D-033 | B142: Octroi de crédits, participations et autres produits financiers
A143: 2014_CCC_INS_EXP_D-034 | B143: Opérations financières relatives à la dette
A144: 2014_CCC_INS_EXP_D-035 | B144: Opérations internes
A145: 2014_CCC_INS_EXP_D-036 | B145: Total général des dépenses
A146: 2014_CCC_INS_EXP_D-053 | B146: Transferts à l'intérieur du groupe institutionnel
A147: 2014_CCC_INS_REV_D-021 | B147: Divers
A148: 2014_CCC_INS_REV_D-032 | B148: Total hors opérations financières et opérations internes
A149: 2014_CCC_INS_REV_D-034 | B149: Opérations financières relatives à la dette
A150: 2014_CCC_INS_REV_D-035 | B150: Opérations internes
A151: 2014_CCC_INS_REV_D-038 | B151: Recettes courantes pour biens et services
A152: 2014_CCC_INS_REV_D-039 | B152: Revenus de la propriété
A153: 2014_CCC_INS_REV_D-040 | B153: Recettes fiscales
A154: 2014_CCC_INS_REV_D-041 | B154: Transferts en provenance d'autres secteurs (ménages, entreprises,…)
A155: 2014_CCC_INS_REV_D-043 | B155: Transferts en provenance de la sécurité sociale
A156: 2014_CCC_INS_REV_D-044 | B156: Transferts en provenance des pouvoirs locaux
A157: 2014_CCC_INS_REV_D-045 | B157: Transferts en provenance d'autres groupes institutionnels
A158: 2014_CCC_INS_REV_D-046 | B158: Désinvestissements
A159: 2014_CCC_INS_REV_D-047 | B159: Remboursements de crédits, liquidations de participations et autres produits financiers
A160: 2014_CCC_INS_REV_D-048 | B160: Total général des recettes
A161: 2014_CCC_INS_REV_D-053 | B161: Transferts à l'intérieur du groupe institutionnel
A162: 2014_C-Fl_BAL_D-049 | B162: Solde hors opérations financières et opérations internes | C162: -130287 | D162: -502689 | E162: 1564 | F162: 257455 | G162: -373957
A163: 2014_C-Fl_BAL_D-050 | B163: Solde | C163: -129793 | D163: -487856 | E163: -80849 | F163: 8364 | G163: -690134
A164: 2014_C-Fl_EXP_D-021 | B164: Divers | C164: 16093 | D164: 38334 | E164: 18492 | F164: 47835 | G164: 120754
A165: 2014_C-Fl_EXP_D-022 | B165: Salaires et charges sociales | C165: 511742 | D165: 723572 | E165: 921211 | F165: 1140829 | G165: 3297354
A166: 2014_C-Fl_EXP_D-023 | B166: Dépenses courantes pour biens et services | C166: 290347 | D166: 343548 | E166: 331852 | F166: 466937 | G166: 1432684
A167: 2014_C-Fl_EXP_D-024 | B167: Charges d'intérêt | C167: 12013 | D167: 21326 | E167: 88928 | F167: 65841 | G167: 188108
A168: 2014_C-Fl_EXP_D-025 | B168: Transferts à d'autres secteurs (ménages, entreprises,…) | C168: 312663 | D168: 13493 | E168: 306632 | F168: 291784 | G168: 924572
A169: 2014_C-Fl_EXP_D-031 | B169: Investissements | C169: 140635 | D169: 233901 | E169: 248824 | F169: 452759 | G169: 1076119
A170: 2014_C-Fl_EXP_D-032 | B170: Total hors opérations financières et opérations internes | C170: 1824895 | D170: 2002569 | E170: 2350416 | F170: 3009650 | G170: 9187530
A171: 2014_C-Fl_EXP_D-033 | B171: Octroi de crédits, participations et autres produits financiers | C171: 2206 | D171: 5798 | E171: 30624 | F171: 345695 | G171: 384323
A172: 2014_C-Fl_EXP_D-034 | B172: Opérations financières relatives à la dette | C172: 31079 | D172: 62164 | E172: 168403 | F172: 149796 | G172: 411442
A173: 2014_C-Fl_EXP_D-035 | B173: Opérations internes | D173: 0 | E173: 0 | F173: 0
A174: 2014_C-Fl_EXP_D-036 | B174: Total général des dépenses | C174: 1858180 | D174: 2070531 | E174: 2549443 | F174: 3505141 | G174: 9983295
A175: 2014_C-Fl_EXP_D-109 | B175: Transferts vers l'autorité supérieure | C175: 13460 | D175: 30066 | E175: 47971 | F175: 8310 | G175: 99807
A176: 2014_C-Fl_EXP_D-110 | B176: Transferts vers les provinces et les autres pouvoirs publics | C176: 527942 | D176: 598329 | E176: 386506 | F176: 535355 | G176: 2048132
A177: 2014_C-Fl_REV_D-021 | B177: Divers | C177: 27284 | D177: 21934 | E177: 38067 | F177: 62857 | G177: 150142
A178: 2014_C-Fl_REV_D-032 | B178: Total hors opérations financières et opérations internes | C178: 1694608 | D178: 1499880 | E178: 2351980 | F178: 3267105 | G178: 8813573
A179: 2014_C-Fl_REV_D-034 | B179: Opérations financières relatives à la dette | C179: 29624 | D179: 80992 | E179: 106957 | F179: 159124 | G179: 376697
A180: 2014_C-Fl_REV_D-035 | B180: Opérations internes | D180: 0 | E180: 0 | F180: 0
A181: 2014_C-Fl_REV_D-038 | B181: Recettes courantes pour biens et services | C181: 110564 | D181: 146679 | E181: 127155 | F181: 278114 | G181: 662512
A182: 2014_C-Fl_REV_D-039 | B182: Revenus de la propriété | C182: 3062 | D182: 50579 | E182: 74526 | F182: 195673 | G182: 323840
A183: 2014_C-Fl_REV_D-040 | B183: Recettes fiscales | C183: 509087 | D183: 789856 | E183: 1291992 | F183: 1741262 | G183: 4332197
A184: 2014_C-Fl_REV_D-041 | B184: Transferts en provenance d'autres secteurs (ménages, entreprises,…) | C184: 123162 | D184: 18275 | E184: 193226 | F184: 356454 | G184: 691117
A185: 2014_C-Fl_REV_D-046 | B185: Désinvestissements | C185: 4278 | D185: 3139 | E185: 14444 | F185: 68145 | G185: 90006
A186: 2014_C-Fl_REV_D-047 | B186: Remboursements de crédits, liquidations de participations et autres produits financiers | C186: 4155 | D186: 1803 | E186: 9657 | F186: 87276 | G186: 102891
A187: 2014_C-Fl_REV_D-048 | B187: Total général des recettes | C187: 1728387 | D187: 1582675 | E187: 2468594 | F187: 3513505 | G187: 9293161
A188: 2014_C-Fl_REV_D-111 | B188: Transferts en provenance de l'autorité supérieure | C188: 900944 | D188: 453542 | E188: 554118 | F188: 408107 | G188: 2316711
A189: 2014_C-Fl_REV_D-112 | B189: Transferts en provenance des provinces et d'autres pouvoirs publics | C189: 16227 | D189: 15876 | E189: 58452 | F189: 156493 | G189: 247048
A190: 2014_C-G_BAL_D-049 | B190: Solde hors opérations financières et opérations internes | C190: 7528.22705 | D190: -10580.6493 | E190: -12666.40432 | F190: 9177.91944 | G190: -6540.90713
A191: 2014_C-G_BAL_D-050 | B191: Solde | C191: 24734.98959 | D191: -4488.2915 | E191: -13567.24957 | F191: 7637.91614 | G191: 14317.36466
A192: 2014_C-G_EXP_D-021 | B192: Divers | C192: 0 | D192: 0 | E192: 0 | F192: 0 | G192: 0
A193: 2014_C-G_EXP_D-022 | B193: Salaires et charges sociales | C193: 7177.74562 | D193: 8835.00463 | E193: 8116.27993 | F193: 8590.83031 | G193: 32719.86049
A194: 2014_C-G_EXP_D-023 | B194: Dépenses courantes pour biens et services | C194: 5111.68708 | D194: 4371.22945 | E194: 4826.95226 | F194: 5602.49526 | G194: 19912.36405
A195: 2014_C-G_EXP_D-024 | B195: Charges d'intérêt | C195: 156.13029 | D195: 178.39557 | E195: 696.69813 | F195: 1183.16152 | G195: 2214.38551
A196: 2014_C-G_EXP_D-025 | B196: Transferts à d'autres secteurs (ménages, entreprises,…) | C196: 988.01183 | D196: 1483.4053 | E196: 1022.67792 | F196: 1531.87254 | G196: 5025.96759 | P196: =IF(COUNTBLANK(Q196)=0,IF(RIGHT(A196,10)=Q196,TRUE,FALSE),"") -> 
A197: 2014_C-G_EXP_D-031 | B197: Investissements | C197: 2280.17672 | D197: 4678.58003 | E197: 5368.39126 | F197: 8778.25797 | G197: 21105.40598
A198: 2014_C-G_EXP_D-032 | B198: Total hors opérations financières et opérations internes | C198: 19991.95839 | D198: 23144.1203 | E198: 23767.55237 | F198: 30891.00815 | G198: 97794.63921
A199: 2014_C-G_EXP_D-033 | B199: Octroi de crédits, participations et autres produits financiers | C199: 30.30122 | D199: 151.27797 | E199: 57.7652 | F199: 55.11485 | G199: 294.45924
A200: 2014_C-G_EXP_D-034 | B200: Opérations financières relatives à la dette | C200: 409.46907 | D200: 476.24554 | E200: 1073.87045 | F200: 5132.16725 | G200: 7091.75231
... 4300 more rows

Sheet Pivot (hidden)
A1: Sector | B1: Num | C1: Code | D1: 2016-01-01 | E1: 2016-02-01 | F1: 2016-03-01 | G1: 2016-04-01 | H1: 2016-05-01 | I1: 2016-06-01 | J1: 2016-07-01 | K1: 2016-08-01 | L1: 2016-09-01 | M1: 2016-10-01 | N1: 2016-11-01 | O1: 2016-12-01 | P1: TOTAL
A2: FF | B2: 32 | C2: CA_BAL_D-049
A3: FF | B3: 33 | C3: CA_BAL_D-050
A4: FF | B4: 1 | C4: CA_EXP_D-021
A5: FF | B5: 2 | C5: CA_EXP_D-022
A6: FF | B6: 3 | C6: CA_EXP_D-023
A7: FF | B7: 4 | C7: CA_EXP_D-024
A8: FF | B8: 5 | C8: CA_EXP_D-025
A9: FF | B9: 6 | C9: CA_EXP_D-026
A10: FF | B10: 7 | C10: CA_EXP_D-027
A11: FF | B11: 8 | C11: CA_EXP_D-028
A12: FF | B12: 9 | C12: CA_EXP_D-029
A13: FF | B13: 10 | C13: CA_EXP_D-030
A14: FF | B14: 11 | C14: CA_EXP_D-031
A15: FF | B15: 12 | C15: CA_EXP_D-032
A16: FF | B16: 13 | C16: CA_EXP_D-033
A17: FF | B17: 14 | C17: CA_EXP_D-034
A18: FF | B18: 15 | C18: CA_EXP_D-035
A19: FF | B19: 16 | C19: CA_EXP_D-036
A20: FF | B20: 17 | C20: CA_REV_D-021
A21: FF | B21: 27 | C21: CA_REV_D-032
A22: FF | B22: 29 | C22: CA_REV_D-034
A23: FF | B23: 30 | C23: CA_REV_D-035
A24: FF | B24: 18 | C24: CA_REV_D-038
A25: FF | B25: 19 | C25: CA_REV_D-039
A26: FF | B26: 20 | C26: CA_REV_D-040
A27: FF | B27: 21 | C27: CA_REV_D-041
A28: FF | B28: 22 | C28: CA_REV_D-042
A29: FF | B29: 23 | C29: CA_REV_D-043
A30: FF | B30: 24 | C30: CA_REV_D-044
A31: FF | B31: 25 | C31: CA_REV_D-045
A32: FF | B32: 26 | C32: CA_REV_D-046
A33: FF | B33: 28 | C33: CA_REV_D-047
A34: FF | B34: 31 | C34: CA_REV_D-048
A35: FF | B35: 65 | C35: NS_BAL_D-049
A36: FF | B36: 66 | C36: NS_BAL_D-050
A37: FF | B37: 34 | C37: NS_EXP_D-021
A38: FF | B38: 35 | C38: NS_EXP_D-022
A39: FF | B39: 36 | C39: NS_EXP_D-023
A40: FF | B40: 37 | C40: NS_EXP_D-024
A41: FF | B41: 38 | C41: NS_EXP_D-025
A42: FF | B42: 40 | C42: NS_EXP_D-027
A43: FF | B43: 41 | C43: NS_EXP_D-028
A44: FF | B44: 42 | C44: NS_EXP_D-029
A45: FF | B45: 43 | C45: NS_EXP_D-030
A46: FF | B46: 44 | C46: NS_EXP_D-031
A47: FF | B47: 45 | C47: NS_EXP_D-032
A48: FF | B48: 46 | C48: NS_EXP_D-033
A49: FF | B49: 47 | C49: NS_EXP_D-034
A50: FF | B50: 48 | C50: NS_EXP_D-035
A51: FF | B51: 49 | C51: NS_EXP_D-036
A52: FF | B52: 39 | C52: NS_EXP_D-053
A53: FF | B53: 50 | C53: NS_REV_D-021
A54: FF | B54: 60 | C54: NS_REV_D-032
A55: FF | B55: 62 | C55: NS_REV_D-034
A56: FF | B56: 63 | C56: NS_REV_D-035
A57: FF | B57: 51 | C57: NS_REV_D-038
A58: FF | B58: 52 | C58: NS_REV_D-039
A59: FF | B59: 53 | C59: NS_REV_D-040
A60: FF | B60: 54 | C60: NS_REV_D-041
A61: FF | B61: 56 | C61: NS_REV_D-043
A62: FF | B62: 57 | C62: NS_REV_D-044
A63: FF | B63: 58 | C63: NS_REV_D-045
A64: FF | B64: 59 | C64: NS_REV_D-046
A65: FF | B65: 61 | C65: NS_REV_D-047
A66: FF | B66: 64 | C66: NS_REV_D-048
A67: FF | B67: 55 | C67: NS_REV_D-053
A68: SS | B68: 172 | C68: FL_BAL_D-050 | Q68: Saldo | S68: =IFERROR(IF(Q68=R68,TRUE,IF(Q68=LEFT(R68,LEN(R68)-1),TRUE,IF(Q68=LEFT(R68,LEN(R68)-2),TRUE,FALSE))),"") -> 
A69: SS | B69: 151 | C69: FL_EXP_D-021 | Q69: Diversen | R69: Diversen | S69: TRUE
A70: SS | B70: 150 | C70: FL_EXP_D-024 | Q70: Interestlasten | R70: Interestlasten | S70: TRUE
A71: SS | B71: 156 | C71: FL_EXP_D-036 | Q71: Algemeen totaal van de uitgaven | R71: TOTAAL UITGAVEN | S71: FALSE
A72: SS | B72: 140 | C72: FL_EXP_D-056 | Q72: Prestaties | R72: Prestaties | S72: TRUE
A73: SS | B73: 141 | C73: FL_EXP_D-057 | Q73: RIZIV-Uitkeringen | R73: RIZIV-Uitkeringen | S73: TRUE
A74: SS | B74: 145 | C74: FL_EXP_D-066 | Q74: Betalingskosten | R74: Betalingskosten | S74: TRUE
A75: SS | B75: 146 | C75: FL_EXP_D-067 | Q75: Beheerskosten | R75: Beheerskosten | S75: TRUE
A76: SS | B76: 147 | C76: FL_EXP_D-068 | Q76: Externe overdrachten | R76: Externe overdrachten | S76: TRUE
A77: SS | B77: 148 | C77: FL_EXP_D-069 | Q77: RIZIV-Geneeskundige verzorging | R77: RIZIV-Geneeskundige verzorging | S77: TRUE
A78: SS | B78: 149 | C78: FL_EXP_D-070 | Q78: Andere | R78: Andere | S78: TRUE
A79: SS | B79: 152 | C79: FL_EXP_D-071 | Q79: Eigen uitgaven | R79: EIGEN UITGAVEN | S79: TRUE
A80: SS | B80: 155 | C80: FL_EXP_D-074 | Q80: Interne overdrachten | R80: INTERNE OVERDRACHTEN | S80: TRUE
A81: SS | B81: 142 | C81: FL_EXP_D-083 | Q81: RSVZ-Pensioenen | R81: RSVZ-Pensioenen | S81: TRUE
A82: SS | B82: 143 | C82: FL_EXP_D-085 | Q82: RSVZ-Overbruggingsrecht | R82: RSVZ-Overbruggingsrecht | S82: TRUE
A83: SS | B83: 144 | C83: FL_EXP_D-086 | Q83: RSVZ-Palliatieve verzorging | R83: RSVZ-Palliatieve verzorging | S83: TRUE
A84: SS | B84: 153 | C84: FL_EXP_D-089 | Q84: Van een tak naar het RSVZ-Globaal beheer | R84: Van een tak naar het RSVZ-Globaal beheer | S84: TRUE
A85: SS | B85: 154 | C85: FL_EXP_D-090 | Q85: Van het RSVZ-Globaal beheer naar een tak | R85: Van het RSVZ-Globaal beheer naar een tak | S85: TRUE
A86: SS | B86: 166 | C86: FL_REV_D-021 | Q86: Diversen | R86: Diversen | S86: TRUE
A87: SS | B87: 171 | C87: FL_REV_D-048 | Q87: Algemeen totaal van de ontvangsten | R87: TOTAAL ONTVANGSTEN | S87: FALSE
A88: SS | B88: 163 | C88: FL_REV_D-068 | Q88: Externe overdrachten | R88: Externe overdrachten | S88: TRUE
A89: SS | B89: 164 | C89: FL_REV_D-069 | Q89: RIZIV-Geneeskundige verzorging | R89: RIZIV-Geneeskundige verzorging | S89: TRUE
A90: SS | B90: 170 | C90: FL_REV_D-074 | Q90: Interne overdrachten | R90: INTERNE OVERDRACHTEN | S90: TRUE
A91: SS | B91: 157 | C91: FL_REV_D-075 | Q91: Bijdragen | R91: Bijdragen | S91: TRUE
A92: SS | B92: 161 | C92: FL_REV_D-077 | Q92: Alternatieve financiering | R92: Alternatieve financiering | S92: TRUE
A93: SS | B93: 162 | C93: FL_REV_D-078 | Q93: Toegewezen ontvangsten | R93: Toegewezen ontvangsten | S93: TRUE
A94: SS | B94: 165 | C94: FL_REV_D-080 | Q94: Opbrengsten beleggingen | R94: Opbrengsten beleggingen | S94: TRUE
A95: SS | B95: 167 | C95: FL_REV_D-081 | Q95: Eigen ontvangsten | R95: EIGEN ONTVANGSTEN | S95: TRUE
A96: SS | B96: 169 | C96: FL_REV_D-089 | Q96: Van een tak naar het RSVZ-Globaal beheer | R96: Van een tak naar het RSVZ-Globaal beheer | S96: TRUE
A97: SS | B97: 168 | C97: FL_REV_D-090 | Q97: Van het RSVZ-Globaal beheer naar een tak | R97: Van het RSVZ-Globaal beheer naar een tak | S97: TRUE
A98: SS | B98: 158 | C98: FL_REV_D-120 | Q98: Toelagen van de overheden | R98: Toelagen van de overheden | S98: TRUE
A99: SS | B99: 159 | C99: FL_REV_D-121 | Q99: Federale overheid | R99: Federale overheid | S99: TRUE
A100: SS | B100: 160 | C100: FL_REV_D-122 | Q100: Gefedereerde entiteiten | R100: Gefedereerde entiteiten | S100: TRUE
A101: SS | B101: 200.5 | C101: HC_BAL_D-050 | Q101: Saldo
A102: SS | B102: 180 | C102: HC_EXP_D-021 | Q102: Diversen | R102: Diversen | S102: TRUE
A103: SS | B103: 180.1 | C103: HC_EXP_D-022 | Q103: Europees relanceplan
A104: SS | B104: 179 | C104: HC_EXP_D-024 | Q104: Interestlasten | R104: Interestlasten | S104: =IFERROR(IF(Q104=R104,TRUE,IF(Q104=LEFT(R104,LEN(R104)-1),TRUE,IF(Q104=LEFT(R104,LEN(R104)-2),TRUE,FALSE))),"") -> TRUE
A105: SS | B105: 185 | C105: HC_EXP_D-036 | Q105: Algemeen totaal van de uitgaven | R105: TOTAAL UITGAVEN | S105: FALSE
A106: SS | B106: 173 | C106: HC_EXP_D-056 | Q106: Prestaties | R106: Prestaties | S106: TRUE
A107: SS | B107: 176 | C107: HC_EXP_D-066 | Q107: Betalingskosten | R107: Betalingskosten | S107: TRUE
A108: SS | B108: 177 | C108: HC_EXP_D-067 | Q108: Beheerskosten | R108: Beheerskosten | S108: TRUE
A109: SS | B109: 178 | C109: HC_EXP_D-068 | Q109: Externe overdrachten | R109: Externe overdrachten | S109: TRUE
A110: SS | B110: 181 | C110: HC_EXP_D-071 | Q110: Eigen uitgaven | R110: EIGEN UITGAVEN | S110: TRUE
A111: SS | B111: 174 | C111: HC_EXP_D-092 | Q111: Ten laste van de VI | R111: Ten laste van de VI | S111: TRUE
A112: SS | B112: 175 | C112: HC_EXP_D-093 | Q112: Ten laste van het RIZIV | R112: Ten laste van het RIZIV | S112: TRUE
A113: SS | B113: 182 | C113: HC_EXP_D-094 | Q113: RSZ-Globaal beheer | R113: RSZ-Globaal Beheer | S113: TRUE
A114: SS | B114: 183 | C114: HC_EXP_D-095 | Q114: RSVZ-Globaal beheer | R114: RSVZ-Globaal Beheer | S114: TRUE
A115: SS | B115: 184 | C115: HC_EXP_D-096 | Q115: Overdrachten globaal beheer | R115: OVERDRACHTEN GLOBAAL BEHEER | S115: TRUE
A116: SS | B116: 175.5 | C116: HC_EXP_D-158 | Q116: Uitgaven COVID 19
A117: SS | B117: 194 | C117: HC_REV_D-021 | Q117: Diversen | R117: Diversen | S117: =IFERROR(IF(Q117=R117,TRUE,IF(Q117=LEFT(R117,LEN(R117)-1),TRUE,IF(Q117=LEFT(R117,LEN(R117)-2),TRUE,FALSE))),"") -> TRUE
A118: SS | B118: 194.1 | C118: HC_REV_D-022 | Q118: Europees relanceplan
A119: SS | B119: 194.2 | C119: HC_REV_D-023 | Q119: Federaal herstelplan
A120: SS | B120: 200 | C120: HC_REV_D-048 | Q120: Algemeen totaal van de ontvangsten | R120: TOTAAL ONTVANGSTEN | S120: =IFERROR(IF(Q120=R120,TRUE,IF(Q120=LEFT(R120,LEN(R120)-1),TRUE,IF(Q120=LEFT(R120,LEN(R120)-2),TRUE,FALSE))),"") -> FALSE
A121: SS | B121: 192 | C121: HC_REV_D-068 | Q121: Externe overdrachten | R121: Externe overdrachten | S121: TRUE
A122: SS | B122: 186 | C122: HC_REV_D-075 | Q122: Bijdragen | R122: Bijdragen | S122: TRUE
A123: SS | B123: 190 | C123: HC_REV_D-077 | Q123: Alternatieve financiering | R123: Alternatieve financiering | S123: TRUE
A124: SS | B124: 191 | C124: HC_REV_D-078 | Q124: Toegewezen ontvangsten | R124: Toegewezen ontvangsten | S124: TRUE
A125: SS | B125: 193 | C125: HC_REV_D-080 | Q125: Opbrengsten beleggingen | R125: Opbrengsten beleggingen | S125: TRUE
A126: SS | B126: 195 | C126: HC_REV_D-081 | Q126: Eigen ontvangsten | R126: EIGEN ONTVANGSTEN | S126: TRUE
A127: SS | B127: 196 | C127: HC_REV_D-094 | Q127: RSZ - Globaal beheer | R127: RSZ - Globaal beheer | S127: TRUE
A128: SS | B128: 197 | C128: HC_REV_D-095 | Q128: RSVZ - Globaal beheer | R128: RSVZ - Globaal beheer | S128: TRUE
A129: SS | B129: 199 | C129: HC_REV_D-096 | Q129: Overdrachten globaal beheer | R129: OVERDRACHTEN GLOBAAL BEHEER | S129: TRUE
A130: SS | B130: 198 | C130: HC_REV_D-098 | Q130: RSVZ - Gemengde loopbanen | R130: RSVZ - Gemengde loopbanen | S130: TRUE
A131: SS | B131: 187 | C131: HC_REV_D-120 | Q131: Toelagen van de overheden | R131: Toelagen van de overheden | S131: TRUE
A132: SS | B132: 188 | C132: HC_REV_D-121 | Q132: Federale overheid | R132: Federale overheid | S132: TRUE
A133: SS | B133: 189 | C133: HC_REV_D-122 | Q133: Gefedereerde entiteiten | R133: Gefedereerde entiteiten | S133: TRUE
A134: SS | B134: 198.5 | C134: HC_REV_D-129 | Q134: RSZ - IBF | R134: RSZ - IBF | S134: TRUE
A135: SS | B135: 188.1 | C135: HC_REV_D-159
A136: SS | B136: 188.2 | C136: HC_REV_D-160
A137: SS | B137: 188.3 | C137: HC_REV_D-163
A138: SS | B138: 226.5 | C138: OM_BAL_D-050 | D138: -10593.45955 | E138: 14648.28124 | F138: 13821.63297 | G138: 28494.88266 | H138: -2802.081987 | I138: -19218.11344 | J138: 26000.297 | K138: 1927.148293 | L138: -11388.9762 | M138: 3376.014003 | N138: 37019.53832 | O138: -1662.257287 | P138: 79622.90605 | Q138: Saldo | S138: =IFERROR(IF(Q138=R138,TRUE,IF(Q138=LEFT(R138,LEN(R138)-1),TRUE,IF(Q138=LEFT(R138,LEN(R138)-2),TRUE,FALSE))),"") -> 
A139: SS | B139: 213 | C139: OM_EXP_D-021 | D139: 153.54605 | E139: 303.76621 | F139: 238.06274 | G139: 256.13613 | H139: 168.04876 | I139: 169.583 | J139: 170.615 | K139: 135.16778 | L139: 232.45217 | M139: 343.30968 | N139: 153.25866 | O139: 4701.21143 | P139: 7025.15761 | Q139: Diversen | R139: Diversen | S139: TRUE
A140: SS | B140: 212 | C140: OM_EXP_D-024 | D140: -8.92533 | E140: 0.51796 | F140: 250.56223 | G140: 0.52547 | H140: 0.54995 | I140: 127.74104 | J140: 0.85089 | K140: 1.1193 | L140: 218.34912 | M140: 0.58152 | N140: 0.57749 | O140: 1306.66942 | P140: 1899.11906 | Q140: Interestlasten | R140: Interestlasten | S140: TRUE
A141: SS | B141: 216 | C141: OM_EXP_D-036 | D141: 68990.02471 | E141: 71286.50775 | F141: 79603.84474 | G141: 68892.91228 | H141: 73061.97933 | I141: 77623.95254 | J141: 72281.09712 | K141: 65272.67737 | L141: 69537.55776 | M141: 62139.65545 | N141: 75846.77623 | O141: 90726.0709 | P141: 875263.0561 | Q141: Algemeen totaal van de uitgaven | R141: TOTAAL UITGAVEN | S141: FALSE
A142: SS | B142: 201 | C142: OM_EXP_D-056 | D142: 55233.30493 | E142: 57375.38381 | F142: 65968.56114 | G142: 57067.27528 | H142: 59476.78722 | I142: 69191.32186 | J142: 59428.30758 | K142: 52552.79036 | L142: 56145.15789 | M142: 58929.84742 | N142: 71606.25675 | O142: 72136.8882 | P142: 735111.8824 | Q142: Prestaties | R142: Prestaties | S142: TRUE
A143: SS | B143: 209 | C143: OM_EXP_D-066 | D143: 0 | E143: 0 | F143: 0 | G143: 0 | H143: 0 | I143: 0 | J143: 0 | K143: 0 | L143: 0 | M143: 0 | N143: 0 | O143: 0 | P143: 0 | Q143: Betalingskosten | R143: Betalingskosten | S143: TRUE
A144: SS | B144: 210 | C144: OM_EXP_D-067 | D144: 2891.064237 | E144: 2894.839767 | F144: 2392.523077 | G144: 2446.975397 | H144: 4294.593397 | I144: 3024.037977 | J144: 2872.287847 | K144: 2806.599927 | L144: 3164.598577 | M144: 2665.916827 | N144: 2286.683327 | O144: 5160.419527 | P144: 36900.53988 | Q144: Beheerskosten | R144: Beheerskosten | S144: TRUE
A145: SS | B145: 211 | C145: OM_EXP_D-068 | D145: 10721.03482 | E145: 10712 | F145: 10754.13555 | G145: 9122 | H145: 9122 | I145: 5111.26866 | J145: 9809.0358 | K145: 9777 | L145: 9777 | M145: 200 | N145: 1800 | O145: 7420.88232 | P145: 94326.35715 | Q145: Externe overdrachten | R145: Externe overdrachten | S145: TRUE
A146: SS | B146: 214 | C146: OM_EXP_D-071 | D146: 68990.02471 | E146: 71286.50775 | F146: 79603.84474 | G146: 68892.91228 | H146: 73061.97933 | I146: 77623.95254 | J146: 72281.09712 | K146: 65272.67737 | L146: 69537.55776 | M146: 62139.65545 | N146: 75846.77623 | O146: 90726.0709 | P146: 875263.0561 | Q146: Eigen uitgaven | R146: EIGEN UITGAVEN | S146: TRUE
A147: SS | B147: 215 | C147: OM_EXP_D-074 | Q147: Interne overdrachten | R147: Interne overdrachten | S147: TRUE
A148: SS | B148: 202 | C148: OM_EXP_D-150 | D148: 500.87471 | E148: 219.97324 | F148: 398.46429 | G148: 214.1304 | H148: 241.54562 | I148: 308.75294 | J148: 184.54408 | K148: 265.50053 | L148: 355.8683 | M148: 229.20154 | N148: 12024.93325 | O148: 1129.20325 | P148: 16072.99215 | Q148: FAO - Kapitalisatie | R148: FAO - Kapitalisatie | S148: TRUE
A149: SS | B149: 203 | C149: OM_EXP_D-151 | D149: 1079 | E149: 1414 | F149: 2901 | G149: 1829 | H149: 1187 | I149: 1593 | J149: 1541 | K149: 1190 | L149: 1494 | M149: 1646 | N149: 1628 | O149: 3977 | P149: 21479 | Q149: FBZ - Asbestfonds | R149: FBZ - Asbestfonds | S149: TRUE
A150: SS | B150: 204 | C150: OM_EXP_D-152 | D150: 499 | E150: 740 | F150: 2529 | G150: 518 | H150: 615 | I150: 2294 | J150: 835 | K150: 412 | L150: 2737 | M150: 698 | N150: 531 | O150: 6052 | P150: 18460 | Q150: FBZ - PPO | R150: FBZ - PPO | S150: TRUE
A151: SS | B151: 205 | C151: OM_EXP_D-153 | D151: 17513.514 | E151: 17923 | F151: 21435.27226 | G151: 18306 | H151: 20181.9588 | I151: 18188 | J151: 18909.38289 | K151: 15630.7 | L151: 15735.75254 | M151: 17797.35381 | N151: 19245 | O151: 20211.9 | P151: 221077.8343 | Q151: RVA - Buiten globaal beheer | R151: RVA - Buiten globaal beheer | S151: TRUE
A152: SS | B152: 206 | C152: OM_EXP_D-154 | D152: 2068.59566 | E152: 675.56904 | F152: 1076.38495 | G152: 673.48939 | H152: 847.83163 | I152: 1815.07252 | J152: 2573.29144 | K152: 796.95335 | L152: 875.01348 | M152: 2634.73694 | N152: 1885.32054 | O152: 2140.61595 | P152: 18062.87489 | Q152: Fonds Medische Ongevallen | R152: Fonds Medische Ongevallen | S152: TRUE
A153: SS | B153: 207 | C153: OM_EXP_D-155 | D153: 8229.33541 | E153: 10193.25741 | F153: 9925.75828 | G153: 9625.14774 | H153: 10251.27842 | I153: 8498.68312 | J153: 9450.58505 | K153: 8496.68073 | L153: 6825.01649 | M153: 9778.97438 | N153: 9930.48908 | O153: 9479.33436 | P153: 110684.5405 | Q153: FSO - Profit | R153: FSO - Profit | S153: TRUE
A154: SS | B154: 208 | C154: OM_EXP_D-156 | D154: 759.31342 | E154: 1134.12454 | F154: 671.79181 | G154: 793.1559 | H154: 444.87467 | I154: 321.97287 | J154: 295.99757 | K154: 257.61948 | L154: 196.49876 | M154: 226.97668 | N154: 370.55255 | O154: 301.82913 | P154: 5774.70738 | Q154: FSO - Non-profit | R154: FSO - Non-profit | S154: TRUE
A155: SS | B155: 204.5 | C155: OM_EXP_D-161
A156: SS | B156: 208.5 | C156: OM_EXP_D-162 | D156: 408 | E156: 574 | F156: 425 | G156: 325 | H156: 741 | I156: 838 | J156: 484 | K156: 186 | L156: 647 | M156: 502 | N156: 598 | O156: 332 | P156: 6060
A157: SS | B157: 201.5 | C157: OM_EXP_D-163 | D157: 24175.67173 | E157: 24501.45958 | F157: 26605.88955 | G157: 24783.35185 | H157: 24966.29808 | I157: 35333.84041 | J157: 25154.50655 | K157: 25317.33627 | L157: 27279.00832 | M157: 25416.60407 | N157: 25392.96133 | O157: 28513.00551 | P157: 317439.9333
A158: SS | B158: 223 | C158: OM_REV_D-021 | D158: 4762.35426 | E158: 5100.19561 | F158: 2942.55757 | G158: 5961.7109 | H158: 3249.06798 | I158: 2413.67077 | J158: 7278.66132 | K158: 2130.38342 | L158: 2782.35163 | M158: 3596.06047 | N158: 5532.43419 | O158: 6635.83177 | P158: 52385.27989 | Q158: Diversen | R158: Diversen | S158: =IFERROR(IF(Q158=R158,TRUE,IF(Q158=LEFT(R158,LEN(R158)-1),TRUE,IF(Q158=LEFT(R158,LEN(R158)-2),TRUE,FALSE))),"") -> TRUE
A159: SS | B159: 226 | C159: OM_REV_D-048 | D159: 58396.56516 | E159: 85934.78899 | F159: 93425.47771 | G159: 97387.79494 | H159: 70259.89734 | I159: 58405.8391 | J159: 98281.39412 | K159: 67199.82566 | L159: 58148.58156 | M159: 65515.66945 | N159: 112866.3146 | O159: 89063.81361 | P159: 954885.9622 | Q159: Algemeen totaal van de ontvangsten | R159: TOTAAL ONTVANGSTEN | S159: FALSE
A160: SS | B160: 221 | C160: OM_REV_D-068 | D160: 3109.60229 | E160: 1654.4086 | F160: 1631.14734 | G160: 1305.41561 | H160: 1623.00744 | I160: 2383.36792 | J160: 3422.06111 | K160: 1264.7016 | L160: 1465.22672 | M160: 3678.45315 | N160: 2408.40363 | O160: 15345.82089 | P160: 39291.6163 | Q160: Externe overdrachten | R160: Externe overdrachten | S160: TRUE
A161: SS | B161: 225 | C161: OM_REV_D-074 | Q161: Interne overdrachten | R161: Interne overdrachten | S161: TRUE
A162: SS | B162: 217 | C162: OM_REV_D-075 | D162: 20815.51047 | E162: 49957.63254 | F162: 26428.43743 | G162: 24546.0502 | H162: 37226.21205 | I162: 25262.15555 | J162: 19878.05247 | K162: 35014.10541 | L162: 25085.50725 | M162: 19472.45234 | N162: 37954.80582 | O162: 36836.02219 | P162: 358476.9437 | Q162: Bijdragen | R162: Bijdragen | S162: TRUE
A163: SS | B163: 219 | C163: OM_REV_D-077 | Q163: Alternatieve financiering | R163: Alternatieve financiering | S163: TRUE
A164: SS | B164: 220 | C164: OM_REV_D-078 | D164: 0 | E164: 0 | F164: 66.87497 | G164: 0 | H164: 0 | I164: 0 | J164: 0 | K164: 61.97286 | L164: 53.14955 | M164: 0 | N164: 0 | O164: 0 | P164: 181.99738 | Q164: Toegewezen ontvangsten | R164: Toegewezen ontvangsten | S164: TRUE
A165: SS | B165: 222 | C165: OM_REV_D-080 | D165: 4.54119 | E165: 4.55224 | F165: 217.4604 | G165: 25.61823 | H165: 4.60987 | I165: 229.64486 | J165: 4.61922 | K165: 4.66237 | L165: 216.34641 | M165: 4.70349 | N165: 4.67091 | O165: 1130.13876 | P165: 1851.56795 | Q165: Opbrengsten beleggingen | R165: Opbrengsten beleggingen | S165: TRUE
A166: SS | B166: 224 | C166: OM_REV_D-081 | D166: 58396.56516 | E166: 85934.78899 | F166: 93425.47771 | G166: 97387.79494 | H166: 70259.89734 | I166: 58405.8391 | J166: 98281.39412 | K166: 67199.82566 | L166: 58148.58156 | M166: 65515.66945 | N166: 112866.3146 | O166: 89063.81361 | P166: 954885.9622 | Q166: Eigen ontvangsten | R166: EIGEN ONTVANGSTEN | S166: TRUE
A167: SS | B167: 218 | C167: OM_REV_D-120 | D167: 29704.55695 | E167: 29218 | F167: 62139 | G167: 65549 | H167: 28157 | I167: 28117 | J167: 67698 | K167: 28724 | L167: 28546 | M167: 38764 | N167: 66966 | O167: 29116 | P167: 502698.5569 | Q167: Toelagen van de overheden | R167: Toelagen van de overheden | S167: TRUE
A168: SS | B168: 218.1 | C168: OM_REV_D-121 | D168: 23664.55695 | E168: 23178 | F168: 56099 | G168: 59695 | H168: 22303 | I168: 22304 | J168: 61951 | K168: 22977 | L168: 22978 | M168: 33105 | N168: 61307 | O168: 25060 | P168: 434621.5569
A169: SS | B169: 218.2 | C169: OM_REV_D-122 | D169: 6040 | E169: 6040 | F169: 6040 | G169: 5854 | H169: 5854 | I169: 5813 | J169: 5747 | K169: 5747 | L169: 5568 | M169: 5659 | N169: 5659 | O169: 4056 | P169: 68077
A170: SS | B170: 268 | C170: PE_BAL_D-050 | Q170: Saldo | S170: =IFERROR(IF(Q170=R170,TRUE,IF(Q170=LEFT(R170,LEN(R170)-1),TRUE,IF(Q170=LEFT(R170,LEN(R170)-2),TRUE,FALSE))),"") -> 
A171: SS | B171: 245 | C171: PE_EXP_D-021 | Q171: Diversen | R171: Diversen | S171: TRUE
A172: SS | B172: 244 | C172: PE_EXP_D-024 | Q172: Interestlasten | R172: Interestlasten | S172: TRUE
A173: SS | B173: 250 | C173: PE_EXP_D-036 | Q173: Algemeen totaal van de uitgaven | R173: TOTAAL UITGAVEN | S173: FALSE
A174: SS | B174: 228 | C174: PE_EXP_D-056 | Q174: Prestaties | R174: Prestaties | S174: TRUE
A175: SS | B175: 239 | C175: PE_EXP_D-066 | Q175: Betalingskosten | R175: Betalingskosten | S175: TRUE
A176: SS | B176: 240 | C176: PE_EXP_D-067 | Q176: Beheerskosten | R176: Beheerskosten | S176: TRUE
A177: SS | B177: 241 | C177: PE_EXP_D-068 | Q177: Externe overdrachten | R177: Externe overdrachten | S177: TRUE
A178: SS | B178: 246 | C178: PE_EXP_D-071 | Q178: Eigen uitgaven | R178: EIGEN UITGAVEN | S178: TRUE
A179: SS | B179: 249 | C179: PE_EXP_D-074 | Q179: Interne overdrachten | R179: INTERNE OVERDRACHTEN | S179: TRUE
A180: SS | B180: 229 | C180: PE_EXP_D-133 | Q180: Openbare sector | R180: Openbare sector | S180: TRUE
A181: SS | B181: 230 | C181: PE_EXP_D-134 | Q181: Vergoedingspensioenen en oorlogsrenten | R181: Vergoedingspensioenen en oorlogsrenten | S181: =IFERROR(IF(LEFT(Q181,19)=LEFT(R181,19),TRUE,IF(Q181=LEFT(R181,LEN(R181)-1),TRUE,IF(Q181=LEFT(R181,LEN(R181)-2),TRUE,FALSE))),"") -> TRUE
A182: SS | B182: 231 | C182: PE_EXP_D-135 | Q182: Arbeidsongevallenrenten | R182: Arbeidsongevallenrenten | S182: =IFERROR(IF(Q182=R182,TRUE,IF(Q182=LEFT(R182,LEN(R182)-1),TRUE,IF(Q182=LEFT(R182,LEN(R182)-2),TRUE,FALSE))),"") -> TRUE
A183: SS | B183: 232 | C183: PE_EXP_D-136 | Q183: Burgerijke oorlogsslachtoffers en slachtoffers van een terreurdaad | R183: Burgerijke oorlogsslachtoffers & Slachtoffers van een terreurdaad | S183: =IFERROR(IF(LEFT(Q183,19)=LEFT(R183,19),TRUE,IF(Q183=LEFT(R183,LEN(R183)-1),TRUE,IF(Q183=LEFT(R183,LEN(R183)-2),TRUE,FALSE))),"") -> TRUE
A184: SS | B184: 233 | C184: PE_EXP_D-137 | Q184: NMBS | R184: NMBS | S184: =IFERROR(IF(Q184=R184,TRUE,IF(Q184=LEFT(R184,LEN(R184)-1),TRUE,IF(Q184=LEFT(R184,LEN(R184)-2),TRUE,FALSE))),"") -> TRUE
A185: SS | B185: 234 | C185: PE_EXP_D-138 | Q185: Parastatale rustpensioenen | R185: Parastatale rustpensioenen | S185: =IFERROR(IF(Q185=R185,TRUE,IF(Q185=LEFT(R185,LEN(R185)-1),TRUE,IF(Q185=LEFT(R185,LEN(R185)-2),TRUE,FALSE))),"") -> TRUE
A186: SS | B186: 235 | C186: PE_EXP_D-139 | Q186: Rechtstreekse overeenkomsten | R186: Rechtstreekse overeenkomsten | S186: =IFERROR(IF(Q186=R186,TRUE,IF(Q186=LEFT(R186,LEN(R186)-1),TRUE,IF(Q186=LEFT(R186,LEN(R186)-2),TRUE,FALSE))),"") -> TRUE
A187: SS | B187: 236 | C187: PE_EXP_D-140 | Q187: Overeenkomsten met voorzorgsinstellingen | R187: Overeenkomsten met voorzorgsinstellingen | S187: =IFERROR(IF(LEFT(Q187,19)=LEFT(R187,19),TRUE,IF(Q187=LEFT(R187,LEN(R187)-1),TRUE,IF(Q187=LEFT(R187,LEN(R187)-2),TRUE,FALSE))),"") -> TRUE
A188: SS | B188: 237 | C188: PE_EXP_D-141 | Q188: Gesolidariseerd pensioenfonds van de lokale besturen | R188: Gesolidariseerd pensioenfonds van de lokale besturen | S188: =IFERROR(IF(LEFT(Q188,19)=LEFT(R188,19),TRUE,IF(Q188=LEFT(R188,LEN(R188)-1),TRUE,IF(Q188=LEFT(R188,LEN(R188)-2),TRUE,FALSE))),"") -> TRUE
A189: SS | B189: 238 | C189: PE_EXP_D-142 | Q189: Fonds voor de pensioenen van de federale politie | R189: Fonds voor de pensioenen van de federale politie | S189: =IFERROR(IF(LEFT(Q189,19)=LEFT(R189,19),TRUE,IF(Q189=LEFT(R189,LEN(R189)-1),TRUE,IF(Q189=LEFT(R189,LEN(R189)-2),TRUE,FALSE))),"") -> TRUE
A190: SS | B190: 242 | C190: PE_EXP_D-143 | Q190: Naar de FPD | R190: Naar de FPD | S190: =IFERROR(IF(Q190=R190,TRUE,IF(Q190=LEFT(R190,LEN(R190)-1),TRUE,IF(Q190=LEFT(R190,LEN(R190)-2),TRUE,FALSE))),"") -> TRUE
A191: SS | B191: 243 | C191: PE_EXP_D-144 | Q191: Naar derden | R191: Naar derden | S191: TRUE
A192: SS | B192: 247 | C192: PE_EXP_D-145 | Q192: Pensioenaandelen-wet 14.04.1965 | R192: Pensioenaandelen-wet 14.04.1965 | S192: TRUE
A193: SS | B193: 248 | C193: PE_EXP_D-146 | Q193: Van RSZ naar FPD | R193: Van RSZ naar FPD | S193: TRUE
A194: SS | B194: 262 | C194: PE_REV_D-021 | Q194: Diversen | R194: Diversen | S194: TRUE
A195: SS | B195: 267 | C195: PE_REV_D-048 | Q195: Algemeen totaal van de ontvangsten | R195: TOTAAL ONTVANGSTEN | S195: FALSE
A196: SS | B196: 257 | C196: PE_REV_D-068 | Q196: Externe overdrachten | R196: Externe overdrachten | S196: TRUE
A197: SS | B197: 266 | C197: PE_REV_D-074 | Q197: Interne overdrachten | R197: INTERNE OVERDRACHTEN | S197: TRUE
A198: SS | B198: 251 | C198: PE_REV_D-075 | Q198: Bijdragen | R198: Bijdragen | S198: TRUE
A199: SS | B199: 255 | C199: PE_REV_D-077 | Q199: Alternatieve financiering | R199: Alternatieve financiering | S199: TRUE
A200: SS | B200: 256 | C200: PE_REV_D-078 | Q200: Toegewezen ontvangsten | R200: Toegewezen ontvangsten | S200: TRUE
... 78 more rows
